Workbook

Sheet Calendrier
A1: GRAND JEU NEUCHATELOIS | J1: mettre votre club en évidence | L1: 2020 | M1: 2019 | N1: 2018 | O1: 2017 | P1: 2016 | Q1: 2015 | R1: 2014 | S1: 2013 | T1: 2012
A2: Entraînements | E2: =CONCATENATE("Compétitions ",YEAR(B6)) -> Compétitions 2020
A4: Challenge HIVER | E4: Jeu : | F4: Evologia | H4: Marquage | L4: Evologia | M4: La Vue-des-Alpes | N4: La Chaux-de-Fonds | O4: L'Epi | P4: La Vue-des-Alpes | Q4: La Chaux-de-Fonds | R4: La Chaux-de-Fonds | S4: L'Epi | T4: La Vue-des-Alpes
A6: Lundi | B6: 2020-03-02 | C6: Le Locle | E6: Lundi | F6: =B6+7 -> 2020-03-09 | G6: Le Locle | H6: La Vue-des-Alpes
A7: Mardi | B7: =B6+1 -> 2020-03-03 | C7: L'Epi | E7: Mardi | F7: =F6+1 -> 2020-03-10 | G7: L'Epi | H7: La Vue-des-Alpes
A8: Mercredi | B8: =B7+1 -> 2020-03-04 | C8: La Chaux-de-Fonds | E8: Mercredi | F8: =F7+1 -> 2020-03-11 | G8: La Chaux-de-Fonds | H8: La Vue-des-Alpes
A9: Jeudi | B9: =B8+1 -> 2020-03-05 | C9: La Vue-des-Alpes | E9: Jeudi | F9: =F8+1 -> 2020-03-12 | G9: La Vue-des-Alpes | H9: L'Epi
A11: Challenge 70ème | E11: Jeu : | F11: L'Epi | H11: Marquage | J11: Nbre marquage | L11: L'Epi | M11: La Chaux-de-Fonds | N11: Evologia | O11: La Chaux-de-Fonds | P11: Le Locle | Q11: L'Epi | R11: La Vue-des-Alpes | S11: La Chaux-de-Fonds | T11: Le Locle
A13: Lundi | B13: 2020-03-23 | C13: Le Locle | E13: Lundi | F13: =B13+7 -> 2020-03-30 | G13: Le Locle | J13: =Qui!A201 -> La Chaux-de-Fonds | K13: =COUNTIF(H$6:H$87,J13)-COUNTIF(H$20:H$23,J13) -> 7
A14: Mardi | B14: =B13+1 -> 2020-03-24 | C14: L'Epi | E14: Mardi | F14: =F13+1 -> 2020-03-31 | G14: L'Epi | J14: =Qui!A202 -> La Vue-des-Alpes | K14: =COUNTIF(H$6:H$87,J14)-COUNTIF(H$20:H$23,J14) -> 7
A15: Mercredi | B15: =B14+1 -> 2020-03-25 | C15: La Chaux-de-Fonds | E15: Mercredi | F15: =F14+1 -> 2020-04-01 | G15: La Chaux-de-Fonds | J15: =Qui!A203 -> Le Locle | K15: 7
A16: Jeudi | B16: =B15+1 -> 2020-03-26 | C16: La Vue-des-Alpes | E16: Jeudi | F16: =F15+1 -> 2020-04-02 | G16: La Vue-des-Alpes | J16: =Qui!A204 -> L'Epi | K16: 7
A18: COUPE SUISSE | E18: Jeu : | F18: La Vue-des-Alpes | H18: Les 2 clubs qui se qualifient marquent l'un pour l'autre | L18: La Vue-des-Alpes | M18: Evologia | N18: Grand-Sommartel | O18: Grand-Sommartel | P18: La Chaux-de-Fonds | Q18: Le Locle | R18: L'Epi | S18: La Vue-des-Alpes | T18: La Chaux-de-Fonds
A20: Lundi | B20: 2020-04-27 | C20: Le Locle | E20: Mercredi | F20: =B22+7 -> 2020-05-06 | G20: La Chaux-de-Fonds
A21: Mardi | B21: =B20+1 -> 2020-04-28 | C21: L'Epi | E21: Jeudi | F21: =F20+1 -> 2020-05-07 | G21: Le Locle
A22: Mercredi | B22: =B21+1 -> 2020-04-29 | C22: La Chaux-de-Fonds | E22: Les 16 meilleurs sont qualifiés et jouent le Tour Final dès 13h°°
A23: Jeudi | B23: =B22+1 -> 2020-04-30 | C23: La Vue-des-Alpes | E23: Samedi | F23: =F21+2 -> 2020-05-09
A25: Challenge ÉTÉ | E25: Jeu : | F25: Le Locle | H25: Marquage | J25: Nbre jeu | L25: Le Locle | M25: Grand-Sommartel | N25: La Vue-des-Alpes | O25: Le Locle | P25: L'Epi | Q25: La Vue-des-Alpes | R25: Le Locle | S25: Le Locle | T25: L'Epi
A27: Lundi | B27: 2020-06-08 | C27: Le Locle | E27: Lundi | F27: =B27+7 -> 2020-06-15 | G27: Le Locle | J27: =Qui!B201 -> Evologia | K27: =COUNTIF(F$4:F$88,J27) -> 2
A28: Mardi | B28: =B27+1 -> 2020-06-09 | C28: L'Epi | E28: Mardi | F28: =F27+1 -> 2020-06-16 | G28: L'Epi | J28: =Qui!B202 -> Grand-Sommartel | K28: 1
A29: Mercredi | B29: =B28+1 -> 2020-06-10 | C29: La Chaux-de-Fonds | E29: Mercredi | F29: =F28+1 -> 2020-06-17 | G29: La Chaux-de-Fonds | J29: =Qui!B203 -> La Chaux-de-Fonds | K29: 1
A30: Jeudi | B30: =B29+1 -> 2020-06-11 | C30: La Vue-des-Alpes | E30: Jeudi | F30: =F29+1 -> 2020-06-18 | G30: La Vue-des-Alpes | J30: =Qui!B204 -> La Vue-des-Alpes | K30: =COUNTIF(F$4:F$88,J30) -> 2
J31: =Qui!B205 -> Le Locle | K31: =COUNTIF(F$4:F$88,J31) -> 2
A32: Les N° de téléphone des Responsables des Jeux | D32: Toutes les compétitions, 7.-- le requillage sauf la Coupe Suisse 5.-- le requillage | G32: Les feuilles des résultats des compétitions sont à déposer ou à poster le jeudi soir chez : Christian Monnier Rue des Marais 46 La Chaux-de-Fonds | J32: =Qui!B206 -> L'Epi | K32: 2
A33: L'Epi | B33: Blaise MORES | C33: 079 704 08 91 | J33: =Qui!B207 -> L'Erguel | K33: =COUNTIF(F$4:F$88,J33) -> 0
A34: Le Locle | B34: Lucien TYNOWSKI | C34: 032 931 47 02
A35: La Chaux-de-Fonds | B35: Christian MONNIER | C35: 079 378 43 49
A36: La Vue-des-Alpes | B36: Hervé OPPLIGER | C36: 079 301 51 15
A37: Evologia | B37: Daniel PELLATON | C37: 079 675 72 71
A38: Grand-Sommartel | B38: Lucien TYNOWSKI | C38: 032 931 47 02
A40: Championnat 1ère manche | E40: Jeu : | F40: Le Locle | H40: Marquage | L40: Le Locle | M40: Grand-Sommartel | N40: Grand-Sommartel | O40: Le Locle | P40: Le Locle | Q40: Le Locle | R40: Le Locle | S40: Le Locle | T40: Le Locle
A42: Lundi | B42: 2020-06-22 | C42: Le Locle | E42: Lundi | F42: =B42+7 -> 2020-06-29 | G42: Le Locle | H42: La Vue-des-Alpes
A43: Mardi | B43: =B42+1 -> 2020-06-23 | C43: L'Epi | E43: Mardi | F43: =F42+1 -> 2020-06-30 | G43: L'Epi | H43: Le Locle
A44: Mercredi | B44: =B43+1 -> 2020-06-24 | C44: La Chaux-de-Fonds | E44: Mercredi | F44: =F43+1 -> 2020-07-01 | G44: La Chaux-de-Fonds | H44: Le Locle
A45: Jeudi | B45: =B44+1 -> 2020-06-25 | C45: La Vue-des-Alpes | E45: Jeudi | F45: =F44+1 -> 2020-07-02 | G45: La Vue-des-Alpes | H45: Le Locle
A47: Championnat 2ème manche | E47: Jeu : | F47: Grand-Sommartel | H47: Marquage | L47: Grand-Sommartel | M47: Le Locle | N47: Le Locle | O47: Grand-Sommartel | P47: L'Epi | Q47: La Vue-des-Alpes | R47: L'Epi | S47: Evologia | T47: L'Epi
A49: Lundi | B49: 2020-08-17 | C49: Le Locle | E49: Lundi | F49: =B49+7 -> 2020-08-24 | G49: Le Locle | H49: La Chaux-de-Fonds
A50: Mardi | B50: =B49+1 -> 2020-08-18 | C50: L'Epi | E50: Mardi | F50: =F49+1 -> 2020-08-25 | G50: L'Epi | H50: La Chaux-de-Fonds
A51: Mercredi | B51: =B50+1 -> 2020-08-19 | C51: La Chaux-de-Fonds | E51: Mercredi | F51: =F50+1 -> 2020-08-26 | G51: La Chaux-de-Fonds | H51: Le Locle
A52: Jeudi | B52: =B51+1 -> 2020-08-20 | C52: La Vue-des-Alpes | E52: Jeudi | F52: =F51+1 -> 2020-08-27 | G52: La Vue-des-Alpes | H52: Le Locle
A54: Championnat 3ème manche | E54: Jeu : | F54: L'Epi | H54: Marquage | L54: L'Erguel | M54: La Vue-des-Alpes | N54: L'Epi | O54: Evologia | P54: La Chaux-de-Fonds | Q54: La Chaux-de-Fonds | R54: Evologia | S54: La Vue-des-Alpes | T54: La Vue-des-Alpes
A56: Lundi | B56: 2020-08-31 | C56: Le Locle | E56: Lundi | F56: =B56+7 -> 2020-09-07 | G56: Le Locle | H56: L'Epi
A57: Mardi | B57: =B56+1 -> 2020-09-01 | C57: L'Epi | E57: Mardi | F57: =F56+1 -> 2020-09-08 | G57: L'Epi | H57: La Vue-des-Alpes
A58: Mercredi | B58: =B57+1 -> 2020-09-02 | C58: La Chaux-de-Fonds | E58: Mercredi | F58: =F57+1 -> 2020-09-09 | G58: La Chaux-de-Fonds | H58: L'Epi
A59: Jeudi | B59: =B58+1 -> 2020-09-03 | C59: La Vue-des-Alpes | E59: Jeudi | F59: =F58+1 -> 2020-09-10 | G59: La Vue-des-Alpes | H59: L'Epi
A61: Championnat 4ème manche | E61: Jeu : | F61: La Chaux-de-Fonds | H61: Marquage | L61: L'Epi | M61: Evologia | N61: Evologia | O61: La Vue-des-Alpes | P61: La Vue-des-Alpes | Q61: Evologia | R61: La Chaux-de-Fonds | S61: La Chaux-de-Fonds | T61: Jeu erguel
A63: Lundi | B63: 2020-09-28 | C63: Le Locle | E63: Lundi | F63: =B63+7 -> 2020-10-05 | G63: Le Locle | H63: La Chaux-de-Fonds
A64: Mardi | B64: =B63+1 -> 2020-09-29 | C64: L'Epi | E64: Mardi | F64: =F63+1 -> 2020-10-06 | G64: L'Epi | H64: La Chaux-de-Fonds
A65: Mercredi | B65: =B64+1 -> 2020-09-30 | C65: La Chaux-de-Fonds | E65: Mercredi | F65: =F64+1 -> 2020-10-07 | G65: La Chaux-de-Fonds | H65: La Vue-des-Alpes
A66: Jeudi | B66: =B65+1 -> 2020-10-01 | C66: La Vue-des-Alpes | E66: Jeudi | F66: =F65+1 -> 2020-10-08 | G66: La Vue-des-Alpes | H66: La Chaux-de-Fonds
A68: Championnat 5ème manche | E68: Jeu : | F68: Evologia | H68: Marquage | L68: Evologia | M68: L'Epi | N68: La Vue-des-Alpes | O68: La Chaux-de-Fonds | P68: Evologia | Q68: L'Epi | R68: La Vue-des-Alpes | S68: L'Epi
A70: Lundi | B70: 2020-10-19 | C70: Le Locle | E70: Lundi | F70: =B70+7 -> 2020-10-26 | G70: Le Locle | H70: L'Epi
A71: Mardi | B71: =B70+1 -> 2020-10-20 | C71: L'Epi | E71: Mardi | F71: =F70+1 -> 2020-10-27 | G71: L'Epi | H71: La Vue-des-Alpes
A72: Mercredi | B72: =B71+1 -> 2020-10-21 | C72: La Chaux-de-Fonds | E72: Mercredi | F72: =F71+1 -> 2020-10-28 | G72: La Chaux-de-Fonds | H72: L'Epi
A73: Jeudi | B73: =B72+1 -> 2020-10-22 | C73: La Vue-des-Alpes | E73: Jeudi | F73: =F72+1 -> 2020-10-29 | G73: La Vue-des-Alpes | H73: L'Epi
A75: Championnat 6ème manche | E75: Jeu : | F75: La Vue-des-Alpes | H75: Marquage | L75: La Chaux-de-Fonds | M75: La Chaux-de-Fonds | N75: La Chaux-de-Fonds | O75: L'Epi | P75: Jeu erguel | Q75: Jeu erguel | R75: Jeu erguel | S75: Jeu erguel
A77: Lundi | B77: 2020-11-02 | C77: Le Locle | E77: Lundi | F77: =B77+7 -> 2020-11-09 | G77: Le Locle | H77: La Chaux-de-Fonds
A78: Mardi | B78: =B77+1 -> 2020-11-03 | C78: L'Epi | E78: Mardi | F78: =F77+1 -> 2020-11-10 | G78: L'Epi | H78: La Chaux-de-Fonds
A79: Mercredi | B79: =B78+1 -> 2020-11-04 | C79: La Chaux-de-Fonds | E79: Mercredi | F79: =F78+1 -> 2020-11-11 | G79: La Chaux-de-Fonds | H79: Le Locle
A80: Jeudi | B80: =B79+1 -> 2020-11-05 | C80: La Vue-des-Alpes | E80: Jeudi | F80: =F79+1 -> 2020-11-12 | G80: La Vue-des-Alpes | H80: Le Locle
E82: Jeu : | H82: Marquage | L82: La Vue-des-Alpes
A84: Lundi | C84: Le Locle | E84: Lundi | F84: =B84+7 -> 1900-01-07 | G84: Le Locle
A85: Mardi | B85: =B84+1 -> 1900-01-01 | C85: L'Epi | E85: Mardi | F85: =F84+1 -> 1900-01-08 | G85: L'Epi
A86: Mercredi | B86: =B85+1 -> 1900-01-02 | C86: La Chaux-de-Fonds | E86: Mercredi | F86: =F85+1 -> 1900-01-09 | G86: La Chaux-de-Fonds
A87: Jeudi | B87: =B86+1 -> 1900-01-03 | C87: La Vue-des-Alpes | E87: Jeudi | F87: =F86+1 -> 1900-01-10 | G87: La Vue-des-Alpes
A90: =CONCATENATE("Rappel pour le Championnat neuchâtelois: ",CHAR(10)," individuel seuls comptent les ",Qui!$A$402," meilleurs résultats",CHAR(10)," par club seuls comptent les ",Qui!$B$402," meilleurs résultats") -> Rappel pour le Championnat neuchâtelois: individuel seuls comptent les 5 meilleurs résultats par club seuls comptent les 5 meilleurs résultats
A92: Remise des prix | C92: jeudi 26 novembre 2020 à 19h30 précise au jeu des Tunnels
A93: Organisation | C93: La Vue-des-Alpes | L93: La Chaux-de-Fonds | M93: La Chaux-de-Fonds | N93: Le Locle | O93: L'Epi | P93: La Vue-des-Alpes | Q93: La Chaux-de-Fonds | R93: Le Locle | S93: L'Epi | T93: La Vue-des-Alpes
F204: Duplicata Colonne A technique

Sheet Qui (hidden)
A196: Inventaire des Club, Jeux, choix des couleurs
A197: Club Texte | B197: Pour lui-même | C197: Pour lui-même | D197: Choix de la couleur club pour chque club | E197: Couleur club texte | F197: Duplicata Colonne A technique | I197: Lien entre n° couleur et texte ==> mise en forme conditionnelle
E198: Non modifiable | F198: Non modifiable | G198: Non modifiable | I198: Non modifiable | J198: Non modifiable
A200: Les_Clubs | B200: Les_Jeux | C200: Les_compétitions | D200: CLUB n° | E200: Couleur | F200: Copie_Les_Clubs | G200: Nb joueurs | I200: Définition des couleurs
A201: La Chaux-de-Fonds | B201: Evologia | C201: Challenge 70ème | D201: 1 | E201: =(VLOOKUP(Liste319[[#This Row],[CLUB n°]],I201:J205,2,0)) -> bleu | F201: =Liste117[[#This Row],[Les_Clubs]] -> La Chaux-de-Fonds | G201: =COUNTIF(E$301:E$355,A201) -> 12 | I201: 1 | J201: bleu
A202: La Vue-des-Alpes | B202: Grand-Sommartel | C202: Challenge ÉTÉ | D202: 2 | E202: =(VLOOKUP(Liste319[[#This Row],[CLUB n°]],I202:J206,2,0)) -> grisé | F202: =Liste117[[#This Row],[Les_Clubs]] -> La Vue-des-Alpes | G202: =COUNTIF(E$301:E$355,A202) -> 7 | I202: 2 | J202: grisé
A203: Le Locle | B203: La Chaux-de-Fonds | C203: Challenge HIVER | D203: 3 | E203: =(VLOOKUP(Liste319[[#This Row],[CLUB n°]],I203:J207,2,0)) -> vert | F203: =Liste117[[#This Row],[Les_Clubs]] -> Le Locle | G203: 6 | I203: 3 | J203: vert
A204: L'Epi | B204: La Vue-des-Alpes | C204: Championnat 1ère manche | D204: 4 | E204: =(VLOOKUP(Liste319[[#This Row],[CLUB n°]],I204:J208,2,0)) -> jaune | F204: =Liste117[[#This Row],[Les_Clubs]] -> L'Epi | G204: 9 | I204: 4 | J204: jaune
B205: Le Locle | C205: Championnat 2ème manche | D205: 5 | E205: =(VLOOKUP(Liste319[[#This Row],[CLUB n°]],I205:J209,2,0)) -> rouge (réserve) | F205: =Liste117[[#This Row],[Les_Clubs]] -> 0 | I205: 5 | J205: rouge (réserve)
B206: L'Epi | C206: Championnat 3ème manche | F206: =Liste117[[#This Row],[Les_Clubs]] -> 0 | J206: le reste est blanc
B207: L'Erguel | C207: Championnat 4ème manche | F207: =Liste117[[#This Row],[Les_Clubs]] -> 0
C208: Championnat 5ème manche | F208: =Liste117[[#This Row],[Les_Clubs]] -> 0
C209: Championnat 6ème manche | F209: =Liste117[[#This Row],[Les_Clubs]] -> 0
C210: Championnat 7ème manche | F210: =Liste117[[#This Row],[Les_Clubs]] -> 0 | G210: Total clubistes
C211: COUPE SUISSE | F211: =Liste117[[#This Row],[Les_Clubs]] -> 0 | G211: =SUM(G201:G210) -> 34
A296: Les Membres
C298: Non modifiable | D298: Non modifiable | F298: Non modifiable | G298: Non modifiable | H298: Non modifiable
A300: Nom | B300: Prenom | C300: NomPrenom | D300: NP | E300: ClubNom | F300: ClubNo | G300: Nom dupl | H300: Prénom dupl | I300: Rue | J300: NPA | K300: Ville | L300: Tél | M300: Courriel | N300: Date de naissance | O300: Joueur depuis | P300: J'utilise Whatsapp
A301: Bart | B301: Fabien | C301: =CONCATENATE(A301," ",B301) -> Bart Fabien | D301: =CONCATENATE(A301,B301) -> BartFabien | E301: Le Locle | F301: =(VLOOKUP(E301,Qui!$A$201:$D$211,4)) -> 3 | G301: =A301 -> Bart | H301: =B301 -> Fabien | I301: La Sagne Eglise 145a | J301: 2314 | K301: La Sagne | L301: +41796958609 | O301: 1993-01-01
A302: Billod-Morel | B302: Gérald | C302: Billod-Morel Gérald | D302: Billod-MorelGérald | E302: La Chaux-de-Fonds | F302: =(VLOOKUP(E302,Qui!$A$201:$D$211,4)) -> 1 | G302: Billod-Morel | H302: Gérald | I302: Cornes-Morel 41 | J302: 2300 | K302: La Chaux-de-Fonds | L302: +41798221983 | M302: geraldbillod@gmail.com | N302: 1971-08-01 | O302: 2017-01-01 | P302: oui
A303: Bourquin | B303: Willy | C303: Bourquin Willy | D303: BourquinWilly | E303: L'Epi | F303: =(VLOOKUP(E303,Qui!$A$201:$D$211,4)) -> 4 | G303: Bourquin | H303: Willy | I303: Les Vieux-Prés 2 | J303: 2054 | K303: Les Vieux-Prés | L303: +41 79 125 29 97 | M303: wbourquin@bluewin.ch | N303: 1944-03-22 | O303: 2012-01-01 | P303: oui
A304: Bühler | B304: Raymond | C304: Bühler Raymond | D304: BühlerRaymond | E304: L'Epi | F304: =(VLOOKUP(E304,Qui!$A$201:$D$211,4)) -> 4 | G304: Bühler | H304: Raymond | I304: Rue du Parc 11 | J304: 2300 | K304: La Chaux-de-Fonds | L304: +41794713615 | M304: rbuhler@hispeed.ch | N304: 1949-06-01 | O304: 1986-01-01 | P304: oui
A305: Cassi | B305: Alain | C305: Cassi Alain | D305: CassiAlain | E305: Le Locle | F305: =(VLOOKUP(E305,Qui!$A$201:$D$211,4)) -> 3 | G305: Cassi | H305: Alain | I305: les Bulles 18 | J305: 2300 | K305: La Chaux-de-Fonds | L305: +41329681245 | M305: alainvero@gmail.com | O305: D 1990
A306: Charlet | B306: Léon | C306: Charlet Léon | D306: CharletLéon | E306: La Vue-des-Alpes | F306: =(VLOOKUP(E306,Qui!$A$201:$D$211,4)) -> 2 | G306: Charlet | H306: Léon | I306: Fritz-Courvoisier 21 | J306: 2300 | K306: La Chaux-de-Fonds | L306: +41795107075 | M306: leonchat@outlook.com | N306: 1998-04-02 | O306: 2019-01-01 | P306: oui
A307: Chassot | B307: Yves | C307: Chassot Yves | D307: ChassotYves | E307: La Vue-des-Alpes | F307: =(VLOOKUP(E307,Qui!$A$201:$D$211,4)) -> 2 | G307: Chassot | H307: Yves | I307: Combes 3 | J307: 2042 | K307: Fontaines | L307: +41 79 482 96 88 | M307: yves.chassot@gmail.com | N307: 1971-02-05 | O307: 2000-01-01 | P307: oui
A308: Dick | B308: Pierre-Alain | C308: Dick Pierre-Alain | D308: DickPierre-Alain | E308: La Vue-des-Alpes | F308: =(VLOOKUP(E308,Qui!$A$201:$D$211,4)) -> 2 | G308: Dick | H308: Pierre-Alain | I308: La Biche 1 | J308: 2054 | K308: Les Vieux-Prés | L308: * 032 853 27 40 +41 79 796 32 34 | M308: pierre-alain.dick@ne.ch | N308: 1967-07-27 | O308: 1997-01-01 | P308: oui
A309: Dubois | B309: Emmanuel | C309: Dubois Emmanuel | D309: DuboisEmmanuel | E309: La Chaux-de-Fonds | F309: =(VLOOKUP(E309,Qui!$A$201:$D$211,4)) -> 1 | G309: Dubois | H309: Emmanuel | I309: Route des Provins 2 | J309: 2087 | K309: Cornaux | L309: +41798980701 | M309: emmanuel.dubois93@gmail.com | N309: 1993-04-05 | O309: 2019-01-01 | P309: oui
A310: Dubois | B310: Eric | C310: Dubois Eric | D310: DuboisEric | E310: La Chaux-de-Fonds | F310: =(VLOOKUP(E310,Qui!$A$201:$D$211,4)) -> 1 | G310: Dubois | H310: Eric | I310: Route de Cottendart 15 | J310: 2013 | K310: Colombier | L310: +41763160852 | M310: eric.dubois311@gmail.com | N310: 1972-03-26 | O310: 2016-01-01 | P310: oui
A311: Dubois | B311: Marcel | C311: Dubois Marcel | D311: DuboisMarcel | E311: La Chaux-de-Fonds | F311: =(VLOOKUP(E311,Qui!$A$201:$D$211,4)) -> 1 | G311: Dubois | H311: Marcel | I311: Rue du Locle 32 | J311: 2300 | K311: La Chaux-de-Fonds | L311: +41764233384 +41329144618 | N311: 1994-12-14 | O311: 1970-01-01
A312: Favre | B312: Daniel | C312: Favre Daniel | D312: FavreDaniel | E312: Le Locle | F312: =(VLOOKUP(E312,Qui!$A$201:$D$211,4)) -> 3 | G312: Favre | H312: Daniel | I312: Rue Jardinière 113 | J312: 2300 | K312: La Chaux-de-Fonds | L312: +41794458191 +41329134030 | O312: 2010-01-01 | P312: oui
A313: Frutiger | B313: Bertrand | C313: Frutiger Bertrand | D313: FrutigerBertrand | E313: L'Epi | F313: =(VLOOKUP(E313,Qui!$A$201:$D$211,4)) -> 4 | G313: Frutiger | H313: Bertrand | I313: Impasse des Saules 1 | J313: 2053 | K313: Cernier | L313: +41794011093 +41328532139 | O313: 2010-01-01
A314: Geiser | B314: Willy | C314: Geiser Willy | D314: GeiserWilly | E314: La Chaux-de-Fonds | F314: =(VLOOKUP(E314,Qui!$A$201:$D$211,4)) -> 1 | G314: Geiser | H314: Willy | I314: Grand Rue | J314: 2052 | K314: Fontainemelon | O314: D 1990
A315: Gerber | B315: Michel | C315: Gerber Michel | D315: GerberMichel | E315: Le Locle | F315: =(VLOOKUP(E315,Qui!$A$201:$D$211,4)) -> 3 | G315: Gerber | H315: Michel | I315: Rue du St-Gothard 34 | J315: 2300 | K315: La Chaux-de-Fonds | L315: +41329269296 +41799265851 | N315: 1965-06-05 | O315: 2013-01-01
A316: Haussener | B316: Philippe | C316: Haussener Philippe | D316: HaussenerPhilippe | E316: La Vue-des-Alpes | F316: =(VLOOKUP(E316,Qui!$A$201:$D$211,4)) -> 2 | G316: Haussener | H316: Philippe | I316: Chemin de la Pépinière 1 | J316: 2046 | K316: Fontaines | L316: +41 79 213 81 65 | M316: haussenerphv@gmail.com | N316: 1968-01-03 | O316: 2014-01-01 | P316: oui
A317: Jean-Mairet | B317: Jean-Claude | C317: Jean-Mairet Jean-Claude | D317: Jean-MairetJean-Claude | E317: La Chaux-de-Fonds | F317: =(VLOOKUP(E317,Qui!$A$201:$D$211,4)) -> 1 | G317: Jean-Mairet | H317: Jean-Claude | I317: Progrès 103 | J317: 2300 | K317: La Chaux-de-Fonds | L317: +41329135462 | N317: 29.05.194 | O317: 2015-01-01
A318: Jeanneret | B318: Louis | C318: Jeanneret Louis | D318: JeanneretLouis | E318: La Vue-des-Alpes | F318: =(VLOOKUP(E318,Qui!$A$201:$D$211,4)) -> 2 | G318: Jeanneret | H318: Louis | I318: Rue de la Promenade 14 | J318: 2052 | K318: Fontainemelon | L318: +41 79 796 39 19 +41328536368 | M318: louis.jeanneret@ne.ch | N318: 1976-04-02 | O318: 2001-01-01 | P318: oui
A319: Kemajl | B319: Fetahi | C319: Kemajl Fetahi | D319: KemajlFetahi | E319: Le Locle | F319: =(VLOOKUP(E319,Qui!$A$201:$D$211,4)) -> 3 | G319: Kemajl | H319: Fetahi | O319: 2015-01-01
A320: Matthey | B320: Pierre | C320: Matthey Pierre | D320: MattheyPierre | E320: La Chaux-de-Fonds | F320: =(VLOOKUP(E320,Qui!$A$201:$D$211,4)) -> 1 | G320: Matthey | H320: Pierre | I320: Rue des Bouleaux 1 | J320: 2300 | K320: La Chaux-de-Fonds | L320: +41793489512 | M320: pierrotmatthey@bluewin.ch | N320: 1951-09-27 | O320: 1972-01-01 | P320: non
A321: Monnier | B321: Christian | C321: Monnier Christian | D321: MonnierChristian | E321: La Chaux-de-Fonds | F321: =(VLOOKUP(E321,Qui!$A$201:$D$211,4)) -> 1 | G321: Monnier | H321: Christian | I321: Rue du Marais 46 | J321: 2300 | K321: La Chaux-de-Fonds | L321: +41793784349 +41329681347 | M321: csmonnier@bluewin.ch | N321: 1962-08-30 | O321: 2003-01-01 | P321: oui
A322: Monnier | B322: Marion | C322: Monnier Marion | D322: MonnierMarion | E322: La Chaux-de-Fonds | F322: =(VLOOKUP(E322,Qui!$A$201:$D$211,4)) -> 1 | G322: Monnier | H322: Marion | O322: 2016-01-01
A323: Mores | B323: Blaise | C323: Mores Blaise | D323: MoresBlaise | E323: L'Epi | F323: =(VLOOKUP(E323,Qui!$A$201:$D$211,4)) -> 4 | G323: Mores | H323: Blaise | I323: Boulevard des Endroits 42 | J323: 2300 | K323: La Chaux-de-Fonds | L323: +41797040891 +41329267877 | M323: catherinemonnin@gmail.com | N323: 1962-10-02 | O323: 1990 a ver | P323: oui
A324: Oppliger | B324: Hervé | C324: Oppliger Hervé | D324: OppligerHervé | E324: La Vue-des-Alpes | F324: =(VLOOKUP(E324,Qui!$A$201:$D$211,4)) -> 2 | G324: Oppliger | H324: Hervé | I324: Le Crêt du Châble 7 | J324: 2057 | K324: Villiers | L324: +41 79 301 51 15 +41328534052 | M324: h.oppliger57@bluewin.ch | N324: 1957-01-26 | O324: 2009-01-01 | P324: oui
A325: Pellaton | B325: Daniel | C325: Pellaton Daniel | D325: PellatonDaniel | E325: L'Epi | F325: =(VLOOKUP(E325,Qui!$A$201:$D$211,4)) -> 4 | G325: Pellaton | H325: Daniel | I325: Rue des Pierres Grises 17 | J325: 2053 | K325: Cernier | L325: +41796757271 +41328520443 | M325: daniel@pellaton.ch | N325: 1958-09-13 | O325: 2008-01-01 | P325: oui
A326: Reichen | B326: Sylvain | C326: Reichen Sylvain | D326: ReichenSylvain | E326: L'Epi | F326: =(VLOOKUP(E326,Qui!$A$201:$D$211,4)) -> 4 | G326: Reichen | H326: Sylvain | I326: Rue des Terraux 41 | J326: 2300 | K326: La Chaux-de-Fonds | L326: +41797680522 +41329685392 | N326: 1944-12-08 | O326: 1972-01-01 | P326: non
A327: Rindlisbacher | B327: Heinz | C327: Rindlisbacher Heinz | D327: RindlisbacherHeinz | E327: L'Epi | F327: =(VLOOKUP(E327,Qui!$A$201:$D$211,4)) -> 4 | G327: Rindlisbacher | H327: Heinz | I327: Chemin du Mont d'Amin 2 | J327: 2052 | K327: Fontainemelon | L327: +41794791816 | M327: heguriba@gmail.com | N327: 1956-02-08 | O327: 2014-01-01 | P327: oui
A328: Rollat | B328: Christian | C328: Rollat Christian | D328: RollatChristian | E328: La Chaux-de-Fonds | F328: =(VLOOKUP(E328,Qui!$A$201:$D$211,4)) -> 1 | G328: Rollat | H328: Christian | I328: Rue du Crêt 2 | J328: 2300 | K328: La Chaux-de-Fonds | L328: +41793320738 +41329684491 | M328: rollat.christian@gmail.com | N328: 1962-03-04 | O328: 2011-01-01 | P328: non
A329: Rossier | B329: Yves-Alain | C329: Rossier Yves-Alain | D329: RossierYves-Alain | E329: L'Epi | F329: =(VLOOKUP(E329,Qui!$A$201:$D$211,4)) -> 4 | G329: Rossier | H329: Yves-Alain | I329: Les Vieux-Prés 3 | J329: 2054 | K329: Les Vieux-Prés | L329: +41797139187 +41328532179 | M329: yarossier@bluewin.ch | N329: 1962-04-03 | O329: 2013-01-01 | P329: oui
A330: Tinguely | B330: Didier | C330: Tinguely Didier | D330: TinguelyDidier | E330: La Chaux-de-Fonds | F330: =(VLOOKUP(E330,Qui!$A$201:$D$211,4)) -> 1 | G330: Tinguely | H330: Didier | I330: Chemin des Sorbiers 21 | J330: 2400 | K330: Le Locle | L330: +41329314702 | O330: 2019-01-01
A331: Tynowski | B331: Lucien | C331: Tynowski Lucien | D331: TynowskiLucien | E331: Le Locle | F331: =(VLOOKUP(E331,Qui!$A$201:$D$211,4)) -> 3 | G331: Tynowski | H331: Lucien | I331: Chemin des Sorbiers 21 | J331: 2400 | K331: Le Locle | L331: +41796703979 +41329314702 | M331: cl.tynowski@hispeed.ch | O331: D 1990 | P331: oui
A332: Voirol | B332: Pierre | C332: Voirol Pierre | D332: VoirolPierre | E332: La Chaux-de-Fonds | F332: =(VLOOKUP(E332,Qui!$A$201:$D$211,4)) -> 1 | G332: Voirol | H332: Pierre | I332: Rue Charles-Humbert 8 | J332: 2300 | K332: La Chaux-de-Fonds | L332: +41329132256 | M332: pierre.voirol@gmail.com | N332: 1962-01-25 | O332: 2014-01-01 | P332: oui
A333: Vuillème | B333: Claude-Alain | C333: =CONCATENATE(A333," ",B333) -> Vuillème Claude-Alain | D333: =CONCATENATE(A333,B333) -> VuillèmeClaude-Alain | E333: La Vue-des-Alpes | F333: =(VLOOKUP(E333,Qui!$A$201:$D$211,4)) -> 2 | G333: =A333 -> Vuillème | H333: =B333 -> Claude-Alain | I333: Les Loges 18 | J333: 2052 | K333: La Vue-des-Alpes | L333: +41328535225 +41794484301 | M333: ca.vuilleme@gmail.com | N333: 1964-06-02 | O333: 2009-01-01 | P333: oui
A334: Wäfler | B334: Jean-Louis | C334: Wäfler Jean-Louis | D334: WäflerJean-Louis | E334: L'Epi | F334: =(VLOOKUP(E334,Qui!$A$201:$D$211,4)) -> 4 | G334: Wäfler | H334: Jean-Louis | I334: Les Foulets 7 | J334: 2300 | K334: La Chaux-de-Fonds | L334: +41774229744 +41329136443 | O334: D 1990 | P334: non
A335: ZZ1 | B335: Z2 | C335: ZZ1 Z2 | D335: ZZ1Z2 | F335: =(VLOOKUP(E335,Qui!$A$201:$D$211,4)) ->  | G335: ZZ1 | H335: Z2
A336: ZZ1 | B336: Z2 | C336: ZZ1 Z2 | D336: ZZ1Z2 | F336: =(VLOOKUP(E336,Qui!$A$201:$D$211,4)) ->  | G336: ZZ1 | H336: Z2
A337: ZZ1 | B337: Z2 | C337: ZZ1 Z2 | D337: ZZ1Z2 | F337: =(VLOOKUP(E337,Qui!$A$201:$D$211,4)) ->  | G337: ZZ1 | H337: Z2
A338: ZZ1 | B338: Z2 | C338: ZZ1 Z2 | D338: ZZ1Z2 | F338: =(VLOOKUP(E338,Qui!$A$201:$D$211,4)) ->  | G338: ZZ1 | H338: Z2
A339: ZZ1 | B339: Z2 | C339: ZZ1 Z2 | D339: ZZ1Z2 | F339: =(VLOOKUP(E339,Qui!$A$201:$D$211,4)) ->  | G339: ZZ1 | H339: Z2
A340: ZZ1 | B340: Z2 | C340: ZZ1 Z2 | D340: ZZ1Z2 | F340: =(VLOOKUP(E340,Qui!$A$201:$D$211,4)) ->  | G340: ZZ1 | H340: Z2
A341: ZZ1 | B341: Z2 | C341: ZZ1 Z2 | D341: ZZ1Z2 | F341: =(VLOOKUP(E341,Qui!$A$201:$D$211,4)) ->  | G341: ZZ1 | H341: Z2
A342: ZZ1 | B342: Z2 | C342: ZZ1 Z2 | D342: ZZ1Z2 | F342: =(VLOOKUP(E342,Qui!$A$201:$D$211,4)) ->  | G342: ZZ1 | H342: Z2
A343: ZZ1 | B343: Z2 | C343: ZZ1 Z2 | D343: ZZ1Z2 | F343: =(VLOOKUP(E343,Qui!$A$201:$D$211,4)) ->  | G343: ZZ1 | H343: Z2
A344: ZZ1 | B344: Z2 | C344: ZZ1 Z2 | D344: ZZ1Z2 | F344: =(VLOOKUP(E344,Qui!$A$201:$D$211,4)) ->  | G344: ZZ1 | H344: Z2
A345: ZZ1 | B345: Z2 | C345: ZZ1 Z2 | D345: ZZ1Z2 | F345: =(VLOOKUP(E345,Qui!$A$201:$D$211,4)) ->  | G345: ZZ1 | H345: Z2
A346: ZZ1 | B346: Z2 | C346: ZZ1 Z2 | D346: ZZ1Z2 | F346: =(VLOOKUP(E346,Qui!$A$201:$D$211,4)) ->  | G346: ZZ1 | H346: Z2
A347: ZZ1 | B347: Z2 | C347: ZZ1 Z2 | D347: ZZ1Z2 | F347: =(VLOOKUP(E347,Qui!$A$201:$D$211,4)) ->  | G347: ZZ1 | H347: Z2
A348: ZZ1 | B348: Z2 | C348: ZZ1 Z2 | D348: ZZ1Z2 | F348: =(VLOOKUP(E348,Qui!$A$201:$D$211,4)) ->  | G348: ZZ1 | H348: Z2
A349: ZZ1 | B349: Z2 | C349: ZZ1 Z2 | D349: ZZ1Z2 | F349: =(VLOOKUP(E349,Qui!$A$201:$D$211,4)) ->  | G349: ZZ1 | H349: Z2
A350: ZZ1 | B350: Z2 | C350: ZZ1 Z2 | D350: ZZ1Z2 | F350: =(VLOOKUP(E350,Qui!$A$201:$D$211,4)) ->  | G350: ZZ1 | H350: Z2
A351: ZZ1 | B351: Z2 | C351: ZZ1 Z2 | D351: ZZ1Z2 | F351: =(VLOOKUP(E351,Qui!$A$201:$D$211,4)) ->  | G351: ZZ1 | H351: Z2
A352: ZZ1 | B352: Z2 | C352: ZZ1 Z2 | D352: ZZ1Z2 | F352: =(VLOOKUP(E352,Qui!$A$201:$D$211,4)) ->  | G352: ZZ1 | H352: Z2
A353: ZZ1 | B353: Z2 | C353: ZZ1 Z2 | D353: ZZ1Z2 | F353: =(VLOOKUP(E353,Qui!$A$201:$D$211,4)) ->  | G353: ZZ1 | H353: Z2
A354: ZZ1 | B354: Z2 | C354: ZZ1 Z2 | D354: ZZ1Z2 | F354: =(VLOOKUP(E354,Qui!$A$201:$D$211,4)) ->  | G354: ZZ1 | H354: Z2
A398: Eléments techniques - Règlements de jeu
A399: Championnat | B399: Championnat
A400: Classement général individuel | B400: Classement par club
A401: Nombre de résultats qui comptent | B401: Nombre de résultats par équipe
A402: 5 | B402: 5
A411: Outils
C414: 1
D415: 1 | E415: Modifications impossibles, classeurs et feuilles protégés
D416: 0 | E416: Modifications possibles, Classeurs et feuilles libres (ATTENTION)
D422: mot de passe : aa
A500: ANCIENS MEMBRES
C502: Non modifiable | D502: Non modifiable | F502: Non modifiable | G502: Non modifiable | H502: Non modifiable
A504: Nom | B504: Prenom | C504: NomPrenom | D504: NP | E504: ClubNom | F504: ClubNo | G504: Nom dupl | H504: Prénom dupl | I504: Rue | J504: NPA | K504: Ville | L504: Tél | M504: Courriel | N504: Date de naissance | O504: Joueur depuis | P504: J'utilise Whatsapp
A505: Blaser | B505: Jean-Pierre | C505: Blaser Jean-Pierre | D505: BlaserJean-Pierre | E505: La Chaux-de-Fonds | F505: 4 | G505: Blaser | H505: Jean-Pierre | I505: Rue de la Croix-Fédérale 48 | J505: 2300 | K505: La Chaux-de-Fonds | L505: +41329132040
A506: Cuche | B506: Roland | C506: Cuche Roland | D506: CucheRoland | E506: La Vue-des-Alpes | F506: 1 | G506: Cuche | H506: Roland | I506: Rue de la Chapelle 8 | J506: 2208 | K506: Les Hauts-Geneveys NE | L506: * 032 853 55 89
A507: Dubois | B507: Georges | C507: Dubois Georges | D507: DuboisGeorges | E507: La Chaux-de-Fonds | F507: 4 | G507: Dubois | H507: Georges | I507: Rue de la Charrière 42 | J507: 2300 | K507: La Chaux-de-Fonds | L507: +41774520866 +41329688312
A508: Kiepfer | B508: Marcel | C508: Kiepfer Marcel | D508: KiepferMarcel | E508: La Vue-des-Alpes | F508: 1 | G508: Kiepfer | H508: Marcel | I508: Rue Monique-St-Hélier 7 | J508: 2300 | K508: La Chaux-de-Fonds | L508: +41796112760 +41329681796 | M508: mkipfer@hispeed.ch
A509: Monnier | B509: Marion | C509: =CONCATENATE(A509," ",B509) -> Monnier Marion | D509: =CONCATENATE(A509,B509) -> MonnierMarion | E509: La Chaux-de-Fonds | F509: =(VLOOKUP(E509,Qui!$A$201:$D$211,4)) -> 1 | G509: =A509 -> Monnier | H509: =B509 -> Marion | O509: 2016-01-01
A510: Oppliger | B510: Sylvain | C510: Oppliger Sylvain | D510: OppligerSylvain | E510: Le Locle | F510: 2 | G510: Oppliger | H510: Sylvain | I510: Route de la Croix 34 | J510: 1589 | K510: Chabrey | M510: sylvano73@hotmail.com
A511: Oppliger | B511: Sylvain | C511: =CONCATENATE(A511," ",B511) -> Oppliger Sylvain | D511: =CONCATENATE(A511,B511) -> OppligerSylvain | E511: Le Locle | F511: =(VLOOKUP(E511,Qui!$A$201:$D$211,4)) -> 3 | G511: =A511 -> Oppliger | H511: =B511 -> Sylvain | O511: 1996-01-01
A512: Rollat | B512: Christian | C512: Rollat Christian | D512: RollatChristian | E512: La Chaux-de-Fonds | F512: 4 | G512: Rollat | H512: Christian | I512: Rue du Crêt 2 | J512: 2300 | K512: La Chaux-de-Fonds | L512: +41329684491
A513: Vuagneux | B513: Charles | C513: Vuagneux Charles | D513: VuagneuxCharles | E513: L'Epi | F513: 5 | G513: Vuagneux | H513: Charles | J513: 2300 | K513: La Chaux-de-Fonds | L513: +41794881660 +41329688369

Sheet Comment (hidden)
A1: Onglet Calendrier
A3: Choisir la compétition dans la liste déroulante
A4: Choisir le Jeu (pont) dans la liste déroulante
A5: Remplir la première date de l'entrainement et les suivantes se mettent automatiquement
A6: Choisir les clubs marqueurs (Un décompte du nombre de marquages ce fait automatiquement)
A7: Attention pour les compétitions à Evologia au regard des examens des Fleuristes (en général début juin)
A8: Si possible tenir comptes des vacances scolaires et de la fermeture du restaurant du Grand-Sommartel
A10: Modifier les dates de Fête La Terre
A11: Mentionner les dates de la Vauquille
A13: Dans le rappel, le nombre de résultats pris en compte provient automatiquement de l'Onglet Qui (Eléments techniques)
A19: Onglet Qui
A21: =Qui!A196 -> Inventaire des Club, Jeux, choix des couleurs
A23: L'exactitude du nom des clubs est IMPERATIVE (On ne peut plus changer)
A24: Chaque entité doit être triée pour elle-même :
A25: - Les_Clubs
A26: - Les Jeux
A27: - Les Compétitions
A29: Le lien couleur entre les_Clubs et Clubs n° se fait entre colonne A et D
A31: On découvre aussi la répartition des joueurs entre les clubs
A33: =Qui!A296 -> Les Membres
A34: Possibilité d'introduire 55 joueurs
A36: Introduire les joueurs (Nom, Prénom, Club, Rue, NPA, Ville, Tél, e-mail) le reste est automatique
A37: Les colonnes C, D, F, G et H sont automatiques (ne pas les remplir)
A39: ==> Si pas trié alors les couleurs des joueurs peuvent être fausses (lancer macro dans Qui "Trier les membres")
A44: =Qui!A398 -> Eléments techniques - Règlements de jeu
A46: Ces éléments sont à vérifier en début de saison :
A47: - Nombre de résultats à comptabiliser par joueur sur le championnat (si tous alors mettre 6 identique au nombre de manches de la saison)
A48: - Nombre de joueurs par équipe pour le championnat ==> on cumule donc les x meilleurs résultats du club de chaque manche)
A51: =Qui!A411 -> Outils
A53: Possibilité de dévérouiller et d'effectuer des modifications
A55: Lancement du tri des membres
A58: Onglets Challenge_x
A61: Les cellules des scores non remplies doivent être à 0
A62: (pour remplir plusieures cellules en 1 fois, sélectionner toutes les cellules voulues, presser sur zéro et pour valider presser sur Ctrl-Return)
A64: Possibilité d'introduire jusqu'à 49 joueurs
A67: En cas d'égalité entre plusieurs joueurs, pour les "départager" selon les critères de l'art 4 :
A68: ==> il faut ajouter . 01 (ou rien) pour le moins bon et jusqu'à .07 pour le meilleur
A71: Pour la manche
A73: a) Introduire les scores sur le classement individuel (Colonnes H6 à J54) en accord avec les membres (Qui)
A74: - Colonne H : Nom
A75: - Colonne I : Prénom
A76: - Colonne J : Score de la manche
A78: b) Une fois les scores de tous les joueurs inscrits, compléter le N° d'équipe pour chaque joueur
A80: - Colonne M : N° de l'équipe (en accord avec la liste des Equipes possibles)
A82: c) Une fois les scores de tous les joueurs inscrits, lancer le tri en cliquant sur "Tri des résultats de la manche x"
A91: Onglets Manche_x
A94: Ne pas trier les classements avant d'introduire les scores
A95: Les cellules des scores non remplies doivent être à 0
A96: (pour remplir plusieures cellules en 1 fois, sélectionner toutes les cellules voulues, presser sur zéro et pour valider presser sur Ctrl-Return)
A98: Possibilité d'afficher jusqu'à 49 joueurs (actuellement les joueurs 36 à 54 sont masqués)
A101: En cas d'égalité entre plusieurs joueurs, pour les "départager" selon les critères de l'art 4 :
A102: ==> il faut ajouter . 01 (ou rien) pour le moins bon et jusqu'à .07 pour le meilleur
A105: Pour la manche
A107: a) Introduire les scores sur le classement individuel (Colonnes M5 à O58) en accord avec les membres (Qui)
A108: - Colonne M : Nom
A109: - Colonne N : Prénom
A110: - Colonne O : Score de la manche
A112: b) Une fois les scores de tous les joueurs inscrits, lancer le tri en cliquant sur "Tri des résultats de la manche1"
A115: Pour les manches suivantes
A117: a) Lancer la préparation en cliquant sur "Préparation de manche x"
A119: b) Introduire les scores sur le classement individuel (Colonnes M5 à O58) - Ne pas trier les classements avant d'introduire les scores
A120: - Colonne M : Nom (si nouveau => à la suite des autres)
A121: - Colonne N : Prénom (si nouveau => à la suite des autres)
A122: - Colonne O : Score de la manche
A124: c) Une fois les scores de tous les joueurs inscrits, lancer le tri en cliquant sur "Tri des résultats de la manche x"
A127: NOTA BENE
A128: les colonnes représentant les manches 8 et 9 son masquées (K et L)
A130: les lignes pour les joueurs > 35 sont masquées au max 54 (40 à 67)
A131: les lignes pour les clubs > 4 sont masquées (66 et 67)
F181: Duplicata Colonne A technique

Sheet Manche_1 (hidden)
A1: Association intercantonale des joueurs de boules Grand Jeu Neuchâtelois
A2: =CONCATENATE("Championnat grand jeu neuchâtelois ",YEAR(Calendrier!B6)) -> Championnat grand jeu neuchâtelois 2020
A3: Classement général individuel | C3: Manches | D3: =Calendrier!F40 -> Le Locle | E3: =Calendrier!F47 -> Grand-Sommartel | F3: =Calendrier!F54 -> L'Epi | G3: =Calendrier!F61 -> La Chaux-de-Fonds | H3: =Calendrier!F68 -> Evologia | I3: =Calendrier!F75 -> La Vue-des-Alpes | J3: =Calendrier!F82 -> 00:00:00 | M3: =CONCATENATE("Général",CHAR(10),"les ",Qui!$A$402," meilleurs") -> Général les 5 meilleurs | P3: =CONCATENATE("Classement de la manche",CHAR(10),Calendrier!F40,CHAR(10),"du",TEXT(Calendrier!F42," jj.mm")," au",TEXT(Calendrier!F45," jj.mm.aaaa")) -> Classement de la manche Le Locle du 29.06 au 02.07.2020 | U3: =CONCATENATE(TEXT(Calendrier!F42," jj.mm")," au",TEXT(Calendrier!F45," jj.mm.aaaa")) -> 29.06 au 02.07.2020
D4: 1 | E4: 2 | F4: 3 | G4: 4 | H4: 5 | I4: 6 | J4: 7 | K4: 8 | L4: 9 | P4: =CONCATENATE("Champion de jeu : ",CHAR(10),P5," ",Q5) -> Champion de jeu : Bart Fabien
A5: 1 | B5: Bart | C5: Fabien | D5: 0 | E5: 0 | F5: 0 | G5: 0 | H5: 0 | I5: 0 | J5: 0 | M5: =SUM(D5:L5*(D5:L5>=LARGE(D5:L5,Qui!$A$402))) -> 0 | N5: =IFERROR((VLOOKUP(CONCATENATE(B5,C5),Qui!$D$301:$F$356,3,)),0) -> 3 | O5: 1 | P5: Bart | Q5: Fabien | R5: 0 | S5: =IFERROR((VLOOKUP(CONCATENATE(P5,Q5),Qui!$D$301:$F$356,3,0)),0) -> 3
A6: 2 | B6: Billod-Morel | C6: Gérald | D6: 0 | E6: 0 | F6: 0 | G6: 0 | H6: 0 | I6: 0 | J6: 0 | M6: =SUM(D6:L6*(D6:L6>=LARGE(D6:L6,Qui!$A$402))) -> 0 | N6: =IFERROR((VLOOKUP(CONCATENATE(B6,C6),Qui!$D$301:$F$356,3,)),0) -> 1 | O6: 2 | P6: Billod-Morel | Q6: Gérald | R6: 0 | S6: =IFERROR((VLOOKUP(CONCATENATE(P6,Q6),Qui!$D$301:$F$356,3,0)),0) -> 1
A7: 3 | B7: Bourquin | C7: Willy | D7: 0 | E7: 0 | F7: 0 | G7: 0 | H7: 0 | I7: 0 | J7: 0 | M7: =SUM(D7:L7*(D7:L7>=LARGE(D7:L7,Qui!$A$402))) -> 0 | N7: =IFERROR((VLOOKUP(CONCATENATE(B7,C7),Qui!$D$301:$F$356,3,)),0) -> 4 | O7: 3 | P7: Bourquin | Q7: Willy | R7: 0 | S7: =IFERROR((VLOOKUP(CONCATENATE(P7,Q7),Qui!$D$301:$F$356,3,0)),0) -> 4
A8: 4 | B8: Bühler | C8: Raymond | D8: 0 | E8: 0 | F8: 0 | G8: 0 | H8: 0 | I8: 0 | J8: 0 | M8: =SUM(D8:L8*(D8:L8>=LARGE(D8:L8,Qui!$A$402))) -> 0 | N8: =IFERROR((VLOOKUP(CONCATENATE(B8,C8),Qui!$D$301:$F$356,3,)),0) -> 4 | O8: 4 | P8: Bühler | Q8: Raymond | R8: 0 | S8: =IFERROR((VLOOKUP(CONCATENATE(P8,Q8),Qui!$D$301:$F$356,3,0)),0) -> 4
A9: 5 | B9: Cassi | C9: Alain | D9: 0 | E9: 0 | F9: 0 | G9: 0 | H9: 0 | I9: 0 | J9: 0 | M9: =SUM(D9:L9*(D9:L9>=LARGE(D9:L9,Qui!$A$402))) -> 0 | N9: =IFERROR((VLOOKUP(CONCATENATE(B9,C9),Qui!$D$301:$F$356,3,)),0) -> 3 | O9: 5 | P9: Cassi | Q9: Alain | R9: 0 | S9: =IFERROR((VLOOKUP(CONCATENATE(P9,Q9),Qui!$D$301:$F$356,3,0)),0) -> 3
A10: 6 | B10: Charlet | C10: Léon | D10: 0 | E10: 0 | F10: 0 | G10: 0 | H10: 0 | I10: 0 | J10: 0 | M10: =SUM(D10:L10*(D10:L10>=LARGE(D10:L10,Qui!$A$402))) -> 0 | N10: =IFERROR((VLOOKUP(CONCATENATE(B10,C10),Qui!$D$301:$F$356,3,)),0) -> 2 | O10: 6 | P10: Charlet | Q10: Léon | R10: 0 | S10: =IFERROR((VLOOKUP(CONCATENATE(P10,Q10),Qui!$D$301:$F$356,3,0)),0) -> 2
A11: 7 | B11: Chassot | C11: Yves | D11: 0 | E11: 0 | F11: 0 | G11: 0 | H11: 0 | I11: 0 | J11: 0 | M11: =SUM(D11:L11*(D11:L11>=LARGE(D11:L11,Qui!$A$402))) -> 0 | N11: =IFERROR((VLOOKUP(CONCATENATE(B11,C11),Qui!$D$301:$F$356,3,)),0) -> 2 | O11: 7 | P11: Chassot | Q11: Yves | R11: 0 | S11: =IFERROR((VLOOKUP(CONCATENATE(P11,Q11),Qui!$D$301:$F$356,3,0)),0) -> 2
A12: 8 | B12: Dick | C12: Pierre-Alain | D12: 0 | E12: 0 | F12: 0 | G12: 0 | H12: 0 | I12: 0 | J12: 0 | M12: =SUM(D12:L12*(D12:L12>=LARGE(D12:L12,Qui!$A$402))) -> 0 | N12: =IFERROR((VLOOKUP(CONCATENATE(B12,C12),Qui!$D$301:$F$356,3,)),0) -> 2 | O12: 8 | P12: Dick | Q12: Pierre-Alain | R12: 0 | S12: =IFERROR((VLOOKUP(CONCATENATE(P12,Q12),Qui!$D$301:$F$356,3,0)),0) -> 2
A13: 9 | B13: Dubois | C13: Emmanuel | D13: 0 | E13: 0 | F13: 0 | G13: 0 | H13: 0 | I13: 0 | J13: 0 | M13: =SUM(D13:L13*(D13:L13>=LARGE(D13:L13,Qui!$A$402))) -> 0 | N13: =IFERROR((VLOOKUP(CONCATENATE(B13,C13),Qui!$D$301:$F$356,3,)),0) -> 1 | O13: 9 | P13: Dubois | Q13: Emmanuel | R13: 0 | S13: =IFERROR((VLOOKUP(CONCATENATE(P13,Q13),Qui!$D$301:$F$356,3,0)),0) -> 1
A14: 10 | B14: Dubois | C14: Eric | D14: 0 | E14: 0 | F14: 0 | G14: 0 | H14: 0 | I14: 0 | J14: 0 | M14: =SUM(D14:L14*(D14:L14>=LARGE(D14:L14,Qui!$A$402))) -> 0 | N14: =IFERROR((VLOOKUP(CONCATENATE(B14,C14),Qui!$D$301:$F$356,3,)),0) -> 1 | O14: 10 | P14: Dubois | Q14: Eric | R14: 0 | S14: =IFERROR((VLOOKUP(CONCATENATE(P14,Q14),Qui!$D$301:$F$356,3,0)),0) -> 1
A15: 11 | B15: Dubois | C15: Marcel | D15: 0 | E15: 0 | F15: 0 | G15: 0 | H15: 0 | I15: 0 | J15: 0 | M15: =SUM(D15:L15*(D15:L15>=LARGE(D15:L15,Qui!$A$402))) -> 0 | N15: =IFERROR((VLOOKUP(CONCATENATE(B15,C15),Qui!$D$301:$F$356,3,)),0) -> 1 | O15: 11 | P15: Dubois | Q15: Marcel | R15: 0 | S15: =IFERROR((VLOOKUP(CONCATENATE(P15,Q15),Qui!$D$301:$F$356,3,0)),0) -> 1
A16: 12 | B16: Favre | C16: Daniel | D16: 0 | E16: 0 | F16: 0 | G16: 0 | H16: 0 | I16: 0 | J16: 0 | M16: =SUM(D16:L16*(D16:L16>=LARGE(D16:L16,Qui!$A$402))) -> 0 | N16: =IFERROR((VLOOKUP(CONCATENATE(B16,C16),Qui!$D$301:$F$356,3,)),0) -> 3 | O16: 12 | P16: Favre | Q16: Daniel | R16: 0 | S16: =IFERROR((VLOOKUP(CONCATENATE(P16,Q16),Qui!$D$301:$F$356,3,0)),0) -> 3
A17: 13 | B17: Frutiger | C17: Bertrand | D17: 0 | E17: 0 | F17: 0 | G17: 0 | H17: 0 | I17: 0 | J17: 0 | M17: =SUM(D17:L17*(D17:L17>=LARGE(D17:L17,Qui!$A$402))) -> 0 | N17: =IFERROR((VLOOKUP(CONCATENATE(B17,C17),Qui!$D$301:$F$356,3,)),0) -> 4 | O17: 13 | P17: Frutiger | Q17: Bertrand | R17: 0 | S17: =IFERROR((VLOOKUP(CONCATENATE(P17,Q17),Qui!$D$301:$F$356,3,0)),0) -> 4
A18: 14 | B18: Geiser | C18: Willy | D18: 0 | E18: 0 | F18: 0 | G18: 0 | H18: 0 | I18: 0 | J18: 0 | M18: =SUM(D18:L18*(D18:L18>=LARGE(D18:L18,Qui!$A$402))) -> 0 | N18: =IFERROR((VLOOKUP(CONCATENATE(B18,C18),Qui!$D$301:$F$356,3,)),0) -> 1 | O18: 14 | P18: Geiser | Q18: Willy | R18: 0 | S18: =IFERROR((VLOOKUP(CONCATENATE(P18,Q18),Qui!$D$301:$F$356,3,0)),0) -> 1
A19: 15 | B19: Gerber | C19: Michel | D19: 0 | E19: 0 | F19: 0 | G19: 0 | H19: 0 | I19: 0 | J19: 0 | M19: =SUM(D19:L19*(D19:L19>=LARGE(D19:L19,Qui!$A$402))) -> 0 | N19: =IFERROR((VLOOKUP(CONCATENATE(B19,C19),Qui!$D$301:$F$356,3,)),0) -> 3 | O19: 15 | P19: Gerber | Q19: Michel | R19: 0 | S19: =IFERROR((VLOOKUP(CONCATENATE(P19,Q19),Qui!$D$301:$F$356,3,0)),0) -> 3
A20: 16 | B20: Haussener | C20: Philippe | D20: 0 | E20: 0 | F20: 0 | G20: 0 | H20: 0 | I20: 0 | J20: 0 | M20: =SUM(D20:L20*(D20:L20>=LARGE(D20:L20,Qui!$A$402))) -> 0 | N20: =IFERROR((VLOOKUP(CONCATENATE(B20,C20),Qui!$D$301:$F$356,3,)),0) -> 2 | O20: 16 | P20: Haussener | Q20: Philippe | R20: 0 | S20: =IFERROR((VLOOKUP(CONCATENATE(P20,Q20),Qui!$D$301:$F$356,3,0)),0) -> 2
A21: 17 | B21: Jean-Mairet | C21: Jean-Claude | D21: 0 | E21: 0 | F21: 0 | G21: 0 | H21: 0 | I21: 0 | J21: 0 | M21: =SUM(D21:L21*(D21:L21>=LARGE(D21:L21,Qui!$A$402))) -> 0 | N21: =IFERROR((VLOOKUP(CONCATENATE(B21,C21),Qui!$D$301:$F$356,3,)),0) -> 1 | O21: 17 | P21: Jean-Mairet | Q21: Jean-Claude | R21: 0 | S21: =IFERROR((VLOOKUP(CONCATENATE(P21,Q21),Qui!$D$301:$F$356,3,0)),0) -> 1
A22: 18 | B22: Jeanneret | C22: Louis | D22: 0 | E22: 0 | F22: 0 | G22: 0 | H22: 0 | I22: 0 | J22: 0 | M22: =SUM(D22:L22*(D22:L22>=LARGE(D22:L22,Qui!$A$402))) -> 0 | N22: =IFERROR((VLOOKUP(CONCATENATE(B22,C22),Qui!$D$301:$F$356,3,)),0) -> 2 | O22: 18 | P22: Jeanneret | Q22: Louis | R22: 0 | S22: =IFERROR((VLOOKUP(CONCATENATE(P22,Q22),Qui!$D$301:$F$356,3,0)),0) -> 2
A23: 19 | B23: Kemajl | C23: Fetahi | D23: 0 | E23: 0 | F23: 0 | G23: 0 | H23: 0 | I23: 0 | J23: 0 | M23: =SUM(D23:L23*(D23:L23>=LARGE(D23:L23,Qui!$A$402))) -> 0 | N23: =IFERROR((VLOOKUP(CONCATENATE(B23,C23),Qui!$D$301:$F$356,3,)),0) -> 3 | O23: 19 | P23: Kemajl | Q23: Fetahi | R23: 0 | S23: =IFERROR((VLOOKUP(CONCATENATE(P23,Q23),Qui!$D$301:$F$356,3,0)),0) -> 3
A24: 20 | B24: Matthey | C24: Pierre | D24: 0 | E24: 0 | F24: 0 | G24: 0 | H24: 0 | I24: 0 | J24: 0 | M24: =SUM(D24:L24*(D24:L24>=LARGE(D24:L24,Qui!$A$402))) -> 0 | N24: =IFERROR((VLOOKUP(CONCATENATE(B24,C24),Qui!$D$301:$F$356,3,)),0) -> 1 | O24: 20 | P24: Matthey | Q24: Pierre | R24: 0 | S24: =IFERROR((VLOOKUP(CONCATENATE(P24,Q24),Qui!$D$301:$F$356,3,0)),0) -> 1
A25: 21 | B25: Monnier | C25: Christian | D25: 0 | E25: 0 | F25: 0 | G25: 0 | H25: 0 | I25: 0 | J25: 0 | M25: =SUM(D25:L25*(D25:L25>=LARGE(D25:L25,Qui!$A$402))) -> 0 | N25: =IFERROR((VLOOKUP(CONCATENATE(B25,C25),Qui!$D$301:$F$356,3,)),0) -> 1 | O25: 21 | P25: Monnier | Q25: Christian | R25: 0 | S25: =IFERROR((VLOOKUP(CONCATENATE(P25,Q25),Qui!$D$301:$F$356,3,0)),0) -> 1
A26: 22 | B26: Monnier | C26: Marion | D26: 0 | E26: 0 | F26: 0 | G26: 0 | H26: 0 | I26: 0 | J26: 0 | M26: =SUM(D26:L26*(D26:L26>=LARGE(D26:L26,Qui!$A$402))) -> 0 | N26: =IFERROR((VLOOKUP(CONCATENATE(B26,C26),Qui!$D$301:$F$356,3,)),0) -> 1 | O26: 22 | P26: Monnier | Q26: Marion | R26: 0 | S26: =IFERROR((VLOOKUP(CONCATENATE(P26,Q26),Qui!$D$301:$F$356,3,0)),0) -> 1
A27: 23 | B27: Mores | C27: Blaise | D27: 0 | E27: 0 | F27: 0 | G27: 0 | H27: 0 | I27: 0 | J27: 0 | M27: =SUM(D27:L27*(D27:L27>=LARGE(D27:L27,Qui!$A$402))) -> 0 | N27: =IFERROR((VLOOKUP(CONCATENATE(B27,C27),Qui!$D$301:$F$356,3,)),0) -> 4 | O27: 23 | P27: Mores | Q27: Blaise | R27: 0 | S27: =IFERROR((VLOOKUP(CONCATENATE(P27,Q27),Qui!$D$301:$F$356,3,0)),0) -> 4
A28: 24 | B28: Oppliger | C28: Hervé | D28: 0 | E28: 0 | F28: 0 | G28: 0 | H28: 0 | I28: 0 | J28: 0 | M28: =SUM(D28:L28*(D28:L28>=LARGE(D28:L28,Qui!$A$402))) -> 0 | N28: =IFERROR((VLOOKUP(CONCATENATE(B28,C28),Qui!$D$301:$F$356,3,)),0) -> 2 | O28: 24 | P28: Oppliger | Q28: Hervé | R28: 0 | S28: =IFERROR((VLOOKUP(CONCATENATE(P28,Q28),Qui!$D$301:$F$356,3,0)),0) -> 2
A29: 25 | B29: Pellaton | C29: Daniel | D29: 0 | E29: 0 | F29: 0 | G29: 0 | H29: 0 | I29: 0 | J29: 0 | M29: =SUM(D29:L29*(D29:L29>=LARGE(D29:L29,Qui!$A$402))) -> 0 | N29: =IFERROR((VLOOKUP(CONCATENATE(B29,C29),Qui!$D$301:$F$356,3,)),0) -> 4 | O29: 25 | P29: Pellaton | Q29: Daniel | R29: 0 | S29: =IFERROR((VLOOKUP(CONCATENATE(P29,Q29),Qui!$D$301:$F$356,3,0)),0) -> 4
A30: 26 | B30: Reichen | C30: Sylvain | D30: 0 | E30: 0 | F30: 0 | G30: 0 | H30: 0 | I30: 0 | J30: 0 | M30: =SUM(D30:L30*(D30:L30>=LARGE(D30:L30,Qui!$A$402))) -> 0 | N30: =IFERROR((VLOOKUP(CONCATENATE(B30,C30),Qui!$D$301:$F$356,3,)),0) -> 4 | O30: 26 | P30: Reichen | Q30: Sylvain | R30: 0 | S30: =IFERROR((VLOOKUP(CONCATENATE(P30,Q30),Qui!$D$301:$F$356,3,0)),0) -> 4
A31: 27 | B31: Rindlisbacher | C31: Heinz | D31: 0 | E31: 0 | F31: 0 | G31: 0 | H31: 0 | I31: 0 | J31: 0 | M31: =SUM(D31:L31*(D31:L31>=LARGE(D31:L31,Qui!$A$402))) -> 0 | N31: =IFERROR((VLOOKUP(CONCATENATE(B31,C31),Qui!$D$301:$F$356,3,)),0) -> 4 | O31: 27 | P31: Rindlisbacher | Q31: Heinz | R31: 0 | S31: =IFERROR((VLOOKUP(CONCATENATE(P31,Q31),Qui!$D$301:$F$356,3,0)),0) -> 4
A32: 28 | B32: Rollat | C32: Christian | D32: 0 | E32: 0 | F32: 0 | G32: 0 | H32: 0 | I32: 0 | J32: 0 | M32: =SUM(D32:L32*(D32:L32>=LARGE(D32:L32,Qui!$A$402))) -> 0 | N32: =IFERROR((VLOOKUP(CONCATENATE(B32,C32),Qui!$D$301:$F$356,3,)),0) -> 1 | O32: 28 | P32: Rollat | Q32: Christian | R32: 0 | S32: =IFERROR((VLOOKUP(CONCATENATE(P32,Q32),Qui!$D$301:$F$356,3,0)),0) -> 1
A33: 29 | B33: Rossier | C33: Yves-Alain | D33: 0 | E33: 0 | F33: 0 | G33: 0 | H33: 0 | I33: 0 | J33: 0 | M33: =SUM(D33:L33*(D33:L33>=LARGE(D33:L33,Qui!$A$402))) -> 0 | N33: =IFERROR((VLOOKUP(CONCATENATE(B33,C33),Qui!$D$301:$F$356,3,)),0) -> 4 | O33: 29 | P33: Rossier | Q33: Yves-Alain | R33: 0 | S33: =IFERROR((VLOOKUP(CONCATENATE(P33,Q33),Qui!$D$301:$F$356,3,0)),0) -> 4
A34: 30 | B34: Tinguely | C34: Didier | D34: 0 | E34: 0 | F34: 0 | G34: 0 | H34: 0 | I34: 0 | J34: 0 | M34: =SUM(D34:L34*(D34:L34>=LARGE(D34:L34,Qui!$A$402))) -> 0 | N34: =IFERROR((VLOOKUP(CONCATENATE(B34,C34),Qui!$D$301:$F$356,3,)),0) -> 1 | O34: 30 | P34: Tinguely | Q34: Didier | R34: 0 | S34: =IFERROR((VLOOKUP(CONCATENATE(P34,Q34),Qui!$D$301:$F$356,3,0)),0) -> 1
A35: 31 | B35: Tynowski | C35: Lucien | D35: 0 | E35: 0 | F35: 0 | G35: 0 | H35: 0 | I35: 0 | J35: 0 | M35: =SUM(D35:L35*(D35:L35>=LARGE(D35:L35,Qui!$A$402))) -> 0 | N35: =IFERROR((VLOOKUP(CONCATENATE(B35,C35),Qui!$D$301:$F$356,3,)),0) -> 3 | O35: 31 | P35: Tynowski | Q35: Lucien | R35: 0 | S35: =IFERROR((VLOOKUP(CONCATENATE(P35,Q35),Qui!$D$301:$F$356,3,0)),0) -> 3
A36: 32 | B36: Voirol | C36: Pierre | D36: 0 | E36: 0 | F36: 0 | G36: 0 | H36: 0 | I36: 0 | J36: 0 | M36: =SUM(D36:L36*(D36:L36>=LARGE(D36:L36,Qui!$A$402))) -> 0 | N36: =IFERROR((VLOOKUP(CONCATENATE(B36,C36),Qui!$D$301:$F$356,3,)),0) -> 1 | O36: 32 | P36: Voirol | Q36: Pierre | R36: 0 | S36: =IFERROR((VLOOKUP(CONCATENATE(P36,Q36),Qui!$D$301:$F$356,3,0)),0) -> 1
A37: 33 | B37: Vuillème | C37: Claude-Alain | D37: 0 | E37: 0 | F37: 0 | G37: 0 | H37: 0 | I37: 0 | J37: 0 | M37: =SUM(D37:L37*(D37:L37>=LARGE(D37:L37,Qui!$A$402))) -> 0 | N37: =IFERROR((VLOOKUP(CONCATENATE(B37,C37),Qui!$D$301:$F$356,3,)),0) -> 2 | O37: 33 | P37: Vuillème | Q37: Claude-Alain | R37: 0 | S37: =IFERROR((VLOOKUP(CONCATENATE(P37,Q37),Qui!$D$301:$F$356,3,0)),0) -> 2
A38: 34 | D38: 0 | E38: 0 | F38: 0 | G38: 0 | H38: 0 | I38: 0 | J38: 0 | M38: =SUM(D38:L38*(D38:L38>=LARGE(D38:L38,Qui!$A$402))) -> 0 | N38: =IFERROR((VLOOKUP(CONCATENATE(B38,C38),Qui!$D$301:$F$356,3,)),0) -> 0 | O38: 34 | R38: 0 | S38: =IFERROR((VLOOKUP(CONCATENATE(P38,Q38),Qui!$D$301:$F$356,3,0)),0) -> 0
A39: 35 | D39: 0 | E39: 0 | F39: 0 | G39: 0 | H39: 0 | I39: 0 | J39: 0 | M39: =SUM(D39:L39*(D39:L39>=LARGE(D39:L39,Qui!$A$402))) -> 0 | N39: =IFERROR((VLOOKUP(CONCATENATE(B39,C39),Qui!$D$301:$F$356,3,)),0) -> 0 | O39: 35 | R39: 0 | S39: =IFERROR((VLOOKUP(CONCATENATE(P39,Q39),Qui!$D$301:$F$356,3,0)),0) -> 0
A40: 36 | D40: 0 | E40: 0 | F40: 0 | G40: 0 | H40: 0 | I40: 0 | J40: 0 | K40: 0 | L40: 0 | M40: =SUM(D40:L40*(D40:L40>=LARGE(D40:L40,Qui!$A$402))) -> 0 | N40: =IFERROR((VLOOKUP(CONCATENATE(B40,C40),Qui!$D$301:$F$356,3,)),0) -> 0 | O40: 36 | R40: 0 | S40: =IFERROR((VLOOKUP(CONCATENATE(P40,Q40),Qui!$D$301:$F$356,3,0)),0) -> 0
A41: 37 | D41: 0 | E41: 0 | F41: 0 | G41: 0 | H41: 0 | I41: 0 | J41: 0 | K41: 0 | L41: 0 | M41: =SUM(D41:L41*(D41:L41>=LARGE(D41:L41,Qui!$A$402))) -> 0 | N41: =IFERROR((VLOOKUP(CONCATENATE(B41,C41),Qui!$D$301:$F$356,3,)),0) -> 0 | O41: 37 | R41: 0 | S41: =IFERROR((VLOOKUP(CONCATENATE(P41,Q41),Qui!$D$301:$F$356,3,0)),0) -> 0
A42: 38 | D42: 0 | E42: 0 | F42: 0 | G42: 0 | H42: 0 | I42: 0 | J42: 0 | K42: 0 | L42: 0 | M42: =SUM(D42:L42*(D42:L42>=LARGE(D42:L42,Qui!$A$402))) -> 0 | N42: =IFERROR((VLOOKUP(CONCATENATE(B42,C42),Qui!$D$301:$F$356,3,)),0) -> 0 | O42: 38 | R42: 0 | S42: =IFERROR((VLOOKUP(CONCATENATE(P42,Q42),Qui!$D$301:$F$356,3,0)),0) -> 0
A43: 39 | D43: 0 | E43: 0 | F43: 0 | G43: 0 | H43: 0 | I43: 0 | J43: 0 | K43: 0 | L43: 0 | M43: =SUM(D43:L43*(D43:L43>=LARGE(D43:L43,Qui!$A$402))) -> 0 | N43: =IFERROR((VLOOKUP(CONCATENATE(B43,C43),Qui!$D$301:$F$356,3,)),0) -> 0 | O43: 39 | R43: 0 | S43: =IFERROR((VLOOKUP(CONCATENATE(P43,Q43),Qui!$D$301:$F$356,3,0)),0) -> 0
A44: 40 | D44: 0 | E44: 0 | F44: 0 | G44: 0 | H44: 0 | I44: 0 | J44: 0 | K44: 0 | L44: 0 | M44: =SUM(D44:L44*(D44:L44>=LARGE(D44:L44,Qui!$A$402))) -> 0 | N44: =IFERROR((VLOOKUP(CONCATENATE(B44,C44),Qui!$D$301:$F$356,3,)),0) -> 0 | O44: 40 | R44: 0 | S44: =IFERROR((VLOOKUP(CONCATENATE(P44,Q44),Qui!$D$301:$F$356,3,0)),0) -> 0
A45: 41 | D45: 0 | E45: 0 | F45: 0 | G45: 0 | H45: 0 | I45: 0 | J45: 0 | K45: 0 | L45: 0 | M45: =SUM(D45:L45*(D45:L45>=LARGE(D45:L45,Qui!$A$402))) -> 0 | N45: =IFERROR((VLOOKUP(CONCATENATE(B45,C45),Qui!$D$301:$F$356,3,)),0) -> 0 | O45: 41 | R45: 0 | S45: =IFERROR((VLOOKUP(CONCATENATE(P45,Q45),Qui!$D$301:$F$356,3,0)),0) -> 0
A46: 42 | D46: 0 | E46: 0 | F46: 0 | G46: 0 | H46: 0 | I46: 0 | J46: 0 | K46: 0 | L46: 0 | M46: =SUM(D46:L46*(D46:L46>=LARGE(D46:L46,Qui!$A$402))) -> 0 | N46: =IFERROR((VLOOKUP(CONCATENATE(B46,C46),Qui!$D$301:$F$356,3,)),0) -> 0 | O46: 42 | R46: 0 | S46: =IFERROR((VLOOKUP(CONCATENATE(P46,Q46),Qui!$D$301:$F$356,3,0)),0) -> 0
A47: 43 | D47: 0 | E47: 0 | F47: 0 | G47: 0 | H47: 0 | I47: 0 | J47: 0 | K47: 0 | L47: 0 | M47: =SUM(D47:L47*(D47:L47>=LARGE(D47:L47,Qui!$A$402))) -> 0 | N47: =IFERROR((VLOOKUP(CONCATENATE(B47,C47),Qui!$D$301:$F$356,3,)),0) -> 0 | O47: 43 | R47: 0 | S47: =IFERROR((VLOOKUP(CONCATENATE(P47,Q47),Qui!$D$301:$F$356,3,0)),0) -> 0
A48: 44 | D48: 0 | E48: 0 | F48: 0 | G48: 0 | H48: 0 | I48: 0 | J48: 0 | K48: 0 | L48: 0 | M48: =SUM(D48:L48*(D48:L48>=LARGE(D48:L48,Qui!$A$402))) -> 0 | N48: =IFERROR((VLOOKUP(CONCATENATE(B48,C48),Qui!$D$301:$F$356,3,)),0) -> 0 | O48: 44 | R48: 0 | S48: =IFERROR((VLOOKUP(CONCATENATE(P48,Q48),Qui!$D$301:$F$356,3,0)),0) -> 0
A49: 45 | D49: 0 | E49: 0 | F49: 0 | G49: 0 | H49: 0 | I49: 0 | J49: 0 | K49: 0 | L49: 0 | M49: =SUM(D49:L49*(D49:L49>=LARGE(D49:L49,Qui!$A$402))) -> 0 | N49: =IFERROR((VLOOKUP(CONCATENATE(B49,C49),Qui!$D$301:$F$356,3,)),0) -> 0 | O49: 45 | R49: 0 | S49: =IFERROR((VLOOKUP(CONCATENATE(P49,Q49),Qui!$D$301:$F$356,3,0)),0) -> 0
A50: 46 | D50: 0 | E50: 0 | F50: 0 | G50: 0 | H50: 0 | I50: 0 | J50: 0 | K50: 0 | L50: 0 | M50: =SUM(D50:L50*(D50:L50>=LARGE(D50:L50,Qui!$A$402))) -> 0 | N50: =IFERROR((VLOOKUP(CONCATENATE(B50,C50),Qui!$D$301:$F$356,3,)),0) -> 0 | O50: 46 | R50: 0 | S50: =IFERROR((VLOOKUP(CONCATENATE(P50,Q50),Qui!$D$301:$F$356,3,0)),0) -> 0
A51: 47 | D51: 0 | E51: 0 | F51: 0 | G51: 0 | H51: 0 | I51: 0 | J51: 0 | K51: 0 | L51: 0 | M51: =SUM(D51:L51*(D51:L51>=LARGE(D51:L51,Qui!$A$402))) -> 0 | N51: =IFERROR((VLOOKUP(CONCATENATE(B51,C51),Qui!$D$301:$F$356,3,)),0) -> 0 | O51: 47 | R51: 0 | S51: =IFERROR((VLOOKUP(CONCATENATE(P51,Q51),Qui!$D$301:$F$356,3,0)),0) -> 0
A52: 48 | D52: 0 | E52: 0 | F52: 0 | G52: 0 | H52: 0 | I52: 0 | J52: 0 | K52: 0 | L52: 0 | M52: =SUM(D52:L52*(D52:L52>=LARGE(D52:L52,Qui!$A$402))) -> 0 | N52: =IFERROR((VLOOKUP(CONCATENATE(B52,C52),Qui!$D$301:$F$356,3,)),0) -> 0 | O52: 48 | R52: 0 | S52: =IFERROR((VLOOKUP(CONCATENATE(P52,Q52),Qui!$D$301:$F$356,3,0)),0) -> 0
A53: 49 | D53: 0 | E53: 0 | F53: 0 | G53: 0 | H53: 0 | I53: 0 | J53: 0 | K53: 0 | L53: 0 | M53: =SUM(D53:L53*(D53:L53>=LARGE(D53:L53,Qui!$A$402))) -> 0 | N53: =IFERROR((VLOOKUP(CONCATENATE(B53,C53),Qui!$D$301:$F$356,3,)),0) -> 0 | O53: 49 | R53: 0 | S53: =IFERROR((VLOOKUP(CONCATENATE(P53,Q53),Qui!$D$301:$F$356,3,0)),0) -> 0
A54: 50 | D54: 0 | E54: 0 | F54: 0 | G54: 0 | H54: 0 | I54: 0 | J54: 0 | K54: 0 | L54: 0 | M54: =SUM(D54:L54*(D54:L54>=LARGE(D54:L54,Qui!$A$402))) -> 0 | N54: =IFERROR((VLOOKUP(CONCATENATE(B54,C54),Qui!$D$301:$F$356,3,)),0) -> 0 | O54: 50 | R54: 0 | S54: =IFERROR((VLOOKUP(CONCATENATE(P54,Q54),Qui!$D$301:$F$356,3,0)),0) -> 0
A55: 51 | D55: 0 | E55: 0 | F55: 0 | G55: 0 | H55: 0 | I55: 0 | J55: 0 | K55: 0 | L55: 0 | M55: =SUM(D55:L55*(D55:L55>=LARGE(D55:L55,Qui!$A$402))) -> 0 | N55: =IFERROR((VLOOKUP(CONCATENATE(B55,C55),Qui!$D$301:$F$356,3,)),0) -> 0 | O55: 51 | R55: 0 | S55: =IFERROR((VLOOKUP(CONCATENATE(P55,Q55),Qui!$D$301:$F$356,3,0)),0) -> 0
A56: 52 | D56: 0 | E56: 0 | F56: 0 | G56: 0 | H56: 0 | I56: 0 | J56: 0 | K56: 0 | L56: 0 | M56: =SUM(D56:L56*(D56:L56>=LARGE(D56:L56,Qui!$A$402))) -> 0 | N56: =IFERROR((VLOOKUP(CONCATENATE(B56,C56),Qui!$D$301:$F$356,3,)),0) -> 0 | O56: 52 | R56: 0 | S56: =IFERROR((VLOOKUP(CONCATENATE(P56,Q56),Qui!$D$301:$F$356,3,0)),0) -> 0
A57: 53 | D57: 0 | E57: 0 | F57: 0 | G57: 0 | H57: 0 | I57: 0 | J57: 0 | K57: 0 | L57: 0 | M57: =SUM(D57:L57*(D57:L57>=LARGE(D57:L57,Qui!$A$402))) -> 0 | N57: =IFERROR((VLOOKUP(CONCATENATE(B57,C57),Qui!$D$301:$F$356,3,)),0) -> 0 | O57: 53 | R57: 0 | S57: =IFERROR((VLOOKUP(CONCATENATE(P57,Q57),Qui!$D$301:$F$356,3,0)),0) -> 0
A58: 54 | D58: 0 | E58: 0 | F58: 0 | G58: 0 | H58: 0 | I58: 0 | J58: 0 | K58: 0 | L58: 0 | M58: =SUM(D58:L58*(D58:L58>=LARGE(D58:L58,Qui!$A$402))) -> 0 | N58: =IFERROR((VLOOKUP(CONCATENATE(B58,C58),Qui!$D$301:$F$356,3,)),0) -> 0 | O58: 54 | R58: 0 | S58: =IFERROR((VLOOKUP(CONCATENATE(P58,Q58),Qui!$D$301:$F$356,3,0)),0) -> 0
D59: =MAX(D5:D58) -> 0 | F59: =MAX(F5:F58) -> 0 | G59: =MAX(G5:G58) -> 0 | I59: =MAX(I5:I58) -> 0 | J59: =MAX(J5:J58) -> 0 | K59: =MAX(K5:K58) -> 0 | L59: =MAX(L5:L58) -> 0
A60: Classement général par équipe | O60: Classement par équipe
A62: 1 | B62: La Chaux-de-Fonds | D62: 0 | M62: =SUM(D62:L62) -> 0 | N62: =VLOOKUP(B62,Qui!$A$201:$D$204,4) -> 1 | O62: 1 | P62: La Chaux-de-Fonds | R62: =SUMPRODUCT(((($S$5:$S$58=S62)*$R$5:$R$58*1))*((($S$5:$S$58=S62)*$R$5:$R$58*1)>=LARGE((($S$5:$S$58=S62)*$R$5:$R$58*1),Qui!$B$402))) -> 0 | S62: =VLOOKUP(P62,Qui!$A$201:$D$204,4) -> 1
A63: 2 | B63: L'Epi | D63: 0 | M63: =SUM(D63:L63) -> 0 | N63: =VLOOKUP(B63,Qui!$A$201:$D$204,4) -> 4 | O63: 2 | P63: L'Epi | R63: =SUMPRODUCT(((($S$5:$S$58=S63)*$R$5:$R$58*1))*((($S$5:$S$58=S63)*$R$5:$R$58*1)>=LARGE((($S$5:$S$58=S63)*$R$5:$R$58*1),Qui!$B$402))) -> 0 | S63: =VLOOKUP(P63,Qui!$A$201:$D$204,4) -> 4
A64: 3 | B64: Le Locle | D64: 0 | M64: =SUM(D64:L64) -> 0 | N64: =VLOOKUP(B64,Qui!$A$201:$D$204,4) -> 3 | O64: 3 | P64: Le Locle | R64: =SUMPRODUCT(((($S$5:$S$58=S64)*$R$5:$R$58*1))*((($S$5:$S$58=S64)*$R$5:$R$58*1)>=LARGE((($S$5:$S$58=S64)*$R$5:$R$58*1),Qui!$B$402))) -> 0 | S64: =VLOOKUP(P64,Qui!$A$201:$D$204,4) -> 3
A65: 4 | B65: La Vue-des-Alpes | D65: 0 | M65: =SUM(D65:L65) -> 0 | N65: =VLOOKUP(B65,Qui!$A$201:$D$204,4) -> 2 | O65: 4 | P65: La Vue-des-Alpes | R65: =SUMPRODUCT(((($S$5:$S$58=S65)*$R$5:$R$58*1))*((($S$5:$S$58=S65)*$R$5:$R$58*1)>=LARGE((($S$5:$S$58=S65)*$R$5:$R$58*1),Qui!$B$402))) -> 0 | S65: =VLOOKUP(P65,Qui!$A$201:$D$204,4) -> 2
A66: 5 | M66: =SUM(D66:L66) ->  | N66: =VLOOKUP(B66,Qui!$A$201:$D$204,4) ->  | O66: 5 | R66: =SUMPRODUCT(((($S$5:$S$58=S66)*$R$5:$R$58*1))*((($S$5:$S$58=S66)*$R$5:$R$58*1)>=LARGE((($S$5:$S$58=S66)*$R$5:$R$58*1),Qui!$B$402))) ->  | S66: =VLOOKUP(P66,Qui!$A$201:$D$204,4) -> 
A67: 6 | N67: =VLOOKUP(B67,Qui!$A$201:$D$204,4) ->  | O67: 6 | R67: =SUMPRODUCT(((($S$5:$S$58=S67)*$R$5:$R$58*1))*((($S$5:$S$58=S67)*$R$5:$R$58*1)>=LARGE((($S$5:$S$58=S67)*$R$5:$R$58*1),Qui!$B$402))) ->  | S67: =VLOOKUP(P67,Qui!$A$201:$D$204,4) -> 
D68: =MAX(D62:D67) ->  | F68: =MAX(F62:F67) -> 0 | G68: =MAX(G62:G67) -> 0 | I68: =MAX(I62:I67) -> 0 | J68: =MAX(J62:J67) -> 0 | K68: =MAX(K62:K67) -> 0 | L68: =MAX(L62:L67) -> 0 | R68: 0
M69: La Chaux-de-Fonds, le 2 septembre 2019, CM / DP
B71: =CONCATENATE("Rappels :") -> Rappels :
B73: =CONCATENATE("a) le classement général par équipe est fait sur le cumul des ",Qui!$B$402," meilleurs résultats individuels de chaque manche") -> a) le classement général par équipe est fait sur le cumul des 5 meilleurs résultats individuels de chaque manche
B74: =CONCATENATE("b) le classement général individuel est fait sur le cumul des ",Qui!$A$402," meilleurs résultats individuels") -> b) le classement général individuel est fait sur le cumul des 5 meilleurs résultats individuels
F199: Duplicata Colonne A technique

Sheet Manche_2 (hidden)
A1: Association intercantonale des joueurs de boules Grand Jeu Neuchâtelois
A2: =CONCATENATE("Championnat grand jeu neuchâtelois ",YEAR(Calendrier!B6)) -> Championnat grand jeu neuchâtelois 2020
A3: Classement général individuel | C3: Manches | D3: =Calendrier!F40 -> Le Locle | E3: =Calendrier!F47 -> Grand-Sommartel | F3: =Calendrier!F54 -> L'Epi | G3: =Calendrier!F61 -> La Chaux-de-Fonds | H3: =Calendrier!F68 -> Evologia | I3: =Calendrier!F75 -> La Vue-des-Alpes | J3: =Calendrier!F82 -> 00:00:00 | M3: =CONCATENATE("Général",CHAR(10),"les ",Qui!$A$402," meilleurs") -> Général les 5 meilleurs | P3: =CONCATENATE("Classement de la manche",CHAR(10),Calendrier!F47,CHAR(10),"du",TEXT(Calendrier!F49," jj.mm")," au",TEXT(Calendrier!F52," jj.mm.aaaa")) -> Classement de la manche Grand-Sommartel du 24.08 au 27.08.2020 | U3: =CONCATENATE(TEXT(Calendrier!F49," jj.mm")," au",TEXT(Calendrier!F52," jj.mm.aaaa")) -> 24.08 au 27.08.2020
D4: 1 | E4: 2 | F4: 3 | G4: 4 | H4: 5 | I4: 6 | J4: 7 | K4: 8 | L4: 9 | P4: =CONCATENATE("Champion de jeu : ",CHAR(10),P5," ",Q5) -> Champion de jeu :
A5: 1 | M5: =SUM(D5:L5*(D5:L5>=LARGE(D5:L5,Qui!$A$402))) ->  | N5: =IFERROR((VLOOKUP(CONCATENATE(B5,C5),Qui!$D$301:$F$356,3,)),0) -> 0 | O5: 1 | R5: 0 | S5: =IFERROR((VLOOKUP(CONCATENATE(P5,Q5),Qui!$D$301:$F$356,3,0)),0) -> 0
A6: 2 | M6: =SUM(D6:L6*(D6:L6>=LARGE(D6:L6,Qui!$A$402))) ->  | N6: =IFERROR((VLOOKUP(CONCATENATE(B6,C6),Qui!$D$301:$F$356,3,)),0) -> 0 | O6: 2 | R6: 0 | S6: =IFERROR((VLOOKUP(CONCATENATE(P6,Q6),Qui!$D$301:$F$356,3,0)),0) -> 0
A7: 3 | M7: =SUM(D7:L7*(D7:L7>=LARGE(D7:L7,Qui!$A$402))) ->  | N7: =IFERROR((VLOOKUP(CONCATENATE(B7,C7),Qui!$D$301:$F$356,3,)),0) -> 0 | O7: 3 | R7: 0 | S7: =IFERROR((VLOOKUP(CONCATENATE(P7,Q7),Qui!$D$301:$F$356,3,0)),0) -> 0
A8: 4 | M8: =SUM(D8:L8*(D8:L8>=LARGE(D8:L8,Qui!$A$402))) ->  | N8: =IFERROR((VLOOKUP(CONCATENATE(B8,C8),Qui!$D$301:$F$356,3,)),0) -> 0 | O8: 4 | R8: 0 | S8: =IFERROR((VLOOKUP(CONCATENATE(P8,Q8),Qui!$D$301:$F$356,3,0)),0) -> 0
A9: 5 | M9: =SUM(D9:L9*(D9:L9>=LARGE(D9:L9,Qui!$A$402))) ->  | N9: =IFERROR((VLOOKUP(CONCATENATE(B9,C9),Qui!$D$301:$F$356,3,)),0) -> 0 | O9: 5 | R9: 0 | S9: =IFERROR((VLOOKUP(CONCATENATE(P9,Q9),Qui!$D$301:$F$356,3,0)),0) -> 0
A10: 6 | M10: =SUM(D10:L10*(D10:L10>=LARGE(D10:L10,Qui!$A$402))) ->  | N10: =IFERROR((VLOOKUP(CONCATENATE(B10,C10),Qui!$D$301:$F$356,3,)),0) -> 0 | O10: 6 | R10: 0 | S10: =IFERROR((VLOOKUP(CONCATENATE(P10,Q10),Qui!$D$301:$F$356,3,0)),0) -> 0
A11: 7 | M11: =SUM(D11:L11*(D11:L11>=LARGE(D11:L11,Qui!$A$402))) ->  | N11: =IFERROR((VLOOKUP(CONCATENATE(B11,C11),Qui!$D$301:$F$356,3,)),0) -> 0 | O11: 7 | R11: 0 | S11: =IFERROR((VLOOKUP(CONCATENATE(P11,Q11),Qui!$D$301:$F$356,3,0)),0) -> 0
A12: 8 | M12: =SUM(D12:L12*(D12:L12>=LARGE(D12:L12,Qui!$A$402))) ->  | N12: =IFERROR((VLOOKUP(CONCATENATE(B12,C12),Qui!$D$301:$F$356,3,)),0) -> 0 | O12: 8 | R12: 0 | S12: =IFERROR((VLOOKUP(CONCATENATE(P12,Q12),Qui!$D$301:$F$356,3,0)),0) -> 0
A13: 9 | M13: =SUM(D13:L13*(D13:L13>=LARGE(D13:L13,Qui!$A$402))) ->  | N13: =IFERROR((VLOOKUP(CONCATENATE(B13,C13),Qui!$D$301:$F$356,3,)),0) -> 0 | O13: 9 | R13: 0 | S13: =IFERROR((VLOOKUP(CONCATENATE(P13,Q13),Qui!$D$301:$F$356,3,0)),0) -> 0
A14: 10 | M14: =SUM(D14:L14*(D14:L14>=LARGE(D14:L14,Qui!$A$402))) ->  | N14: =IFERROR((VLOOKUP(CONCATENATE(B14,C14),Qui!$D$301:$F$356,3,)),0) -> 0 | O14: 10 | R14: 0 | S14: =IFERROR((VLOOKUP(CONCATENATE(P14,Q14),Qui!$D$301:$F$356,3,0)),0) -> 0
A15: 11 | M15: =SUM(D15:L15*(D15:L15>=LARGE(D15:L15,Qui!$A$402))) ->  | N15: =IFERROR((VLOOKUP(CONCATENATE(B15,C15),Qui!$D$301:$F$356,3,)),0) -> 0 | O15: 11 | R15: 0 | S15: =IFERROR((VLOOKUP(CONCATENATE(P15,Q15),Qui!$D$301:$F$356,3,0)),0) -> 0
A16: 12 | M16: =SUM(D16:L16*(D16:L16>=LARGE(D16:L16,Qui!$A$402))) ->  | N16: =IFERROR((VLOOKUP(CONCATENATE(B16,C16),Qui!$D$301:$F$356,3,)),0) -> 0 | O16: 12 | R16: 0 | S16: =IFERROR((VLOOKUP(CONCATENATE(P16,Q16),Qui!$D$301:$F$356,3,0)),0) -> 0
A17: 13 | M17: =SUM(D17:L17*(D17:L17>=LARGE(D17:L17,Qui!$A$402))) ->  | N17: =IFERROR((VLOOKUP(CONCATENATE(B17,C17),Qui!$D$301:$F$356,3,)),0) -> 0 | O17: 13 | R17: 0 | S17: =IFERROR((VLOOKUP(CONCATENATE(P17,Q17),Qui!$D$301:$F$356,3,0)),0) -> 0
A18: 14 | M18: =SUM(D18:L18*(D18:L18>=LARGE(D18:L18,Qui!$A$402))) ->  | N18: =IFERROR((VLOOKUP(CONCATENATE(B18,C18),Qui!$D$301:$F$356,3,)),0) -> 0 | O18: 14 | R18: 0 | S18: =IFERROR((VLOOKUP(CONCATENATE(P18,Q18),Qui!$D$301:$F$356,3,0)),0) -> 0
A19: 15 | M19: =SUM(D19:L19*(D19:L19>=LARGE(D19:L19,Qui!$A$402))) ->  | N19: =IFERROR((VLOOKUP(CONCATENATE(B19,C19),Qui!$D$301:$F$356,3,)),0) -> 0 | O19: 15 | R19: 0 | S19: =IFERROR((VLOOKUP(CONCATENATE(P19,Q19),Qui!$D$301:$F$356,3,0)),0) -> 0
A20: 16 | M20: =SUM(D20:L20*(D20:L20>=LARGE(D20:L20,Qui!$A$402))) ->  | N20: =IFERROR((VLOOKUP(CONCATENATE(B20,C20),Qui!$D$301:$F$356,3,)),0) -> 0 | O20: 16 | R20: 0 | S20: =IFERROR((VLOOKUP(CONCATENATE(P20,Q20),Qui!$D$301:$F$356,3,0)),0) -> 0
A21: 17 | M21: =SUM(D21:L21*(D21:L21>=LARGE(D21:L21,Qui!$A$402))) ->  | N21: =IFERROR((VLOOKUP(CONCATENATE(B21,C21),Qui!$D$301:$F$356,3,)),0) -> 0 | O21: 17 | R21: 0 | S21: =IFERROR((VLOOKUP(CONCATENATE(P21,Q21),Qui!$D$301:$F$356,3,0)),0) -> 0
A22: 18 | M22: =SUM(D22:L22*(D22:L22>=LARGE(D22:L22,Qui!$A$402))) ->  | N22: =IFERROR((VLOOKUP(CONCATENATE(B22,C22),Qui!$D$301:$F$356,3,)),0) -> 0 | O22: 18 | R22: 0 | S22: =IFERROR((VLOOKUP(CONCATENATE(P22,Q22),Qui!$D$301:$F$356,3,0)),0) -> 0
A23: 19 | M23: =SUM(D23:L23*(D23:L23>=LARGE(D23:L23,Qui!$A$402))) ->  | N23: =IFERROR((VLOOKUP(CONCATENATE(B23,C23),Qui!$D$301:$F$356,3,)),0) -> 0 | O23: 19 | R23: 0 | S23: =IFERROR((VLOOKUP(CONCATENATE(P23,Q23),Qui!$D$301:$F$356,3,0)),0) -> 0
A24: 20 | M24: =SUM(D24:L24*(D24:L24>=LARGE(D24:L24,Qui!$A$402))) ->  | N24: =IFERROR((VLOOKUP(CONCATENATE(B24,C24),Qui!$D$301:$F$356,3,)),0) -> 0 | O24: 20 | R24: 0 | S24: =IFERROR((VLOOKUP(CONCATENATE(P24,Q24),Qui!$D$301:$F$356,3,0)),0) -> 0
A25: 21 | M25: =SUM(D25:L25*(D25:L25>=LARGE(D25:L25,Qui!$A$402))) ->  | N25: =IFERROR((VLOOKUP(CONCATENATE(B25,C25),Qui!$D$301:$F$356,3,)),0) -> 0 | O25: 21 | R25: 0 | S25: =IFERROR((VLOOKUP(CONCATENATE(P25,Q25),Qui!$D$301:$F$356,3,0)),0) -> 0
A26: 22 | M26: =SUM(D26:L26*(D26:L26>=LARGE(D26:L26,Qui!$A$402))) ->  | N26: =IFERROR((VLOOKUP(CONCATENATE(B26,C26),Qui!$D$301:$F$356,3,)),0) -> 0 | O26: 22 | R26: 0 | S26: =IFERROR((VLOOKUP(CONCATENATE(P26,Q26),Qui!$D$301:$F$356,3,0)),0) -> 0
A27: 23 | M27: =SUM(D27:L27*(D27:L27>=LARGE(D27:L27,Qui!$A$402))) ->  | N27: =IFERROR((VLOOKUP(CONCATENATE(B27,C27),Qui!$D$301:$F$356,3,)),0) -> 0 | O27: 23 | R27: 0 | S27: =IFERROR((VLOOKUP(CONCATENATE(P27,Q27),Qui!$D$301:$F$356,3,0)),0) -> 0
A28: 24 | M28: =SUM(D28:L28*(D28:L28>=LARGE(D28:L28,Qui!$A$402))) ->  | N28: =IFERROR((VLOOKUP(CONCATENATE(B28,C28),Qui!$D$301:$F$356,3,)),0) -> 0 | O28: 24 | R28: 0 | S28: =IFERROR((VLOOKUP(CONCATENATE(P28,Q28),Qui!$D$301:$F$356,3,0)),0) -> 0
A29: 25 | M29: =SUM(D29:L29*(D29:L29>=LARGE(D29:L29,Qui!$A$402))) ->  | N29: =IFERROR((VLOOKUP(CONCATENATE(B29,C29),Qui!$D$301:$F$356,3,)),0) -> 0 | O29: 25 | R29: 0 | S29: =IFERROR((VLOOKUP(CONCATENATE(P29,Q29),Qui!$D$301:$F$356,3,0)),0) -> 0
A30: 26 | M30: =SUM(D30:L30*(D30:L30>=LARGE(D30:L30,Qui!$A$402))) ->  | N30: =IFERROR((VLOOKUP(CONCATENATE(B30,C30),Qui!$D$301:$F$356,3,)),0) -> 0 | O30: 26 | R30: 0 | S30: =IFERROR((VLOOKUP(CONCATENATE(P30,Q30),Qui!$D$301:$F$356,3,0)),0) -> 0
A31: 27 | M31: =SUM(D31:L31*(D31:L31>=LARGE(D31:L31,Qui!$A$402))) ->  | N31: =IFERROR((VLOOKUP(CONCATENATE(B31,C31),Qui!$D$301:$F$356,3,)),0) -> 0 | O31: 27 | R31: 0 | S31: =IFERROR((VLOOKUP(CONCATENATE(P31,Q31),Qui!$D$301:$F$356,3,0)),0) -> 0
A32: 28 | M32: =SUM(D32:L32*(D32:L32>=LARGE(D32:L32,Qui!$A$402))) ->  | N32: =IFERROR((VLOOKUP(CONCATENATE(B32,C32),Qui!$D$301:$F$356,3,)),0) -> 0 | O32: 28 | R32: 0 | S32: =IFERROR((VLOOKUP(CONCATENATE(P32,Q32),Qui!$D$301:$F$356,3,0)),0) -> 0
A33: 29 | M33: =SUM(D33:L33*(D33:L33>=LARGE(D33:L33,Qui!$A$402))) ->  | N33: =IFERROR((VLOOKUP(CONCATENATE(B33,C33),Qui!$D$301:$F$356,3,)),0) -> 0 | O33: 29 | R33: 0 | S33: =IFERROR((VLOOKUP(CONCATENATE(P33,Q33),Qui!$D$301:$F$356,3,0)),0) -> 0
A34: 30 | M34: =SUM(D34:L34*(D34:L34>=LARGE(D34:L34,Qui!$A$402))) ->  | N34: =IFERROR((VLOOKUP(CONCATENATE(B34,C34),Qui!$D$301:$F$356,3,)),0) -> 0 | O34: 30 | R34: 0 | S34: =IFERROR((VLOOKUP(CONCATENATE(P34,Q34),Qui!$D$301:$F$356,3,0)),0) -> 0
A35: 31 | M35: =SUM(D35:L35*(D35:L35>=LARGE(D35:L35,Qui!$A$402))) ->  | N35: =IFERROR((VLOOKUP(CONCATENATE(B35,C35),Qui!$D$301:$F$356,3,)),0) -> 0 | O35: 31 | R35: 0 | S35: =IFERROR((VLOOKUP(CONCATENATE(P35,Q35),Qui!$D$301:$F$356,3,0)),0) -> 0
A36: 32 | M36: =SUM(D36:L36*(D36:L36>=LARGE(D36:L36,Qui!$A$402))) ->  | N36: =IFERROR((VLOOKUP(CONCATENATE(B36,C36),Qui!$D$301:$F$356,3,)),0) -> 0 | O36: 32 | R36: 0 | S36: =IFERROR((VLOOKUP(CONCATENATE(P36,Q36),Qui!$D$301:$F$356,3,0)),0) -> 0
A37: 33 | M37: =SUM(D37:L37*(D37:L37>=LARGE(D37:L37,Qui!$A$402))) ->  | N37: =IFERROR((VLOOKUP(CONCATENATE(B37,C37),Qui!$D$301:$F$356,3,)),0) -> 0 | O37: 33 | R37: 0 | S37: =IFERROR((VLOOKUP(CONCATENATE(P37,Q37),Qui!$D$301:$F$356,3,0)),0) -> 0
A38: 34 | M38: =SUM(D38:L38*(D38:L38>=LARGE(D38:L38,Qui!$A$402))) ->  | N38: =IFERROR((VLOOKUP(CONCATENATE(B38,C38),Qui!$D$301:$F$356,3,)),0) -> 0 | O38: 34 | R38: 0 | S38: =IFERROR((VLOOKUP(CONCATENATE(P38,Q38),Qui!$D$301:$F$356,3,0)),0) -> 0
A39: 35 | M39: =SUM(D39:L39*(D39:L39>=LARGE(D39:L39,Qui!$A$402))) ->  | N39: =IFERROR((VLOOKUP(CONCATENATE(B39,C39),Qui!$D$301:$F$356,3,)),0) -> 0 | O39: 35 | R39: 0 | S39: =IFERROR((VLOOKUP(CONCATENATE(P39,Q39),Qui!$D$301:$F$356,3,0)),0) -> 0
A40: 36 | D40: 0 | E40: 0 | F40: 0 | G40: 0 | H40: 0 | I40: 0 | J40: 0 | K40: 0 | L40: 0 | M40: =SUM(D40:L40*(D40:L40>=LARGE(D40:L40,Qui!$A$402))) -> 0 | N40: =IFERROR((VLOOKUP(CONCATENATE(B40,C40),Qui!$D$301:$F$356,3,)),0) -> 0 | O40: 36 | R40: 0 | S40: =IFERROR((VLOOKUP(CONCATENATE(P40,Q40),Qui!$D$301:$F$356,3,0)),0) -> 0
A41: 37 | D41: 0 | E41: 0 | F41: 0 | G41: 0 | H41: 0 | I41: 0 | J41: 0 | K41: 0 | L41: 0 | M41: =SUM(D41:L41*(D41:L41>=LARGE(D41:L41,Qui!$A$402))) -> 0 | N41: =IFERROR((VLOOKUP(CONCATENATE(B41,C41),Qui!$D$301:$F$356,3,)),0) -> 0 | O41: 37 | R41: 0 | S41: =IFERROR((VLOOKUP(CONCATENATE(P41,Q41),Qui!$D$301:$F$356,3,0)),0) -> 0
A42: 38 | D42: 0 | E42: 0 | F42: 0 | G42: 0 | H42: 0 | I42: 0 | J42: 0 | K42: 0 | L42: 0 | M42: =SUM(D42:L42*(D42:L42>=LARGE(D42:L42,Qui!$A$402))) -> 0 | N42: =IFERROR((VLOOKUP(CONCATENATE(B42,C42),Qui!$D$301:$F$356,3,)),0) -> 0 | O42: 38 | R42: 0 | S42: =IFERROR((VLOOKUP(CONCATENATE(P42,Q42),Qui!$D$301:$F$356,3,0)),0) -> 0
A43: 39 | D43: 0 | E43: 0 | F43: 0 | G43: 0 | H43: 0 | I43: 0 | J43: 0 | K43: 0 | L43: 0 | M43: =SUM(D43:L43*(D43:L43>=LARGE(D43:L43,Qui!$A$402))) -> 0 | N43: =IFERROR((VLOOKUP(CONCATENATE(B43,C43),Qui!$D$301:$F$356,3,)),0) -> 0 | O43: 39 | R43: 0 | S43: =IFERROR((VLOOKUP(CONCATENATE(P43,Q43),Qui!$D$301:$F$356,3,0)),0) -> 0
A44: 40 | D44: 0 | E44: 0 | F44: 0 | G44: 0 | H44: 0 | I44: 0 | J44: 0 | K44: 0 | L44: 0 | M44: =SUM(D44:L44*(D44:L44>=LARGE(D44:L44,Qui!$A$402))) -> 0 | N44: =IFERROR((VLOOKUP(CONCATENATE(B44,C44),Qui!$D$301:$F$356,3,)),0) -> 0 | O44: 40 | R44: 0 | S44: =IFERROR((VLOOKUP(CONCATENATE(P44,Q44),Qui!$D$301:$F$356,3,0)),0) -> 0
A45: 41 | D45: 0 | E45: 0 | F45: 0 | G45: 0 | H45: 0 | I45: 0 | J45: 0 | K45: 0 | L45: 0 | M45: =SUM(D45:L45*(D45:L45>=LARGE(D45:L45,Qui!$A$402))) -> 0 | N45: =IFERROR((VLOOKUP(CONCATENATE(B45,C45),Qui!$D$301:$F$356,3,)),0) -> 0 | O45: 41 | R45: 0 | S45: =IFERROR((VLOOKUP(CONCATENATE(P45,Q45),Qui!$D$301:$F$356,3,0)),0) -> 0
A46: 42 | D46: 0 | E46: 0 | F46: 0 | G46: 0 | H46: 0 | I46: 0 | J46: 0 | K46: 0 | L46: 0 | M46: =SUM(D46:L46*(D46:L46>=LARGE(D46:L46,Qui!$A$402))) -> 0 | N46: =IFERROR((VLOOKUP(CONCATENATE(B46,C46),Qui!$D$301:$F$356,3,)),0) -> 0 | O46: 42 | R46: 0 | S46: =IFERROR((VLOOKUP(CONCATENATE(P46,Q46),Qui!$D$301:$F$356,3,0)),0) -> 0
A47: 43 | D47: 0 | E47: 0 | F47: 0 | G47: 0 | H47: 0 | I47: 0 | J47: 0 | K47: 0 | L47: 0 | M47: =SUM(D47:L47*(D47:L47>=LARGE(D47:L47,Qui!$A$402))) -> 0 | N47: =IFERROR((VLOOKUP(CONCATENATE(B47,C47),Qui!$D$301:$F$356,3,)),0) -> 0 | O47: 43 | R47: 0 | S47: =IFERROR((VLOOKUP(CONCATENATE(P47,Q47),Qui!$D$301:$F$356,3,0)),0) -> 0
A48: 44 | D48: 0 | E48: 0 | F48: 0 | G48: 0 | H48: 0 | I48: 0 | J48: 0 | K48: 0 | L48: 0 | M48: =SUM(D48:L48*(D48:L48>=LARGE(D48:L48,Qui!$A$402))) -> 0 | N48: =IFERROR((VLOOKUP(CONCATENATE(B48,C48),Qui!$D$301:$F$356,3,)),0) -> 0 | O48: 44 | R48: 0 | S48: =IFERROR((VLOOKUP(CONCATENATE(P48,Q48),Qui!$D$301:$F$356,3,0)),0) -> 0
A49: 45 | D49: 0 | E49: 0 | F49: 0 | G49: 0 | H49: 0 | I49: 0 | J49: 0 | K49: 0 | L49: 0 | M49: =SUM(D49:L49*(D49:L49>=LARGE(D49:L49,Qui!$A$402))) -> 0 | N49: =IFERROR((VLOOKUP(CONCATENATE(B49,C49),Qui!$D$301:$F$356,3,)),0) -> 0 | O49: 45 | R49: 0 | S49: =IFERROR((VLOOKUP(CONCATENATE(P49,Q49),Qui!$D$301:$F$356,3,0)),0) -> 0
A50: 46 | D50: 0 | E50: 0 | F50: 0 | G50: 0 | H50: 0 | I50: 0 | J50: 0 | K50: 0 | L50: 0 | M50: =SUM(D50:L50*(D50:L50>=LARGE(D50:L50,Qui!$A$402))) -> 0 | N50: =IFERROR((VLOOKUP(CONCATENATE(B50,C50),Qui!$D$301:$F$356,3,)),0) -> 0 | O50: 46 | R50: 0 | S50: =IFERROR((VLOOKUP(CONCATENATE(P50,Q50),Qui!$D$301:$F$356,3,0)),0) -> 0
A51: 47 | D51: 0 | E51: 0 | F51: 0 | G51: 0 | H51: 0 | I51: 0 | J51: 0 | K51: 0 | L51: 0 | M51: =SUM(D51:L51*(D51:L51>=LARGE(D51:L51,Qui!$A$402))) -> 0 | N51: =IFERROR((VLOOKUP(CONCATENATE(B51,C51),Qui!$D$301:$F$356,3,)),0) -> 0 | O51: 47 | R51: 0 | S51: =IFERROR((VLOOKUP(CONCATENATE(P51,Q51),Qui!$D$301:$F$356,3,0)),0) -> 0
A52: 48 | D52: 0 | E52: 0 | F52: 0 | G52: 0 | H52: 0 | I52: 0 | J52: 0 | K52: 0 | L52: 0 | M52: =SUM(D52:L52*(D52:L52>=LARGE(D52:L52,Qui!$A$402))) -> 0 | N52: =IFERROR((VLOOKUP(CONCATENATE(B52,C52),Qui!$D$301:$F$356,3,)),0) -> 0 | O52: 48 | R52: 0 | S52: =IFERROR((VLOOKUP(CONCATENATE(P52,Q52),Qui!$D$301:$F$356,3,0)),0) -> 0
A53: 49 | D53: 0 | E53: 0 | F53: 0 | G53: 0 | H53: 0 | I53: 0 | J53: 0 | K53: 0 | L53: 0 | M53: =SUM(D53:L53*(D53:L53>=LARGE(D53:L53,Qui!$A$402))) -> 0 | N53: =IFERROR((VLOOKUP(CONCATENATE(B53,C53),Qui!$D$301:$F$356,3,)),0) -> 0 | O53: 49 | R53: 0 | S53: =IFERROR((VLOOKUP(CONCATENATE(P53,Q53),Qui!$D$301:$F$356,3,0)),0) -> 0
A54: 50 | D54: 0 | E54: 0 | F54: 0 | G54: 0 | H54: 0 | I54: 0 | J54: 0 | K54: 0 | L54: 0 | M54: =SUM(D54:L54*(D54:L54>=LARGE(D54:L54,Qui!$A$402))) -> 0 | N54: =IFERROR((VLOOKUP(CONCATENATE(B54,C54),Qui!$D$301:$F$356,3,)),0) -> 0 | O54: 50 | R54: 0 | S54: =IFERROR((VLOOKUP(CONCATENATE(P54,Q54),Qui!$D$301:$F$356,3,0)),0) -> 0
A55: 51 | D55: 0 | E55: 0 | F55: 0 | G55: 0 | H55: 0 | I55: 0 | J55: 0 | K55: 0 | L55: 0 | M55: =SUM(D55:L55*(D55:L55>=LARGE(D55:L55,Qui!$A$402))) -> 0 | N55: =IFERROR((VLOOKUP(CONCATENATE(B55,C55),Qui!$D$301:$F$356,3,)),0) -> 0 | O55: 51 | R55: 0 | S55: =IFERROR((VLOOKUP(CONCATENATE(P55,Q55),Qui!$D$301:$F$356,3,0)),0) -> 0
A56: 52 | D56: 0 | E56: 0 | F56: 0 | G56: 0 | H56: 0 | I56: 0 | J56: 0 | K56: 0 | L56: 0 | M56: =SUM(D56:L56*(D56:L56>=LARGE(D56:L56,Qui!$A$402))) -> 0 | N56: =IFERROR((VLOOKUP(CONCATENATE(B56,C56),Qui!$D$301:$F$356,3,)),0) -> 0 | O56: 52 | R56: 0 | S56: =IFERROR((VLOOKUP(CONCATENATE(P56,Q56),Qui!$D$301:$F$356,3,0)),0) -> 0
A57: 53 | D57: 0 | E57: 0 | F57: 0 | G57: 0 | H57: 0 | I57: 0 | J57: 0 | K57: 0 | L57: 0 | M57: =SUM(D57:L57*(D57:L57>=LARGE(D57:L57,Qui!$A$402))) -> 0 | N57: =IFERROR((VLOOKUP(CONCATENATE(B57,C57),Qui!$D$301:$F$356,3,)),0) -> 0 | O57: 53 | R57: 0 | S57: =IFERROR((VLOOKUP(CONCATENATE(P57,Q57),Qui!$D$301:$F$356,3,0)),0) -> 0
A58: 54 | D58: 0 | E58: 0 | F58: 0 | G58: 0 | H58: 0 | I58: 0 | J58: 0 | K58: 0 | L58: 0 | M58: =SUM(D58:L58*(D58:L58>=LARGE(D58:L58,Qui!$A$402))) -> 0 | N58: =IFERROR((VLOOKUP(CONCATENATE(B58,C58),Qui!$D$301:$F$356,3,)),0) -> 0 | O58: 54 | R58: 0 | S58: =IFERROR((VLOOKUP(CONCATENATE(P58,Q58),Qui!$D$301:$F$356,3,0)),0) -> 0
D59: =MAX(D5:D58) -> 0 | F59: =MAX(F5:F58) -> 0 | G59: =MAX(G5:G58) -> 0 | I59: =MAX(I5:I58) -> 0 | J59: =MAX(J5:J58) -> 0 | K59: =MAX(K5:K58) -> 0 | L59: =MAX(L5:L58) -> 0
A60: Classement général par équipe | O60: Classement par équipe
A62: 1 | M62: =SUM(D62:L62) -> 0 | N62: =VLOOKUP(B62,Qui!$A$201:$D$204,4) ->  | O62: 1 | R62: 0 | S62: =VLOOKUP(P62,Qui!$A$201:$D$204,4) -> 
A63: 2 | M63: =SUM(D63:L63) -> 0 | N63: =VLOOKUP(B63,Qui!$A$201:$D$204,4) ->  | O63: 2 | R63: 0 | S63: =VLOOKUP(P63,Qui!$A$201:$D$204,4) -> 
A64: 3 | M64: =SUM(D64:L64) -> 0 | N64: =VLOOKUP(B64,Qui!$A$201:$D$204,4) ->  | O64: 3 | R64: 0 | S64: =VLOOKUP(P64,Qui!$A$201:$D$204,4) -> 
A65: 4 | M65: =SUM(D65:L65) -> 0 | N65: =VLOOKUP(B65,Qui!$A$201:$D$204,4) ->  | O65: 4 | R65: 0 | S65: =VLOOKUP(P65,Qui!$A$201:$D$204,4) -> 
A66: 5 | E66: 435 | O66: 5 | R66: 435 | S66: =VLOOKUP(P66,Qui!$A$201:$D$204,4) -> 
A67: 6 | E67: 435 | O67: 6 | R67: 435 | S67: =VLOOKUP(P67,Qui!$A$201:$D$204,4) -> 
D68: =MAX(D62:D67) ->  | F68: =MAX(F62:F67) -> 0 | G68: =MAX(G62:G67) -> 0 | I68: =MAX(I62:I67) -> 0 | J68: =MAX(J62:J67) -> 0 | K68: =MAX(K62:K67) -> 0 | L68: =MAX(L62:L67) -> 0 | R68: 0
M69: La Chaux-de-Fonds, le 17 septembre 2019, CM / DP
B71: =CONCATENATE("Rappels :") -> Rappels :
B73: =CONCATENATE("a) le classement général par équipe est fait sur le cumul des ",Qui!$B$402," meilleurs résultats individuels de chaque manche") -> a) le classement général par équipe est fait sur le cumul des 5 meilleurs résultats individuels de chaque manche
B74: =CONCATENATE("b) le classement général individuel est fait sur le cumul des ",Qui!$A$402," meilleurs résultats individuels") -> b) le classement général individuel est fait sur le cumul des 5 meilleurs résultats individuels
F199: Duplicata Colonne A technique

Sheet Manche_3 (hidden)
A1: Association intercantonale des joueurs de boules Grand Jeu Neuchâtelois
A2: =CONCATENATE("Championnat grand jeu neuchâtelois ",YEAR(Calendrier!B6)) -> Championnat grand jeu neuchâtelois 2020
A3: Classement général individuel | C3: Manches | D3: =Calendrier!F40 -> Le Locle | E3: =Calendrier!F47 -> Grand-Sommartel | F3: =Calendrier!F54 -> L'Epi | G3: =Calendrier!F61 -> La Chaux-de-Fonds | H3: =Calendrier!F68 -> Evologia | I3: =Calendrier!F75 -> La Vue-des-Alpes | J3: =Calendrier!F82 -> 00:00:00 | M3: =CONCATENATE("Général",CHAR(10),"les ",Qui!$A$402," meilleurs") -> Général les 5 meilleurs | P3: =CONCATENATE("Classement de la manche",CHAR(10),Calendrier!F54,CHAR(10),"du",TEXT(Calendrier!F56," jj.mm")," au",TEXT(Calendrier!F59," jj.mm.aaaa")) -> Classement de la manche L'Epi du 07.09 au 10.09.2020 | U3: =CONCATENATE(TEXT(Calendrier!F56," jj.mm")," au",TEXT(Calendrier!F59," jj.mm.aaaa")) -> 07.09 au 10.09.2020
D4: 1 | E4: 2 | F4: 3 | G4: 4 | H4: 5 | I4: 6 | J4: 7 | K4: 8 | L4: 9 | P4: =CONCATENATE("Champion de jeu : ",CHAR(10),P5," ",Q5) -> Champion de jeu :
A5: 1 | M5: =SUM(D5:L5*(D5:L5>=LARGE(D5:L5,Qui!$A$402))) ->  | N5: =IFERROR((VLOOKUP(CONCATENATE(B5,C5),Qui!$D$301:$F$356,3,)),0) -> 0 | O5: 1 | R5: 0 | S5: =IFERROR((VLOOKUP(CONCATENATE(P5,Q5),Qui!$D$301:$F$356,3,0)),0) -> 0
A6: 2 | M6: =SUM(D6:L6*(D6:L6>=LARGE(D6:L6,Qui!$A$402))) ->  | N6: =IFERROR((VLOOKUP(CONCATENATE(B6,C6),Qui!$D$301:$F$356,3,)),0) -> 0 | O6: 2 | R6: 0 | S6: =IFERROR((VLOOKUP(CONCATENATE(P6,Q6),Qui!$D$301:$F$356,3,0)),0) -> 0
A7: 3 | M7: =SUM(D7:L7*(D7:L7>=LARGE(D7:L7,Qui!$A$402))) ->  | N7: =IFERROR((VLOOKUP(CONCATENATE(B7,C7),Qui!$D$301:$F$356,3,)),0) -> 0 | O7: 3 | R7: 0 | S7: =IFERROR((VLOOKUP(CONCATENATE(P7,Q7),Qui!$D$301:$F$356,3,0)),0) -> 0
A8: 4 | M8: =SUM(D8:L8*(D8:L8>=LARGE(D8:L8,Qui!$A$402))) ->  | N8: =IFERROR((VLOOKUP(CONCATENATE(B8,C8),Qui!$D$301:$F$356,3,)),0) -> 0 | O8: 4 | R8: 0 | S8: =IFERROR((VLOOKUP(CONCATENATE(P8,Q8),Qui!$D$301:$F$356,3,0)),0) -> 0
A9: 5 | M9: =SUM(D9:L9*(D9:L9>=LARGE(D9:L9,Qui!$A$402))) ->  | N9: =IFERROR((VLOOKUP(CONCATENATE(B9,C9),Qui!$D$301:$F$356,3,)),0) -> 0 | O9: 5 | R9: 0 | S9: =IFERROR((VLOOKUP(CONCATENATE(P9,Q9),Qui!$D$301:$F$356,3,0)),0) -> 0
A10: 6 | M10: =SUM(D10:L10*(D10:L10>=LARGE(D10:L10,Qui!$A$402))) ->  | N10: =IFERROR((VLOOKUP(CONCATENATE(B10,C10),Qui!$D$301:$F$356,3,)),0) -> 0 | O10: 6 | R10: 0 | S10: =IFERROR((VLOOKUP(CONCATENATE(P10,Q10),Qui!$D$301:$F$356,3,0)),0) -> 0
A11: 7 | M11: =SUM(D11:L11*(D11:L11>=LARGE(D11:L11,Qui!$A$402))) ->  | N11: =IFERROR((VLOOKUP(CONCATENATE(B11,C11),Qui!$D$301:$F$356,3,)),0) -> 0 | O11: 7 | R11: 0 | S11: =IFERROR((VLOOKUP(CONCATENATE(P11,Q11),Qui!$D$301:$F$356,3,0)),0) -> 0
A12: 8 | M12: =SUM(D12:L12*(D12:L12>=LARGE(D12:L12,Qui!$A$402))) ->  | N12: =IFERROR((VLOOKUP(CONCATENATE(B12,C12),Qui!$D$301:$F$356,3,)),0) -> 0 | O12: 8 | R12: 0 | S12: =IFERROR((VLOOKUP(CONCATENATE(P12,Q12),Qui!$D$301:$F$356,3,0)),0) -> 0
A13: 9 | M13: =SUM(D13:L13*(D13:L13>=LARGE(D13:L13,Qui!$A$402))) ->  | N13: =IFERROR((VLOOKUP(CONCATENATE(B13,C13),Qui!$D$301:$F$356,3,)),0) -> 0 | O13: 9 | R13: 0 | S13: =IFERROR((VLOOKUP(CONCATENATE(P13,Q13),Qui!$D$301:$F$356,3,0)),0) -> 0
A14: 10 | M14: =SUM(D14:L14*(D14:L14>=LARGE(D14:L14,Qui!$A$402))) ->  | N14: =IFERROR((VLOOKUP(CONCATENATE(B14,C14),Qui!$D$301:$F$356,3,)),0) -> 0 | O14: 10 | R14: 0 | S14: =IFERROR((VLOOKUP(CONCATENATE(P14,Q14),Qui!$D$301:$F$356,3,0)),0) -> 0
A15: 11 | M15: =SUM(D15:L15*(D15:L15>=LARGE(D15:L15,Qui!$A$402))) ->  | N15: =IFERROR((VLOOKUP(CONCATENATE(B15,C15),Qui!$D$301:$F$356,3,)),0) -> 0 | O15: 11 | R15: 0 | S15: =IFERROR((VLOOKUP(CONCATENATE(P15,Q15),Qui!$D$301:$F$356,3,0)),0) -> 0
A16: 12 | M16: =SUM(D16:L16*(D16:L16>=LARGE(D16:L16,Qui!$A$402))) ->  | N16: =IFERROR((VLOOKUP(CONCATENATE(B16,C16),Qui!$D$301:$F$356,3,)),0) -> 0 | O16: 12 | R16: 0 | S16: =IFERROR((VLOOKUP(CONCATENATE(P16,Q16),Qui!$D$301:$F$356,3,0)),0) -> 0
A17: 13 | M17: =SUM(D17:L17*(D17:L17>=LARGE(D17:L17,Qui!$A$402))) ->  | N17: =IFERROR((VLOOKUP(CONCATENATE(B17,C17),Qui!$D$301:$F$356,3,)),0) -> 0 | O17: 13 | R17: 0 | S17: =IFERROR((VLOOKUP(CONCATENATE(P17,Q17),Qui!$D$301:$F$356,3,0)),0) -> 0
A18: 14 | M18: =SUM(D18:L18*(D18:L18>=LARGE(D18:L18,Qui!$A$402))) ->  | N18: =IFERROR((VLOOKUP(CONCATENATE(B18,C18),Qui!$D$301:$F$356,3,)),0) -> 0 | O18: 14 | R18: 0 | S18: =IFERROR((VLOOKUP(CONCATENATE(P18,Q18),Qui!$D$301:$F$356,3,0)),0) -> 0
A19: 15 | M19: =SUM(D19:L19*(D19:L19>=LARGE(D19:L19,Qui!$A$402))) ->  | N19: =IFERROR((VLOOKUP(CONCATENATE(B19,C19),Qui!$D$301:$F$356,3,)),0) -> 0 | O19: 15 | R19: 0 | S19: =IFERROR((VLOOKUP(CONCATENATE(P19,Q19),Qui!$D$301:$F$356,3,0)),0) -> 0
A20: 16 | M20: =SUM(D20:L20*(D20:L20>=LARGE(D20:L20,Qui!$A$402))) ->  | N20: =IFERROR((VLOOKUP(CONCATENATE(B20,C20),Qui!$D$301:$F$356,3,)),0) -> 0 | O20: 16 | R20: 0 | S20: =IFERROR((VLOOKUP(CONCATENATE(P20,Q20),Qui!$D$301:$F$356,3,0)),0) -> 0
A21: 17 | M21: =SUM(D21:L21*(D21:L21>=LARGE(D21:L21,Qui!$A$402))) ->  | N21: =IFERROR((VLOOKUP(CONCATENATE(B21,C21),Qui!$D$301:$F$356,3,)),0) -> 0 | O21: 17 | R21: 0 | S21: =IFERROR((VLOOKUP(CONCATENATE(P21,Q21),Qui!$D$301:$F$356,3,0)),0) -> 0
A22: 18 | M22: =SUM(D22:L22*(D22:L22>=LARGE(D22:L22,Qui!$A$402))) ->  | N22: =IFERROR((VLOOKUP(CONCATENATE(B22,C22),Qui!$D$301:$F$356,3,)),0) -> 0 | O22: 18 | R22: 0 | S22: =IFERROR((VLOOKUP(CONCATENATE(P22,Q22),Qui!$D$301:$F$356,3,0)),0) -> 0
A23: 19 | M23: =SUM(D23:L23*(D23:L23>=LARGE(D23:L23,Qui!$A$402))) ->  | N23: =IFERROR((VLOOKUP(CONCATENATE(B23,C23),Qui!$D$301:$F$356,3,)),0) -> 0 | O23: 19 | R23: 0 | S23: =IFERROR((VLOOKUP(CONCATENATE(P23,Q23),Qui!$D$301:$F$356,3,0)),0) -> 0
A24: 20 | M24: =SUM(D24:L24*(D24:L24>=LARGE(D24:L24,Qui!$A$402))) ->  | N24: =IFERROR((VLOOKUP(CONCATENATE(B24,C24),Qui!$D$301:$F$356,3,)),0) -> 0 | O24: 20 | R24: 0 | S24: =IFERROR((VLOOKUP(CONCATENATE(P24,Q24),Qui!$D$301:$F$356,3,0)),0) -> 0
A25: 21 | M25: =SUM(D25:L25*(D25:L25>=LARGE(D25:L25,Qui!$A$402))) ->  | N25: =IFERROR((VLOOKUP(CONCATENATE(B25,C25),Qui!$D$301:$F$356,3,)),0) -> 0 | O25: 21 | R25: 0 | S25: =IFERROR((VLOOKUP(CONCATENATE(P25,Q25),Qui!$D$301:$F$356,3,0)),0) -> 0
A26: 22 | M26: =SUM(D26:L26*(D26:L26>=LARGE(D26:L26,Qui!$A$402))) ->  | N26: =IFERROR((VLOOKUP(CONCATENATE(B26,C26),Qui!$D$301:$F$356,3,)),0) -> 0 | O26: 22 | R26: 0 | S26: =IFERROR((VLOOKUP(CONCATENATE(P26,Q26),Qui!$D$301:$F$356,3,0)),0) -> 0
A27: 23 | M27: =SUM(D27:L27*(D27:L27>=LARGE(D27:L27,Qui!$A$402))) ->  | N27: =IFERROR((VLOOKUP(CONCATENATE(B27,C27),Qui!$D$301:$F$356,3,)),0) -> 0 | O27: 23 | R27: 0 | S27: =IFERROR((VLOOKUP(CONCATENATE(P27,Q27),Qui!$D$301:$F$356,3,0)),0) -> 0
A28: 24 | M28: =SUM(D28:L28*(D28:L28>=LARGE(D28:L28,Qui!$A$402))) ->  | N28: =IFERROR((VLOOKUP(CONCATENATE(B28,C28),Qui!$D$301:$F$356,3,)),0) -> 0 | O28: 24 | R28: 0 | S28: =IFERROR((VLOOKUP(CONCATENATE(P28,Q28),Qui!$D$301:$F$356,3,0)),0) -> 0
A29: 25 | M29: =SUM(D29:L29*(D29:L29>=LARGE(D29:L29,Qui!$A$402))) ->  | N29: =IFERROR((VLOOKUP(CONCATENATE(B29,C29),Qui!$D$301:$F$356,3,)),0) -> 0 | O29: 25 | R29: 0 | S29: =IFERROR((VLOOKUP(CONCATENATE(P29,Q29),Qui!$D$301:$F$356,3,0)),0) -> 0
A30: 26 | M30: =SUM(D30:L30*(D30:L30>=LARGE(D30:L30,Qui!$A$402))) ->  | N30: =IFERROR((VLOOKUP(CONCATENATE(B30,C30),Qui!$D$301:$F$356,3,)),0) -> 0 | O30: 26 | R30: 0 | S30: =IFERROR((VLOOKUP(CONCATENATE(P30,Q30),Qui!$D$301:$F$356,3,0)),0) -> 0
A31: 27 | M31: =SUM(D31:L31*(D31:L31>=LARGE(D31:L31,Qui!$A$402))) ->  | N31: =IFERROR((VLOOKUP(CONCATENATE(B31,C31),Qui!$D$301:$F$356,3,)),0) -> 0 | O31: 27 | R31: 0 | S31: =IFERROR((VLOOKUP(CONCATENATE(P31,Q31),Qui!$D$301:$F$356,3,0)),0) -> 0
A32: 28 | M32: =SUM(D32:L32*(D32:L32>=LARGE(D32:L32,Qui!$A$402))) ->  | N32: =IFERROR((VLOOKUP(CONCATENATE(B32,C32),Qui!$D$301:$F$356,3,)),0) -> 0 | O32: 28 | R32: 0 | S32: =IFERROR((VLOOKUP(CONCATENATE(P32,Q32),Qui!$D$301:$F$356,3,0)),0) -> 0
A33: 29 | M33: =SUM(D33:L33*(D33:L33>=LARGE(D33:L33,Qui!$A$402))) ->  | N33: =IFERROR((VLOOKUP(CONCATENATE(B33,C33),Qui!$D$301:$F$356,3,)),0) -> 0 | O33: 29 | R33: 0 | S33: =IFERROR((VLOOKUP(CONCATENATE(P33,Q33),Qui!$D$301:$F$356,3,0)),0) -> 0
A34: 30 | M34: =SUM(D34:L34*(D34:L34>=LARGE(D34:L34,Qui!$A$402))) ->  | N34: =IFERROR((VLOOKUP(CONCATENATE(B34,C34),Qui!$D$301:$F$356,3,)),0) -> 0 | O34: 30 | R34: 0 | S34: =IFERROR((VLOOKUP(CONCATENATE(P34,Q34),Qui!$D$301:$F$356,3,0)),0) -> 0
A35: 31 | M35: =SUM(D35:L35*(D35:L35>=LARGE(D35:L35,Qui!$A$402))) ->  | N35: =IFERROR((VLOOKUP(CONCATENATE(B35,C35),Qui!$D$301:$F$356,3,)),0) -> 0 | O35: 31 | R35: 0 | S35: =IFERROR((VLOOKUP(CONCATENATE(P35,Q35),Qui!$D$301:$F$356,3,0)),0) -> 0
A36: 32 | M36: =SUM(D36:L36*(D36:L36>=LARGE(D36:L36,Qui!$A$402))) ->  | N36: =IFERROR((VLOOKUP(CONCATENATE(B36,C36),Qui!$D$301:$F$356,3,)),0) -> 0 | O36: 32 | R36: 0 | S36: =IFERROR((VLOOKUP(CONCATENATE(P36,Q36),Qui!$D$301:$F$356,3,0)),0) -> 0
A37: 33 | M37: =SUM(D37:L37*(D37:L37>=LARGE(D37:L37,Qui!$A$402))) ->  | N37: =IFERROR((VLOOKUP(CONCATENATE(B37,C37),Qui!$D$301:$F$356,3,)),0) -> 0 | O37: 33 | R37: 0 | S37: =IFERROR((VLOOKUP(CONCATENATE(P37,Q37),Qui!$D$301:$F$356,3,0)),0) -> 0
A38: 34 | M38: =SUM(D38:L38*(D38:L38>=LARGE(D38:L38,Qui!$A$402))) ->  | N38: =IFERROR((VLOOKUP(CONCATENATE(B38,C38),Qui!$D$301:$F$356,3,)),0) -> 0 | O38: 34 | R38: 0 | S38: =IFERROR((VLOOKUP(CONCATENATE(P38,Q38),Qui!$D$301:$F$356,3,0)),0) -> 0
A39: 35 | M39: =SUM(D39:L39*(D39:L39>=LARGE(D39:L39,Qui!$A$402))) ->  | N39: =IFERROR((VLOOKUP(CONCATENATE(B39,C39),Qui!$D$301:$F$356,3,)),0) -> 0 | O39: 35 | R39: 0 | S39: =IFERROR((VLOOKUP(CONCATENATE(P39,Q39),Qui!$D$301:$F$356,3,0)),0) -> 0
A40: 36 | D40: 0 | E40: 0 | F40: 0 | G40: 0 | H40: 0 | I40: 0 | J40: 0 | K40: 0 | L40: 0 | M40: =SUM(D40:L40*(D40:L40>=LARGE(D40:L40,Qui!$A$402))) -> 0 | N40: =IFERROR((VLOOKUP(CONCATENATE(B40,C40),Qui!$D$301:$F$356,3,)),0) -> 0 | O40: 36 | R40: 0 | S40: =IFERROR((VLOOKUP(CONCATENATE(P40,Q40),Qui!$D$301:$F$356,3,0)),0) -> 0
A41: 37 | D41: 0 | E41: 0 | F41: 0 | G41: 0 | H41: 0 | I41: 0 | J41: 0 | K41: 0 | L41: 0 | M41: =SUM(D41:L41*(D41:L41>=LARGE(D41:L41,Qui!$A$402))) -> 0 | N41: =IFERROR((VLOOKUP(CONCATENATE(B41,C41),Qui!$D$301:$F$356,3,)),0) -> 0 | O41: 37 | R41: 0 | S41: =IFERROR((VLOOKUP(CONCATENATE(P41,Q41),Qui!$D$301:$F$356,3,0)),0) -> 0
A42: 38 | D42: 0 | E42: 0 | F42: 0 | G42: 0 | H42: 0 | I42: 0 | J42: 0 | K42: 0 | L42: 0 | M42: =SUM(D42:L42*(D42:L42>=LARGE(D42:L42,Qui!$A$402))) -> 0 | N42: =IFERROR((VLOOKUP(CONCATENATE(B42,C42),Qui!$D$301:$F$356,3,)),0) -> 0 | O42: 38 | R42: 0 | S42: =IFERROR((VLOOKUP(CONCATENATE(P42,Q42),Qui!$D$301:$F$356,3,0)),0) -> 0
A43: 39 | D43: 0 | E43: 0 | F43: 0 | G43: 0 | H43: 0 | I43: 0 | J43: 0 | K43: 0 | L43: 0 | M43: =SUM(D43:L43*(D43:L43>=LARGE(D43:L43,Qui!$A$402))) -> 0 | N43: =IFERROR((VLOOKUP(CONCATENATE(B43,C43),Qui!$D$301:$F$356,3,)),0) -> 0 | O43: 39 | R43: 0 | S43: =IFERROR((VLOOKUP(CONCATENATE(P43,Q43),Qui!$D$301:$F$356,3,0)),0) -> 0
A44: 40 | D44: 0 | E44: 0 | F44: 0 | G44: 0 | H44: 0 | I44: 0 | J44: 0 | K44: 0 | L44: 0 | M44: =SUM(D44:L44*(D44:L44>=LARGE(D44:L44,Qui!$A$402))) -> 0 | N44: =IFERROR((VLOOKUP(CONCATENATE(B44,C44),Qui!$D$301:$F$356,3,)),0) -> 0 | O44: 40 | R44: 0 | S44: =IFERROR((VLOOKUP(CONCATENATE(P44,Q44),Qui!$D$301:$F$356,3,0)),0) -> 0
A45: 41 | D45: 0 | E45: 0 | F45: 0 | G45: 0 | H45: 0 | I45: 0 | J45: 0 | K45: 0 | L45: 0 | M45: =SUM(D45:L45*(D45:L45>=LARGE(D45:L45,Qui!$A$402))) -> 0 | N45: =IFERROR((VLOOKUP(CONCATENATE(B45,C45),Qui!$D$301:$F$356,3,)),0) -> 0 | O45: 41 | R45: 0 | S45: =IFERROR((VLOOKUP(CONCATENATE(P45,Q45),Qui!$D$301:$F$356,3,0)),0) -> 0
A46: 42 | D46: 0 | E46: 0 | F46: 0 | G46: 0 | H46: 0 | I46: 0 | J46: 0 | K46: 0 | L46: 0 | M46: =SUM(D46:L46*(D46:L46>=LARGE(D46:L46,Qui!$A$402))) -> 0 | N46: =IFERROR((VLOOKUP(CONCATENATE(B46,C46),Qui!$D$301:$F$356,3,)),0) -> 0 | O46: 42 | R46: 0 | S46: =IFERROR((VLOOKUP(CONCATENATE(P46,Q46),Qui!$D$301:$F$356,3,0)),0) -> 0
A47: 43 | D47: 0 | E47: 0 | F47: 0 | G47: 0 | H47: 0 | I47: 0 | J47: 0 | K47: 0 | L47: 0 | M47: =SUM(D47:L47*(D47:L47>=LARGE(D47:L47,Qui!$A$402))) -> 0 | N47: =IFERROR((VLOOKUP(CONCATENATE(B47,C47),Qui!$D$301:$F$356,3,)),0) -> 0 | O47: 43 | R47: 0 | S47: =IFERROR((VLOOKUP(CONCATENATE(P47,Q47),Qui!$D$301:$F$356,3,0)),0) -> 0
A48: 44 | D48: 0 | E48: 0 | F48: 0 | G48: 0 | H48: 0 | I48: 0 | J48: 0 | K48: 0 | L48: 0 | M48: =SUM(D48:L48*(D48:L48>=LARGE(D48:L48,Qui!$A$402))) -> 0 | N48: =IFERROR((VLOOKUP(CONCATENATE(B48,C48),Qui!$D$301:$F$356,3,)),0) -> 0 | O48: 44 | R48: 0 | S48: =IFERROR((VLOOKUP(CONCATENATE(P48,Q48),Qui!$D$301:$F$356,3,0)),0) -> 0
A49: 45 | D49: 0 | E49: 0 | F49: 0 | G49: 0 | H49: 0 | I49: 0 | J49: 0 | K49: 0 | L49: 0 | M49: =SUM(D49:L49*(D49:L49>=LARGE(D49:L49,Qui!$A$402))) -> 0 | N49: =IFERROR((VLOOKUP(CONCATENATE(B49,C49),Qui!$D$301:$F$356,3,)),0) -> 0 | O49: 45 | R49: 0 | S49: =IFERROR((VLOOKUP(CONCATENATE(P49,Q49),Qui!$D$301:$F$356,3,0)),0) -> 0
A50: 46 | D50: 0 | E50: 0 | F50: 0 | G50: 0 | H50: 0 | I50: 0 | J50: 0 | K50: 0 | L50: 0 | M50: =SUM(D50:L50*(D50:L50>=LARGE(D50:L50,Qui!$A$402))) -> 0 | N50: =IFERROR((VLOOKUP(CONCATENATE(B50,C50),Qui!$D$301:$F$356,3,)),0) -> 0 | O50: 46 | R50: 0 | S50: =IFERROR((VLOOKUP(CONCATENATE(P50,Q50),Qui!$D$301:$F$356,3,0)),0) -> 0
A51: 47 | D51: 0 | E51: 0 | F51: 0 | G51: 0 | H51: 0 | I51: 0 | J51: 0 | K51: 0 | L51: 0 | M51: =SUM(D51:L51*(D51:L51>=LARGE(D51:L51,Qui!$A$402))) -> 0 | N51: =IFERROR((VLOOKUP(CONCATENATE(B51,C51),Qui!$D$301:$F$356,3,)),0) -> 0 | O51: 47 | R51: 0 | S51: =IFERROR((VLOOKUP(CONCATENATE(P51,Q51),Qui!$D$301:$F$356,3,0)),0) -> 0
A52: 48 | D52: 0 | E52: 0 | F52: 0 | G52: 0 | H52: 0 | I52: 0 | J52: 0 | K52: 0 | L52: 0 | M52: =SUM(D52:L52*(D52:L52>=LARGE(D52:L52,Qui!$A$402))) -> 0 | N52: =IFERROR((VLOOKUP(CONCATENATE(B52,C52),Qui!$D$301:$F$356,3,)),0) -> 0 | O52: 48 | R52: 0 | S52: =IFERROR((VLOOKUP(CONCATENATE(P52,Q52),Qui!$D$301:$F$356,3,0)),0) -> 0
A53: 49 | D53: 0 | E53: 0 | F53: 0 | G53: 0 | H53: 0 | I53: 0 | J53: 0 | K53: 0 | L53: 0 | M53: =SUM(D53:L53*(D53:L53>=LARGE(D53:L53,Qui!$A$402))) -> 0 | N53: =IFERROR((VLOOKUP(CONCATENATE(B53,C53),Qui!$D$301:$F$356,3,)),0) -> 0 | O53: 49 | R53: 0 | S53: =IFERROR((VLOOKUP(CONCATENATE(P53,Q53),Qui!$D$301:$F$356,3,0)),0) -> 0
A54: 50 | D54: 0 | E54: 0 | F54: 0 | G54: 0 | H54: 0 | I54: 0 | J54: 0 | K54: 0 | L54: 0 | M54: =SUM(D54:L54*(D54:L54>=LARGE(D54:L54,Qui!$A$402))) -> 0 | N54: =IFERROR((VLOOKUP(CONCATENATE(B54,C54),Qui!$D$301:$F$356,3,)),0) -> 0 | O54: 50 | R54: 0 | S54: =IFERROR((VLOOKUP(CONCATENATE(P54,Q54),Qui!$D$301:$F$356,3,0)),0) -> 0
A55: 51 | D55: 0 | E55: 0 | F55: 0 | G55: 0 | H55: 0 | I55: 0 | J55: 0 | K55: 0 | L55: 0 | M55: =SUM(D55:L55*(D55:L55>=LARGE(D55:L55,Qui!$A$402))) -> 0 | N55: =IFERROR((VLOOKUP(CONCATENATE(B55,C55),Qui!$D$301:$F$356,3,)),0) -> 0 | O55: 51 | R55: 0 | S55: =IFERROR((VLOOKUP(CONCATENATE(P55,Q55),Qui!$D$301:$F$356,3,0)),0) -> 0
A56: 52 | D56: 0 | E56: 0 | F56: 0 | G56: 0 | H56: 0 | I56: 0 | J56: 0 | K56: 0 | L56: 0 | M56: =SUM(D56:L56*(D56:L56>=LARGE(D56:L56,Qui!$A$402))) -> 0 | N56: =IFERROR((VLOOKUP(CONCATENATE(B56,C56),Qui!$D$301:$F$356,3,)),0) -> 0 | O56: 52 | R56: 0 | S56: =IFERROR((VLOOKUP(CONCATENATE(P56,Q56),Qui!$D$301:$F$356,3,0)),0) -> 0
A57: 53 | E57: 0 | F57: 0 | G57: 0 | H57: 0 | I57: 0 | J57: 0 | K57: 0 | L57: 0 | M57: =SUM(D57:L57*(D57:L57>=LARGE(D57:L57,Qui!$A$402))) -> 0 | N57: =IFERROR((VLOOKUP(CONCATENATE(B57,C57),Qui!$D$301:$F$356,3,)),0) -> 0 | O57: 53 | R57: 0 | S57: =IFERROR((VLOOKUP(CONCATENATE(P57,Q57),Qui!$D$301:$F$356,3,0)),0) -> 0
A58: 54 | E58: 0 | F58: 0 | G58: 0 | H58: 0 | I58: 0 | J58: 0 | K58: 0 | L58: 0 | M58: =SUM(D58:L58*(D58:L58>=LARGE(D58:L58,Qui!$A$402))) -> 0 | N58: =IFERROR((VLOOKUP(CONCATENATE(B58,C58),Qui!$D$301:$F$356,3,)),0) -> 0 | O58: 54 | R58: 0 | S58: =IFERROR((VLOOKUP(CONCATENATE(P58,Q58),Qui!$D$301:$F$356,3,0)),0) -> 0
D59: =MAX(D5:D58) -> 0 | F59: =MAX(F5:F58) -> 0 | G59: =MAX(G5:G58) -> 0 | I59: =MAX(I5:I58) -> 0 | J59: =MAX(J5:J58) -> 0 | K59: =MAX(K5:K58) -> 0 | L59: =MAX(L5:L58) -> 0
A60: Classement général par équipe | O60: Classement par équipe
A62: 1 | M62: =SUM(D62:L62) -> 0 | N62: =VLOOKUP(B62,Qui!$A$201:$D$204,4) ->  | O62: 1 | R62: 0 | S62: =VLOOKUP(P62,Qui!$A$201:$D$204,4) -> 
A63: 2 | M63: 0 | N63: =VLOOKUP(B63,Qui!$A$201:$D$204,4) ->  | O63: 2 | R63: 0 | S63: =VLOOKUP(P63,Qui!$A$201:$D$204,4) -> 
A64: 3 | M64: 0 | N64: =VLOOKUP(B64,Qui!$A$201:$D$204,4) ->  | O64: 3 | R64: 0 | S64: =VLOOKUP(P64,Qui!$A$201:$D$204,4) -> 
A65: 4 | M65: 0 | N65: =VLOOKUP(B65,Qui!$A$201:$D$204,4) ->  | O65: 4 | R65: 0 | S65: =VLOOKUP(P65,Qui!$A$201:$D$204,4) -> 
A66: 5 | E66: 435 | N66: =VLOOKUP(B66,Qui!$A$201:$D$204,4) ->  | O66: 5 | R66: =SUMPRODUCT(((($S$5:$S$58=S66)*$R$5:$R$58*1))*((($S$5:$S$58=S66)*$R$5:$R$58*1)>=LARGE((($S$5:$S$58=S66)*$R$5:$R$58*1),Qui!$B$402))) ->  | S66: =VLOOKUP(P66,Qui!$A$201:$D$204,4) -> 
A67: 6 | E67: 435 | N67: =VLOOKUP(B67,Qui!$A$201:$D$204,4) ->  | O67: 6 | R67: =SUMPRODUCT(((($S$5:$S$58=S67)*$R$5:$R$58*1))*((($S$5:$S$58=S67)*$R$5:$R$58*1)>=LARGE((($S$5:$S$58=S67)*$R$5:$R$58*1),Qui!$B$402))) ->  | S67: =VLOOKUP(P67,Qui!$A$201:$D$204,4) -> 
D68: =MAX(D62:D67) -> 0 | F68: =MAX(F62:F67) ->  | G68: =MAX(G62:G67) -> 0 | I68: =MAX(I62:I67) -> 0 | J68: =MAX(J62:J67) -> 0 | K68: =MAX(K62:K67) -> 0 | L68: =MAX(L62:L67) -> 0 | R68: 0
M69: La Chaux-de-Fonds, le 08 octobre 2019, CM / DP
B71: =CONCATENATE("Rappels :") -> Rappels :
B73: =CONCATENATE("a) le classement général par équipe est fait sur le cumul des ",Qui!$B$402," meilleurs résultats individuels de chaque manche") -> a) le classement général par équipe est fait sur le cumul des 5 meilleurs résultats individuels de chaque manche
B74: =CONCATENATE("b) le classement général individuel est fait sur le cumul des ",Qui!$A$402," meilleurs résultats individuels") -> b) le classement général individuel est fait sur le cumul des 5 meilleurs résultats individuels
F199: Duplicata Colonne A technique

Sheet Manche_4 (hidden)
A1: Association intercantonale des joueurs de boules Grand Jeu Neuchâtelois
A2: =CONCATENATE("Championnat grand jeu neuchâtelois ",YEAR(Calendrier!B6)) -> Championnat grand jeu neuchâtelois 2020
A3: Classement général individuel | C3: Manches | D3: =Calendrier!F40 -> Le Locle | E3: =Calendrier!F47 -> Grand-Sommartel | F3: =Calendrier!F54 -> L'Epi | G3: =Calendrier!F61 -> La Chaux-de-Fonds | H3: =Calendrier!F68 -> Evologia | I3: =Calendrier!F75 -> La Vue-des-Alpes | J3: =Calendrier!F82 -> 00:00:00 | M3: =CONCATENATE("Général",CHAR(10),"les ",Qui!$A$402," meilleurs") -> Général les 5 meilleurs | P3: =CONCATENATE("Classement de la manche",CHAR(10),Calendrier!F61,CHAR(10),"du",TEXT(Calendrier!F63," jj.mm")," au",TEXT(Calendrier!F66," jj.mm.aaaa")) -> Classement de la manche La Chaux-de-Fonds du 05.10 au 08.10.2020 | U3: =CONCATENATE(TEXT(Calendrier!F63," jj.mm")," au",TEXT(Calendrier!F66," jj.mm.aaaa")) -> 05.10 au 08.10.2020
D4: 1 | E4: 2 | F4: 3 | G4: 4 | H4: 5 | I4: 6 | J4: 7 | K4: 8 | L4: 9 | P4: =CONCATENATE("Champion de jeu : ",CHAR(10),P5," ",Q5) -> Champion de jeu :
A5: 1 | M5: =SUM(D5:L5*(D5:L5>=LARGE(D5:L5,Qui!$A$402))) ->  | N5: =IFERROR((VLOOKUP(CONCATENATE(B5,C5),Qui!$D$301:$F$356,3,)),0) -> 0 | O5: 1 | R5: 0 | S5: =IFERROR((VLOOKUP(CONCATENATE(P5,Q5),Qui!$D$301:$F$356,3,0)),0) -> 0
A6: 2 | M6: =SUM(D6:L6*(D6:L6>=LARGE(D6:L6,Qui!$A$402))) ->  | N6: =IFERROR((VLOOKUP(CONCATENATE(B6,C6),Qui!$D$301:$F$356,3,)),0) -> 0 | O6: 2 | R6: 0 | S6: =IFERROR((VLOOKUP(CONCATENATE(P6,Q6),Qui!$D$301:$F$356,3,0)),0) -> 0
A7: 3 | M7: =SUM(D7:L7*(D7:L7>=LARGE(D7:L7,Qui!$A$402))) ->  | N7: =IFERROR((VLOOKUP(CONCATENATE(B7,C7),Qui!$D$301:$F$356,3,)),0) -> 0 | O7: 3 | R7: 0 | S7: =IFERROR((VLOOKUP(CONCATENATE(P7,Q7),Qui!$D$301:$F$356,3,0)),0) -> 0
A8: 4 | M8: =SUM(D8:L8*(D8:L8>=LARGE(D8:L8,Qui!$A$402))) ->  | N8: =IFERROR((VLOOKUP(CONCATENATE(B8,C8),Qui!$D$301:$F$356,3,)),0) -> 0 | O8: 4 | R8: 0 | S8: =IFERROR((VLOOKUP(CONCATENATE(P8,Q8),Qui!$D$301:$F$356,3,0)),0) -> 0
A9: 5 | M9: =SUM(D9:L9*(D9:L9>=LARGE(D9:L9,Qui!$A$402))) ->  | N9: =IFERROR((VLOOKUP(CONCATENATE(B9,C9),Qui!$D$301:$F$356,3,)),0) -> 0 | O9: 5 | R9: 0 | S9: =IFERROR((VLOOKUP(CONCATENATE(P9,Q9),Qui!$D$301:$F$356,3,0)),0) -> 0
A10: 6 | M10: =SUM(D10:L10*(D10:L10>=LARGE(D10:L10,Qui!$A$402))) ->  | N10: =IFERROR((VLOOKUP(CONCATENATE(B10,C10),Qui!$D$301:$F$356,3,)),0) -> 0 | O10: 6 | R10: 0 | S10: =IFERROR((VLOOKUP(CONCATENATE(P10,Q10),Qui!$D$301:$F$356,3,0)),0) -> 0
A11: 7 | M11: =SUM(D11:L11*(D11:L11>=LARGE(D11:L11,Qui!$A$402))) ->  | N11: =IFERROR((VLOOKUP(CONCATENATE(B11,C11),Qui!$D$301:$F$356,3,)),0) -> 0 | O11: 7 | R11: 0 | S11: =IFERROR((VLOOKUP(CONCATENATE(P11,Q11),Qui!$D$301:$F$356,3,0)),0) -> 0
A12: 8 | M12: =SUM(D12:L12*(D12:L12>=LARGE(D12:L12,Qui!$A$402))) ->  | N12: =IFERROR((VLOOKUP(CONCATENATE(B12,C12),Qui!$D$301:$F$356,3,)),0) -> 0 | O12: 8 | R12: 0 | S12: =IFERROR((VLOOKUP(CONCATENATE(P12,Q12),Qui!$D$301:$F$356,3,0)),0) -> 0
A13: 9 | M13: =SUM(D13:L13*(D13:L13>=LARGE(D13:L13,Qui!$A$402))) ->  | N13: =IFERROR((VLOOKUP(CONCATENATE(B13,C13),Qui!$D$301:$F$356,3,)),0) -> 0 | O13: 9 | R13: 0 | S13: =IFERROR((VLOOKUP(CONCATENATE(P13,Q13),Qui!$D$301:$F$356,3,0)),0) -> 0
A14: 10 | M14: =SUM(D14:L14*(D14:L14>=LARGE(D14:L14,Qui!$A$402))) ->  | N14: =IFERROR((VLOOKUP(CONCATENATE(B14,C14),Qui!$D$301:$F$356,3,)),0) -> 0 | O14: 10 | R14: 0 | S14: =IFERROR((VLOOKUP(CONCATENATE(P14,Q14),Qui!$D$301:$F$356,3,0)),0) -> 0
A15: 11 | M15: =SUM(D15:L15*(D15:L15>=LARGE(D15:L15,Qui!$A$402))) ->  | N15: =IFERROR((VLOOKUP(CONCATENATE(B15,C15),Qui!$D$301:$F$356,3,)),0) -> 0 | O15: 11 | R15: 0 | S15: =IFERROR((VLOOKUP(CONCATENATE(P15,Q15),Qui!$D$301:$F$356,3,0)),0) -> 0
A16: 12 | M16: =SUM(D16:L16*(D16:L16>=LARGE(D16:L16,Qui!$A$402))) ->  | N16: =IFERROR((VLOOKUP(CONCATENATE(B16,C16),Qui!$D$301:$F$356,3,)),0) -> 0 | O16: 12 | R16: 0 | S16: =IFERROR((VLOOKUP(CONCATENATE(P16,Q16),Qui!$D$301:$F$356,3,0)),0) -> 0
A17: 13 | M17: =SUM(D17:L17*(D17:L17>=LARGE(D17:L17,Qui!$A$402))) ->  | N17: =IFERROR((VLOOKUP(CONCATENATE(B17,C17),Qui!$D$301:$F$356,3,)),0) -> 0 | O17: 13 | R17: 0 | S17: =IFERROR((VLOOKUP(CONCATENATE(P17,Q17),Qui!$D$301:$F$356,3,0)),0) -> 0
A18: 14 | M18: =SUM(D18:L18*(D18:L18>=LARGE(D18:L18,Qui!$A$402))) ->  | N18: =IFERROR((VLOOKUP(CONCATENATE(B18,C18),Qui!$D$301:$F$356,3,)),0) -> 0 | O18: 14 | R18: 0 | S18: =IFERROR((VLOOKUP(CONCATENATE(P18,Q18),Qui!$D$301:$F$356,3,0)),0) -> 0
A19: 15 | M19: =SUM(D19:L19*(D19:L19>=LARGE(D19:L19,Qui!$A$402))) ->  | N19: =IFERROR((VLOOKUP(CONCATENATE(B19,C19),Qui!$D$301:$F$356,3,)),0) -> 0 | O19: 15 | R19: 0 | S19: =IFERROR((VLOOKUP(CONCATENATE(P19,Q19),Qui!$D$301:$F$356,3,0)),0) -> 0
A20: 16 | M20: =SUM(D20:L20*(D20:L20>=LARGE(D20:L20,Qui!$A$402))) ->  | N20: =IFERROR((VLOOKUP(CONCATENATE(B20,C20),Qui!$D$301:$F$356,3,)),0) -> 0 | O20: 16 | R20: 0 | S20: =IFERROR((VLOOKUP(CONCATENATE(P20,Q20),Qui!$D$301:$F$356,3,0)),0) -> 0
A21: 17 | M21: =SUM(D21:L21*(D21:L21>=LARGE(D21:L21,Qui!$A$402))) ->  | N21: =IFERROR((VLOOKUP(CONCATENATE(B21,C21),Qui!$D$301:$F$356,3,)),0) -> 0 | O21: 17 | R21: 0 | S21: =IFERROR((VLOOKUP(CONCATENATE(P21,Q21),Qui!$D$301:$F$356,3,0)),0) -> 0
A22: 18 | M22: =SUM(D22:L22*(D22:L22>=LARGE(D22:L22,Qui!$A$402))) ->  | N22: =IFERROR((VLOOKUP(CONCATENATE(B22,C22),Qui!$D$301:$F$356,3,)),0) -> 0 | O22: 18 | R22: 0 | S22: =IFERROR((VLOOKUP(CONCATENATE(P22,Q22),Qui!$D$301:$F$356,3,0)),0) -> 0
A23: 19 | M23: =SUM(D23:L23*(D23:L23>=LARGE(D23:L23,Qui!$A$402))) ->  | N23: =IFERROR((VLOOKUP(CONCATENATE(B23,C23),Qui!$D$301:$F$356,3,)),0) -> 0 | O23: 19 | R23: 0 | S23: =IFERROR((VLOOKUP(CONCATENATE(P23,Q23),Qui!$D$301:$F$356,3,0)),0) -> 0
A24: 20 | M24: =SUM(D24:L24*(D24:L24>=LARGE(D24:L24,Qui!$A$402))) ->  | N24: =IFERROR((VLOOKUP(CONCATENATE(B24,C24),Qui!$D$301:$F$356,3,)),0) -> 0 | O24: 20 | R24: 0 | S24: =IFERROR((VLOOKUP(CONCATENATE(P24,Q24),Qui!$D$301:$F$356,3,0)),0) -> 0
A25: 21 | M25: =SUM(D25:L25*(D25:L25>=LARGE(D25:L25,Qui!$A$402))) ->  | N25: =IFERROR((VLOOKUP(CONCATENATE(B25,C25),Qui!$D$301:$F$356,3,)),0) -> 0 | O25: 21 | R25: 0 | S25: =IFERROR((VLOOKUP(CONCATENATE(P25,Q25),Qui!$D$301:$F$356,3,0)),0) -> 0
A26: 22 | M26: =SUM(D26:L26*(D26:L26>=LARGE(D26:L26,Qui!$A$402))) ->  | N26: =IFERROR((VLOOKUP(CONCATENATE(B26,C26),Qui!$D$301:$F$356,3,)),0) -> 0 | O26: 22 | R26: 0 | S26: =IFERROR((VLOOKUP(CONCATENATE(P26,Q26),Qui!$D$301:$F$356,3,0)),0) -> 0
A27: 23 | M27: =SUM(D27:L27*(D27:L27>=LARGE(D27:L27,Qui!$A$402))) ->  | N27: =IFERROR((VLOOKUP(CONCATENATE(B27,C27),Qui!$D$301:$F$356,3,)),0) -> 0 | O27: 23 | R27: 0 | S27: =IFERROR((VLOOKUP(CONCATENATE(P27,Q27),Qui!$D$301:$F$356,3,0)),0) -> 0
A28: 24 | M28: =SUM(D28:L28*(D28:L28>=LARGE(D28:L28,Qui!$A$402))) ->  | N28: =IFERROR((VLOOKUP(CONCATENATE(B28,C28),Qui!$D$301:$F$356,3,)),0) -> 0 | O28: 24 | R28: 0 | S28: =IFERROR((VLOOKUP(CONCATENATE(P28,Q28),Qui!$D$301:$F$356,3,0)),0) -> 0
A29: 25 | M29: =SUM(D29:L29*(D29:L29>=LARGE(D29:L29,Qui!$A$402))) ->  | N29: =IFERROR((VLOOKUP(CONCATENATE(B29,C29),Qui!$D$301:$F$356,3,)),0) -> 0 | O29: 25 | R29: 0 | S29: =IFERROR((VLOOKUP(CONCATENATE(P29,Q29),Qui!$D$301:$F$356,3,0)),0) -> 0
A30: 26 | M30: =SUM(D30:L30*(D30:L30>=LARGE(D30:L30,Qui!$A$402))) ->  | N30: =IFERROR((VLOOKUP(CONCATENATE(B30,C30),Qui!$D$301:$F$356,3,)),0) -> 0 | O30: 26 | R30: 0 | S30: =IFERROR((VLOOKUP(CONCATENATE(P30,Q30),Qui!$D$301:$F$356,3,0)),0) -> 0
A31: 27 | M31: =SUM(D31:L31*(D31:L31>=LARGE(D31:L31,Qui!$A$402))) ->  | N31: =IFERROR((VLOOKUP(CONCATENATE(B31,C31),Qui!$D$301:$F$356,3,)),0) -> 0 | O31: 27 | R31: 0 | S31: =IFERROR((VLOOKUP(CONCATENATE(P31,Q31),Qui!$D$301:$F$356,3,0)),0) -> 0
A32: 28 | M32: =SUM(D32:L32*(D32:L32>=LARGE(D32:L32,Qui!$A$402))) ->  | N32: =IFERROR((VLOOKUP(CONCATENATE(B32,C32),Qui!$D$301:$F$356,3,)),0) -> 0 | O32: 28 | R32: 0 | S32: =IFERROR((VLOOKUP(CONCATENATE(P32,Q32),Qui!$D$301:$F$356,3,0)),0) -> 0
A33: 29 | M33: =SUM(D33:L33*(D33:L33>=LARGE(D33:L33,Qui!$A$402))) ->  | N33: =IFERROR((VLOOKUP(CONCATENATE(B33,C33),Qui!$D$301:$F$356,3,)),0) -> 0 | O33: 29 | R33: 0 | S33: =IFERROR((VLOOKUP(CONCATENATE(P33,Q33),Qui!$D$301:$F$356,3,0)),0) -> 0
A34: 30 | M34: =SUM(D34:L34*(D34:L34>=LARGE(D34:L34,Qui!$A$402))) ->  | N34: =IFERROR((VLOOKUP(CONCATENATE(B34,C34),Qui!$D$301:$F$356,3,)),0) -> 0 | O34: 30 | R34: 0 | S34: =IFERROR((VLOOKUP(CONCATENATE(P34,Q34),Qui!$D$301:$F$356,3,0)),0) -> 0
A35: 31 | M35: =SUM(D35:L35*(D35:L35>=LARGE(D35:L35,Qui!$A$402))) ->  | N35: =IFERROR((VLOOKUP(CONCATENATE(B35,C35),Qui!$D$301:$F$356,3,)),0) -> 0 | O35: 31 | R35: 0 | S35: =IFERROR((VLOOKUP(CONCATENATE(P35,Q35),Qui!$D$301:$F$356,3,0)),0) -> 0
A36: 32 | M36: =SUM(D36:L36*(D36:L36>=LARGE(D36:L36,Qui!$A$402))) ->  | N36: =IFERROR((VLOOKUP(CONCATENATE(B36,C36),Qui!$D$301:$F$356,3,)),0) -> 0 | O36: 32 | R36: 0 | S36: =IFERROR((VLOOKUP(CONCATENATE(P36,Q36),Qui!$D$301:$F$356,3,0)),0) -> 0
A37: 33 | M37: =SUM(D37:L37*(D37:L37>=LARGE(D37:L37,Qui!$A$402))) ->  | N37: =IFERROR((VLOOKUP(CONCATENATE(B37,C37),Qui!$D$301:$F$356,3,)),0) -> 0 | O37: 33 | R37: 0 | S37: =IFERROR((VLOOKUP(CONCATENATE(P37,Q37),Qui!$D$301:$F$356,3,0)),0) -> 0
A38: 34 | M38: =SUM(D38:L38*(D38:L38>=LARGE(D38:L38,Qui!$A$402))) ->  | N38: =IFERROR((VLOOKUP(CONCATENATE(B38,C38),Qui!$D$301:$F$356,3,)),0) -> 0 | O38: 34 | R38: 0 | S38: =IFERROR((VLOOKUP(CONCATENATE(P38,Q38),Qui!$D$301:$F$356,3,0)),0) -> 0
A39: 35 | M39: =SUM(D39:L39*(D39:L39>=LARGE(D39:L39,Qui!$A$402))) ->  | N39: =IFERROR((VLOOKUP(CONCATENATE(B39,C39),Qui!$D$301:$F$356,3,)),0) -> 0 | O39: 35 | R39: 0 | S39: =IFERROR((VLOOKUP(CONCATENATE(P39,Q39),Qui!$D$301:$F$356,3,0)),0) -> 0
A40: 36 | D40: 0 | E40: 0 | F40: 0 | G40: 0 | H40: 0 | I40: 0 | J40: 0 | K40: 0 | L40: 0 | M40: =SUM(D40:L40*(D40:L40>=LARGE(D40:L40,Qui!$A$402))) -> 0 | N40: =IFERROR((VLOOKUP(CONCATENATE(B40,C40),Qui!$D$301:$F$356,3,)),0) -> 0 | O40: 36 | R40: 0 | S40: =IFERROR((VLOOKUP(CONCATENATE(P40,Q40),Qui!$D$301:$F$356,3,0)),0) -> 0
A41: 37 | D41: 0 | E41: 0 | F41: 0 | G41: 0 | H41: 0 | I41: 0 | J41: 0 | K41: 0 | L41: 0 | M41: =SUM(D41:L41*(D41:L41>=LARGE(D41:L41,Qui!$A$402))) -> 0 | N41: =IFERROR((VLOOKUP(CONCATENATE(B41,C41),Qui!$D$301:$F$356,3,)),0) -> 0 | O41: 37 | R41: 0 | S41: =IFERROR((VLOOKUP(CONCATENATE(P41,Q41),Qui!$D$301:$F$356,3,0)),0) -> 0
A42: 38 | D42: 0 | E42: 0 | F42: 0 | G42: 0 | H42: 0 | I42: 0 | J42: 0 | K42: 0 | L42: 0 | M42: =SUM(D42:L42*(D42:L42>=LARGE(D42:L42,Qui!$A$402))) -> 0 | N42: =IFERROR((VLOOKUP(CONCATENATE(B42,C42),Qui!$D$301:$F$356,3,)),0) -> 0 | O42: 38 | R42: 0 | S42: =IFERROR((VLOOKUP(CONCATENATE(P42,Q42),Qui!$D$301:$F$356,3,0)),0) -> 0
A43: 39 | D43: 0 | E43: 0 | F43: 0 | G43: 0 | H43: 0 | I43: 0 | J43: 0 | K43: 0 | L43: 0 | M43: =SUM(D43:L43*(D43:L43>=LARGE(D43:L43,Qui!$A$402))) -> 0 | N43: =IFERROR((VLOOKUP(CONCATENATE(B43,C43),Qui!$D$301:$F$356,3,)),0) -> 0 | O43: 39 | R43: 0 | S43: =IFERROR((VLOOKUP(CONCATENATE(P43,Q43),Qui!$D$301:$F$356,3,0)),0) -> 0
A44: 40 | D44: 0 | E44: 0 | F44: 0 | G44: 0 | H44: 0 | I44: 0 | J44: 0 | K44: 0 | L44: 0 | M44: =SUM(D44:L44*(D44:L44>=LARGE(D44:L44,Qui!$A$402))) -> 0 | N44: =IFERROR((VLOOKUP(CONCATENATE(B44,C44),Qui!$D$301:$F$356,3,)),0) -> 0 | O44: 40 | R44: 0 | S44: =IFERROR((VLOOKUP(CONCATENATE(P44,Q44),Qui!$D$301:$F$356,3,0)),0) -> 0
A45: 41 | D45: 0 | E45: 0 | F45: 0 | G45: 0 | H45: 0 | I45: 0 | J45: 0 | K45: 0 | L45: 0 | M45: =SUM(D45:L45*(D45:L45>=LARGE(D45:L45,Qui!$A$402))) -> 0 | N45: =IFERROR((VLOOKUP(CONCATENATE(B45,C45),Qui!$D$301:$F$356,3,)),0) -> 0 | O45: 41 | R45: 0 | S45: =IFERROR((VLOOKUP(CONCATENATE(P45,Q45),Qui!$D$301:$F$356,3,0)),0) -> 0
A46: 42 | D46: 0 | E46: 0 | F46: 0 | G46: 0 | H46: 0 | I46: 0 | J46: 0 | K46: 0 | L46: 0 | M46: =SUM(D46:L46*(D46:L46>=LARGE(D46:L46,Qui!$A$402))) -> 0 | N46: =IFERROR((VLOOKUP(CONCATENATE(B46,C46),Qui!$D$301:$F$356,3,)),0) -> 0 | O46: 42 | R46: 0 | S46: =IFERROR((VLOOKUP(CONCATENATE(P46,Q46),Qui!$D$301:$F$356,3,0)),0) -> 0
A47: 43 | D47: 0 | E47: 0 | F47: 0 | G47: 0 | H47: 0 | I47: 0 | J47: 0 | K47: 0 | L47: 0 | M47: =SUM(D47:L47*(D47:L47>=LARGE(D47:L47,Qui!$A$402))) -> 0 | N47: =IFERROR((VLOOKUP(CONCATENATE(B47,C47),Qui!$D$301:$F$356,3,)),0) -> 0 | O47: 43 | R47: 0 | S47: =IFERROR((VLOOKUP(CONCATENATE(P47,Q47),Qui!$D$301:$F$356,3,0)),0) -> 0
A48: 44 | D48: 0 | E48: 0 | F48: 0 | G48: 0 | H48: 0 | I48: 0 | J48: 0 | K48: 0 | L48: 0 | M48: =SUM(D48:L48*(D48:L48>=LARGE(D48:L48,Qui!$A$402))) -> 0 | N48: =IFERROR((VLOOKUP(CONCATENATE(B48,C48),Qui!$D$301:$F$356,3,)),0) -> 0 | O48: 44 | R48: 0 | S48: =IFERROR((VLOOKUP(CONCATENATE(P48,Q48),Qui!$D$301:$F$356,3,0)),0) -> 0
A49: 45 | D49: 0 | E49: 0 | F49: 0 | G49: 0 | H49: 0 | I49: 0 | J49: 0 | K49: 0 | L49: 0 | M49: =SUM(D49:L49*(D49:L49>=LARGE(D49:L49,Qui!$A$402))) -> 0 | N49: =IFERROR((VLOOKUP(CONCATENATE(B49,C49),Qui!$D$301:$F$356,3,)),0) -> 0 | O49: 45 | R49: 0 | S49: =IFERROR((VLOOKUP(CONCATENATE(P49,Q49),Qui!$D$301:$F$356,3,0)),0) -> 0
A50: 46 | D50: 0 | E50: 0 | F50: 0 | G50: 0 | H50: 0 | I50: 0 | J50: 0 | K50: 0 | L50: 0 | M50: =SUM(D50:L50*(D50:L50>=LARGE(D50:L50,Qui!$A$402))) -> 0 | N50: =IFERROR((VLOOKUP(CONCATENATE(B50,C50),Qui!$D$301:$F$356,3,)),0) -> 0 | O50: 46 | R50: 0 | S50: =IFERROR((VLOOKUP(CONCATENATE(P50,Q50),Qui!$D$301:$F$356,3,0)),0) -> 0
A51: 47 | D51: 0 | E51: 0 | F51: 0 | G51: 0 | H51: 0 | I51: 0 | J51: 0 | K51: 0 | L51: 0 | M51: =SUM(D51:L51*(D51:L51>=LARGE(D51:L51,Qui!$A$402))) -> 0 | N51: =IFERROR((VLOOKUP(CONCATENATE(B51,C51),Qui!$D$301:$F$356,3,)),0) -> 0 | O51: 47 | R51: 0 | S51: =IFERROR((VLOOKUP(CONCATENATE(P51,Q51),Qui!$D$301:$F$356,3,0)),0) -> 0
A52: 48 | D52: 0 | E52: 0 | F52: 0 | G52: 0 | H52: 0 | I52: 0 | J52: 0 | K52: 0 | L52: 0 | M52: =SUM(D52:L52*(D52:L52>=LARGE(D52:L52,Qui!$A$402))) -> 0 | N52: =IFERROR((VLOOKUP(CONCATENATE(B52,C52),Qui!$D$301:$F$356,3,)),0) -> 0 | O52: 48 | R52: 0 | S52: =IFERROR((VLOOKUP(CONCATENATE(P52,Q52),Qui!$D$301:$F$356,3,0)),0) -> 0
A53: 49 | D53: 0 | E53: 0 | F53: 0 | G53: 0 | H53: 0 | I53: 0 | J53: 0 | K53: 0 | L53: 0 | M53: =SUM(D53:L53*(D53:L53>=LARGE(D53:L53,Qui!$A$402))) -> 0 | N53: =IFERROR((VLOOKUP(CONCATENATE(B53,C53),Qui!$D$301:$F$356,3,)),0) -> 0 | O53: 49 | R53: 0 | S53: =IFERROR((VLOOKUP(CONCATENATE(P53,Q53),Qui!$D$301:$F$356,3,0)),0) -> 0
A54: 50 | D54: 0 | E54: 0 | F54: 0 | G54: 0 | H54: 0 | I54: 0 | J54: 0 | K54: 0 | L54: 0 | M54: =SUM(D54:L54*(D54:L54>=LARGE(D54:L54,Qui!$A$402))) -> 0 | N54: =IFERROR((VLOOKUP(CONCATENATE(B54,C54),Qui!$D$301:$F$356,3,)),0) -> 0 | O54: 50 | R54: 0 | S54: =IFERROR((VLOOKUP(CONCATENATE(P54,Q54),Qui!$D$301:$F$356,3,0)),0) -> 0
A55: 51 | D55: 0 | E55: 0 | F55: 0 | G55: 0 | H55: 0 | I55: 0 | J55: 0 | K55: 0 | L55: 0 | M55: =SUM(D55:L55*(D55:L55>=LARGE(D55:L55,Qui!$A$402))) -> 0 | N55: =IFERROR((VLOOKUP(CONCATENATE(B55,C55),Qui!$D$301:$F$356,3,)),0) -> 0 | O55: 51 | R55: 0 | S55: =IFERROR((VLOOKUP(CONCATENATE(P55,Q55),Qui!$D$301:$F$356,3,0)),0) -> 0
A56: 52 | D56: 0 | E56: 0 | F56: 0 | G56: 0 | H56: 0 | I56: 0 | J56: 0 | K56: 0 | L56: 0 | M56: =SUM(D56:L56*(D56:L56>=LARGE(D56:L56,Qui!$A$402))) -> 0 | N56: =IFERROR((VLOOKUP(CONCATENATE(B56,C56),Qui!$D$301:$F$356,3,)),0) -> 0 | O56: 52 | R56: 0 | S56: =IFERROR((VLOOKUP(CONCATENATE(P56,Q56),Qui!$D$301:$F$356,3,0)),0) -> 0
A57: 53 | E57: 0 | F57: 0 | G57: 0 | H57: 0 | I57: 0 | J57: 0 | K57: 0 | L57: 0 | M57: =SUM(D57:L57*(D57:L57>=LARGE(D57:L57,Qui!$A$402))) -> 0 | N57: =IFERROR((VLOOKUP(CONCATENATE(B57,C57),Qui!$D$301:$F$356,3,)),0) -> 0 | O57: 53 | R57: 0 | S57: =IFERROR((VLOOKUP(CONCATENATE(P57,Q57),Qui!$D$301:$F$356,3,0)),0) -> 0
A58: 54 | E58: 0 | F58: 0 | G58: 0 | H58: 0 | I58: 0 | J58: 0 | K58: 0 | L58: 0 | M58: =SUM(D58:L58*(D58:L58>=LARGE(D58:L58,Qui!$A$402))) -> 0 | N58: =IFERROR((VLOOKUP(CONCATENATE(B58,C58),Qui!$D$301:$F$356,3,)),0) -> 0 | O58: 54 | R58: 0 | S58: =IFERROR((VLOOKUP(CONCATENATE(P58,Q58),Qui!$D$301:$F$356,3,0)),0) -> 0
D59: =MAX(D5:D58) -> 0 | F59: =MAX(F5:F58) -> 0 | G59: =MAX(G5:G58) -> 0 | I59: =MAX(I5:I58) -> 0 | J59: =MAX(J5:J58) -> 0 | K59: =MAX(K5:K58) -> 0 | L59: =MAX(L5:L58) -> 0
A60: Classement général par équipe | O60: Classement par équipe
A62: 1 | M62: =SUM(D62:L62) -> 0 | N62: =VLOOKUP(B62,Qui!$A$201:$D$204,4) ->  | O62: 1 | R62: 0 | S62: =VLOOKUP(P62,Qui!$A$201:$D$204,4) -> 
A63: 2 | M63: 0 | N63: =VLOOKUP(B63,Qui!$A$201:$D$204,4) ->  | O63: 2 | R63: 0 | S63: =VLOOKUP(P63,Qui!$A$201:$D$204,4) -> 
A64: 3 | M64: 0 | N64: =VLOOKUP(B64,Qui!$A$201:$D$204,4) ->  | O64: 3 | R64: 0 | S64: =VLOOKUP(P64,Qui!$A$201:$D$204,4) -> 
A65: 4 | M65: 0 | N65: =VLOOKUP(B65,Qui!$A$201:$D$204,4) ->  | O65: 4 | R65: 0 | S65: =VLOOKUP(P65,Qui!$A$201:$D$204,4) -> 
A66: 5 | E66: 435 | N66: =VLOOKUP(B66,Qui!$A$201:$D$204,4) ->  | O66: 5 | R66: =SUMPRODUCT(((($S$5:$S$58=S66)*$R$5:$R$58*1))*((($S$5:$S$58=S66)*$R$5:$R$58*1)>=LARGE((($S$5:$S$58=S66)*$R$5:$R$58*1),Qui!$B$402))) ->  | S66: =VLOOKUP(P66,Qui!$A$201:$D$204,4) -> 
A67: 6 | E67: 435 | N67: =VLOOKUP(B67,Qui!$A$201:$D$204,4) ->  | O67: 6 | R67: =SUMPRODUCT(((($S$5:$S$58=S67)*$R$5:$R$58*1))*((($S$5:$S$58=S67)*$R$5:$R$58*1)>=LARGE((($S$5:$S$58=S67)*$R$5:$R$58*1),Qui!$B$402))) ->  | S67: =VLOOKUP(P67,Qui!$A$201:$D$204,4) -> 
D68: =MAX(D62:D67) -> 0 | F68: =MAX(F62:F67) ->  | G68: =MAX(G62:G67) ->  | I68: =MAX(I62:I67) -> 0 | J68: =MAX(J62:J67) -> 0 | K68: =MAX(K62:K67) -> 0 | L68: =MAX(L62:L67) -> 0 | R68: 0
M69: La Chaux-de-Fonds, le 3 novembre 2019, CM / DP
B71: =CONCATENATE("Rappels :") -> Rappels :
B73: =CONCATENATE("a) le classement général par équipe est fait sur le cumul des ",Qui!$B$402," meilleurs résultats individuels de chaque manche") -> a) le classement général par équipe est fait sur le cumul des 5 meilleurs résultats individuels de chaque manche
B74: =CONCATENATE("b) le classement général individuel est fait sur le cumul des ",Qui!$A$402," meilleurs résultats individuels") -> b) le classement général individuel est fait sur le cumul des 5 meilleurs résultats individuels
F199: Duplicata Colonne A technique

Sheet Manche_5 (hidden)
A1: Association intercantonale des joueurs de boules Grand Jeu Neuchâtelois
A2: =CONCATENATE("Championnat grand jeu neuchâtelois ",YEAR(Calendrier!B6)) -> Championnat grand jeu neuchâtelois 2020
A3: Classement général individuel | C3: Manches | D3: =Calendrier!F40 -> Le Locle | E3: =Calendrier!F47 -> Grand-Sommartel | F3: =Calendrier!F54 -> L'Epi | G3: =Calendrier!F61 -> La Chaux-de-Fonds | H3: =Calendrier!F68 -> Evologia | I3: =Calendrier!F75 -> La Vue-des-Alpes | J3: =Calendrier!F82 -> 00:00:00 | M3: =CONCATENATE("Général",CHAR(10),"les ",Qui!$A$402," meilleurs") -> Général les 5 meilleurs | P3: =CONCATENATE("Classement de la manche",CHAR(10),Calendrier!F68,CHAR(10),"du",TEXT(Calendrier!F70," jj.mm")," au",TEXT(Calendrier!F73," jj.mm.aaaa")) -> Classement de la manche Evologia du 26.10 au 29.10.2020 | U3: =CONCATENATE(TEXT(Calendrier!F70," jj.mm")," au",TEXT(Calendrier!F73," jj.mm.aaaa")) -> 26.10 au 29.10.2020
D4: 1 | E4: 2 | F4: 3 | G4: 4 | H4: 5 | I4: 6 | J4: 7 | K4: 8 | L4: 9 | P4: =CONCATENATE("Champion de jeu : ",CHAR(10),P5," ",Q5) -> Champion de jeu :
A5: 1 | M5: =SUM(D5:L5*(D5:L5>=LARGE(D5:L5,Qui!$A$402))) ->  | N5: =IFERROR((VLOOKUP(CONCATENATE(B5,C5),Qui!$D$301:$F$356,3,)),0) -> 0 | O5: 1 | R5: 0 | S5: =IFERROR((VLOOKUP(CONCATENATE(P5,Q5),Qui!$D$301:$F$356,3,0)),0) -> 0
A6: 2 | M6: =SUM(D6:L6*(D6:L6>=LARGE(D6:L6,Qui!$A$402))) ->  | N6: =IFERROR((VLOOKUP(CONCATENATE(B6,C6),Qui!$D$301:$F$356,3,)),0) -> 0 | O6: 2 | R6: 0 | S6: =IFERROR((VLOOKUP(CONCATENATE(P6,Q6),Qui!$D$301:$F$356,3,0)),0) -> 0
A7: 3 | M7: =SUM(D7:L7*(D7:L7>=LARGE(D7:L7,Qui!$A$402))) ->  | N7: =IFERROR((VLOOKUP(CONCATENATE(B7,C7),Qui!$D$301:$F$356,3,)),0) -> 0 | O7: 3 | R7: 0 | S7: =IFERROR((VLOOKUP(CONCATENATE(P7,Q7),Qui!$D$301:$F$356,3,0)),0) -> 0
A8: 4 | M8: =SUM(D8:L8*(D8:L8>=LARGE(D8:L8,Qui!$A$402))) ->  | N8: =IFERROR((VLOOKUP(CONCATENATE(B8,C8),Qui!$D$301:$F$356,3,)),0) -> 0 | O8: 4 | R8: 0 | S8: =IFERROR((VLOOKUP(CONCATENATE(P8,Q8),Qui!$D$301:$F$356,3,0)),0) -> 0
A9: 5 | M9: =SUM(D9:L9*(D9:L9>=LARGE(D9:L9,Qui!$A$402))) ->  | N9: =IFERROR((VLOOKUP(CONCATENATE(B9,C9),Qui!$D$301:$F$356,3,)),0) -> 0 | O9: 5 | R9: 0 | S9: =IFERROR((VLOOKUP(CONCATENATE(P9,Q9),Qui!$D$301:$F$356,3,0)),0) -> 0
A10: 6 | M10: =SUM(D10:L10*(D10:L10>=LARGE(D10:L10,Qui!$A$402))) ->  | N10: =IFERROR((VLOOKUP(CONCATENATE(B10,C10),Qui!$D$301:$F$356,3,)),0) -> 0 | O10: 6 | R10: 0 | S10: =IFERROR((VLOOKUP(CONCATENATE(P10,Q10),Qui!$D$301:$F$356,3,0)),0) -> 0
A11: 7 | M11: =SUM(D11:L11*(D11:L11>=LARGE(D11:L11,Qui!$A$402))) ->  | N11: =IFERROR((VLOOKUP(CONCATENATE(B11,C11),Qui!$D$301:$F$356,3,)),0) -> 0 | O11: 7 | R11: 0 | S11: =IFERROR((VLOOKUP(CONCATENATE(P11,Q11),Qui!$D$301:$F$356,3,0)),0) -> 0
A12: 8 | M12: =SUM(D12:L12*(D12:L12>=LARGE(D12:L12,Qui!$A$402))) ->  | N12: =IFERROR((VLOOKUP(CONCATENATE(B12,C12),Qui!$D$301:$F$356,3,)),0) -> 0 | O12: 8 | R12: 0 | S12: =IFERROR((VLOOKUP(CONCATENATE(P12,Q12),Qui!$D$301:$F$356,3,0)),0) -> 0
A13: 9 | M13: =SUM(D13:L13*(D13:L13>=LARGE(D13:L13,Qui!$A$402))) ->  | N13: =IFERROR((VLOOKUP(CONCATENATE(B13,C13),Qui!$D$301:$F$356,3,)),0) -> 0 | O13: 9 | R13: 0 | S13: =IFERROR((VLOOKUP(CONCATENATE(P13,Q13),Qui!$D$301:$F$356,3,0)),0) -> 0
A14: 10 | M14: =SUM(D14:L14*(D14:L14>=LARGE(D14:L14,Qui!$A$402))) ->  | N14: =IFERROR((VLOOKUP(CONCATENATE(B14,C14),Qui!$D$301:$F$356,3,)),0) -> 0 | O14: 10 | R14: 0 | S14: =IFERROR((VLOOKUP(CONCATENATE(P14,Q14),Qui!$D$301:$F$356,3,0)),0) -> 0
A15: 11 | M15: =SUM(D15:L15*(D15:L15>=LARGE(D15:L15,Qui!$A$402))) ->  | N15: =IFERROR((VLOOKUP(CONCATENATE(B15,C15),Qui!$D$301:$F$356,3,)),0) -> 0 | O15: 11 | R15: 0 | S15: =IFERROR((VLOOKUP(CONCATENATE(P15,Q15),Qui!$D$301:$F$356,3,0)),0) -> 0
A16: 12 | M16: =SUM(D16:L16*(D16:L16>=LARGE(D16:L16,Qui!$A$402))) ->  | N16: =IFERROR((VLOOKUP(CONCATENATE(B16,C16),Qui!$D$301:$F$356,3,)),0) -> 0 | O16: 12 | R16: 0 | S16: =IFERROR((VLOOKUP(CONCATENATE(P16,Q16),Qui!$D$301:$F$356,3,0)),0) -> 0
A17: 13 | M17: =SUM(D17:L17*(D17:L17>=LARGE(D17:L17,Qui!$A$402))) ->  | N17: =IFERROR((VLOOKUP(CONCATENATE(B17,C17),Qui!$D$301:$F$356,3,)),0) -> 0 | O17: 13 | R17: 0 | S17: =IFERROR((VLOOKUP(CONCATENATE(P17,Q17),Qui!$D$301:$F$356,3,0)),0) -> 0
A18: 14 | M18: =SUM(D18:L18*(D18:L18>=LARGE(D18:L18,Qui!$A$402))) ->  | N18: =IFERROR((VLOOKUP(CONCATENATE(B18,C18),Qui!$D$301:$F$356,3,)),0) -> 0 | O18: 14 | R18: 0 | S18: =IFERROR((VLOOKUP(CONCATENATE(P18,Q18),Qui!$D$301:$F$356,3,0)),0) -> 0
A19: 15 | M19: =SUM(D19:L19*(D19:L19>=LARGE(D19:L19,Qui!$A$402))) ->  | N19: =IFERROR((VLOOKUP(CONCATENATE(B19,C19),Qui!$D$301:$F$356,3,)),0) -> 0 | O19: 15 | R19: 0 | S19: =IFERROR((VLOOKUP(CONCATENATE(P19,Q19),Qui!$D$301:$F$356,3,0)),0) -> 0
A20: 16 | M20: =SUM(D20:L20*(D20:L20>=LARGE(D20:L20,Qui!$A$402))) ->  | N20: =IFERROR((VLOOKUP(CONCATENATE(B20,C20),Qui!$D$301:$F$356,3,)),0) -> 0 | O20: 16 | R20: 0 | S20: =IFERROR((VLOOKUP(CONCATENATE(P20,Q20),Qui!$D$301:$F$356,3,0)),0) -> 0
A21: 17 | M21: =SUM(D21:L21*(D21:L21>=LARGE(D21:L21,Qui!$A$402))) ->  | N21: =IFERROR((VLOOKUP(CONCATENATE(B21,C21),Qui!$D$301:$F$356,3,)),0) -> 0 | O21: 17 | R21: 0 | S21: =IFERROR((VLOOKUP(CONCATENATE(P21,Q21),Qui!$D$301:$F$356,3,0)),0) -> 0
A22: 18 | M22: =SUM(D22:L22*(D22:L22>=LARGE(D22:L22,Qui!$A$402))) ->  | N22: =IFERROR((VLOOKUP(CONCATENATE(B22,C22),Qui!$D$301:$F$356,3,)),0) -> 0 | O22: 18 | R22: 0 | S22: =IFERROR((VLOOKUP(CONCATENATE(P22,Q22),Qui!$D$301:$F$356,3,0)),0) -> 0
A23: 19 | M23: =SUM(D23:L23*(D23:L23>=LARGE(D23:L23,Qui!$A$402))) ->  | N23: =IFERROR((VLOOKUP(CONCATENATE(B23,C23),Qui!$D$301:$F$356,3,)),0) -> 0 | O23: 19 | R23: 0 | S23: =IFERROR((VLOOKUP(CONCATENATE(P23,Q23),Qui!$D$301:$F$356,3,0)),0) -> 0
A24: 20 | M24: =SUM(D24:L24*(D24:L24>=LARGE(D24:L24,Qui!$A$402))) ->  | N24: =IFERROR((VLOOKUP(CONCATENATE(B24,C24),Qui!$D$301:$F$356,3,)),0) -> 0 | O24: 20 | R24: 0 | S24: =IFERROR((VLOOKUP(CONCATENATE(P24,Q24),Qui!$D$301:$F$356,3,0)),0) -> 0
A25: 21 | M25: =SUM(D25:L25*(D25:L25>=LARGE(D25:L25,Qui!$A$402))) ->  | N25: =IFERROR((VLOOKUP(CONCATENATE(B25,C25),Qui!$D$301:$F$356,3,)),0) -> 0 | O25: 21 | R25: 0 | S25: =IFERROR((VLOOKUP(CONCATENATE(P25,Q25),Qui!$D$301:$F$356,3,0)),0) -> 0
A26: 22 | M26: =SUM(D26:L26*(D26:L26>=LARGE(D26:L26,Qui!$A$402))) ->  | N26: =IFERROR((VLOOKUP(CONCATENATE(B26,C26),Qui!$D$301:$F$356,3,)),0) -> 0 | O26: 22 | R26: 0 | S26: =IFERROR((VLOOKUP(CONCATENATE(P26,Q26),Qui!$D$301:$F$356,3,0)),0) -> 0
A27: 23 | M27: =SUM(D27:L27*(D27:L27>=LARGE(D27:L27,Qui!$A$402))) ->  | N27: =IFERROR((VLOOKUP(CONCATENATE(B27,C27),Qui!$D$301:$F$356,3,)),0) -> 0 | O27: 23 | R27: 0 | S27: =IFERROR((VLOOKUP(CONCATENATE(P27,Q27),Qui!$D$301:$F$356,3,0)),0) -> 0
A28: 24 | M28: =SUM(D28:L28*(D28:L28>=LARGE(D28:L28,Qui!$A$402))) ->  | N28: =IFERROR((VLOOKUP(CONCATENATE(B28,C28),Qui!$D$301:$F$356,3,)),0) -> 0 | O28: 24 | R28: 0 | S28: =IFERROR((VLOOKUP(CONCATENATE(P28,Q28),Qui!$D$301:$F$356,3,0)),0) -> 0
A29: 25 | M29: =SUM(D29:L29*(D29:L29>=LARGE(D29:L29,Qui!$A$402))) ->  | N29: =IFERROR((VLOOKUP(CONCATENATE(B29,C29),Qui!$D$301:$F$356,3,)),0) -> 0 | O29: 25 | R29: 0 | S29: =IFERROR((VLOOKUP(CONCATENATE(P29,Q29),Qui!$D$301:$F$356,3,0)),0) -> 0
A30: 26 | M30: =SUM(D30:L30*(D30:L30>=LARGE(D30:L30,Qui!$A$402))) ->  | N30: =IFERROR((VLOOKUP(CONCATENATE(B30,C30),Qui!$D$301:$F$356,3,)),0) -> 0 | O30: 26 | R30: 0 | S30: =IFERROR((VLOOKUP(CONCATENATE(P30,Q30),Qui!$D$301:$F$356,3,0)),0) -> 0
A31: 27 | M31: =SUM(D31:L31*(D31:L31>=LARGE(D31:L31,Qui!$A$402))) ->  | N31: =IFERROR((VLOOKUP(CONCATENATE(B31,C31),Qui!$D$301:$F$356,3,)),0) -> 0 | O31: 27 | R31: 0 | S31: =IFERROR((VLOOKUP(CONCATENATE(P31,Q31),Qui!$D$301:$F$356,3,0)),0) -> 0
A32: 28 | M32: =SUM(D32:L32*(D32:L32>=LARGE(D32:L32,Qui!$A$402))) ->  | N32: =IFERROR((VLOOKUP(CONCATENATE(B32,C32),Qui!$D$301:$F$356,3,)),0) -> 0 | O32: 28 | R32: 0 | S32: =IFERROR((VLOOKUP(CONCATENATE(P32,Q32),Qui!$D$301:$F$356,3,0)),0) -> 0
A33: 29 | M33: =SUM(D33:L33*(D33:L33>=LARGE(D33:L33,Qui!$A$402))) ->  | N33: =IFERROR((VLOOKUP(CONCATENATE(B33,C33),Qui!$D$301:$F$356,3,)),0) -> 0 | O33: 29 | R33: 0 | S33: =IFERROR((VLOOKUP(CONCATENATE(P33,Q33),Qui!$D$301:$F$356,3,0)),0) -> 0
A34: 30 | M34: =SUM(D34:L34*(D34:L34>=LARGE(D34:L34,Qui!$A$402))) ->  | N34: =IFERROR((VLOOKUP(CONCATENATE(B34,C34),Qui!$D$301:$F$356,3,)),0) -> 0 | O34: 30 | R34: 0 | S34: =IFERROR((VLOOKUP(CONCATENATE(P34,Q34),Qui!$D$301:$F$356,3,0)),0) -> 0
A35: 31 | M35: =SUM(D35:L35*(D35:L35>=LARGE(D35:L35,Qui!$A$402))) ->  | N35: =IFERROR((VLOOKUP(CONCATENATE(B35,C35),Qui!$D$301:$F$356,3,)),0) -> 0 | O35: 31 | R35: 0 | S35: =IFERROR((VLOOKUP(CONCATENATE(P35,Q35),Qui!$D$301:$F$356,3,0)),0) -> 0
A36: 32 | M36: =SUM(D36:L36*(D36:L36>=LARGE(D36:L36,Qui!$A$402))) ->  | N36: =IFERROR((VLOOKUP(CONCATENATE(B36,C36),Qui!$D$301:$F$356,3,)),0) -> 0 | O36: 32 | R36: 0 | S36: =IFERROR((VLOOKUP(CONCATENATE(P36,Q36),Qui!$D$301:$F$356,3,0)),0) -> 0
A37: 33 | M37: =SUM(D37:L37*(D37:L37>=LARGE(D37:L37,Qui!$A$402))) ->  | N37: =IFERROR((VLOOKUP(CONCATENATE(B37,C37),Qui!$D$301:$F$356,3,)),0) -> 0 | O37: 33 | R37: 0 | S37: =IFERROR((VLOOKUP(CONCATENATE(P37,Q37),Qui!$D$301:$F$356,3,0)),0) -> 0
A38: 34 | M38: =SUM(D38:L38*(D38:L38>=LARGE(D38:L38,Qui!$A$402))) ->  | N38: =IFERROR((VLOOKUP(CONCATENATE(B38,C38),Qui!$D$301:$F$356,3,)),0) -> 0 | O38: 34 | R38: 0 | S38: =IFERROR((VLOOKUP(CONCATENATE(P38,Q38),Qui!$D$301:$F$356,3,0)),0) -> 0
A39: 35 | M39: =SUM(D39:L39*(D39:L39>=LARGE(D39:L39,Qui!$A$402))) ->  | N39: =IFERROR((VLOOKUP(CONCATENATE(B39,C39),Qui!$D$301:$F$356,3,)),0) -> 0 | O39: 35 | R39: 0 | S39: =IFERROR((VLOOKUP(CONCATENATE(P39,Q39),Qui!$D$301:$F$356,3,0)),0) -> 0
A40: 36 | D40: 0 | E40: 0 | F40: 0 | G40: 0 | H40: 0 | I40: 0 | J40: 0 | K40: 0 | L40: 0 | M40: =SUM(D40:L40*(D40:L40>=LARGE(D40:L40,Qui!$A$402))) -> 0 | N40: =IFERROR((VLOOKUP(CONCATENATE(B40,C40),Qui!$D$301:$F$356,3,)),0) -> 0 | O40: 36 | R40: 0 | S40: =IFERROR((VLOOKUP(CONCATENATE(P40,Q40),Qui!$D$301:$F$356,3,0)),0) -> 0
A41: 37 | D41: 0 | E41: 0 | F41: 0 | G41: 0 | H41: 0 | I41: 0 | J41: 0 | K41: 0 | L41: 0 | M41: =SUM(D41:L41*(D41:L41>=LARGE(D41:L41,Qui!$A$402))) -> 0 | N41: =IFERROR((VLOOKUP(CONCATENATE(B41,C41),Qui!$D$301:$F$356,3,)),0) -> 0 | O41: 37 | R41: 0 | S41: =IFERROR((VLOOKUP(CONCATENATE(P41,Q41),Qui!$D$301:$F$356,3,0)),0) -> 0
A42: 38 | D42: 0 | E42: 0 | F42: 0 | G42: 0 | H42: 0 | I42: 0 | J42: 0 | K42: 0 | L42: 0 | M42: =SUM(D42:L42*(D42:L42>=LARGE(D42:L42,Qui!$A$402))) -> 0 | N42: =IFERROR((VLOOKUP(CONCATENATE(B42,C42),Qui!$D$301:$F$356,3,)),0) -> 0 | O42: 38 | R42: 0 | S42: =IFERROR((VLOOKUP(CONCATENATE(P42,Q42),Qui!$D$301:$F$356,3,0)),0) -> 0
A43: 39 | D43: 0 | E43: 0 | F43: 0 | G43: 0 | H43: 0 | I43: 0 | J43: 0 | K43: 0 | L43: 0 | M43: =SUM(D43:L43*(D43:L43>=LARGE(D43:L43,Qui!$A$402))) -> 0 | N43: =IFERROR((VLOOKUP(CONCATENATE(B43,C43),Qui!$D$301:$F$356,3,)),0) -> 0 | O43: 39 | R43: 0 | S43: =IFERROR((VLOOKUP(CONCATENATE(P43,Q43),Qui!$D$301:$F$356,3,0)),0) -> 0
A44: 40 | D44: 0 | E44: 0 | F44: 0 | G44: 0 | H44: 0 | I44: 0 | J44: 0 | K44: 0 | L44: 0 | M44: =SUM(D44:L44*(D44:L44>=LARGE(D44:L44,Qui!$A$402))) -> 0 | N44: =IFERROR((VLOOKUP(CONCATENATE(B44,C44),Qui!$D$301:$F$356,3,)),0) -> 0 | O44: 40 | R44: 0 | S44: =IFERROR((VLOOKUP(CONCATENATE(P44,Q44),Qui!$D$301:$F$356,3,0)),0) -> 0
A45: 41 | D45: 0 | E45: 0 | F45: 0 | G45: 0 | H45: 0 | I45: 0 | J45: 0 | K45: 0 | L45: 0 | M45: =SUM(D45:L45*(D45:L45>=LARGE(D45:L45,Qui!$A$402))) -> 0 | N45: =IFERROR((VLOOKUP(CONCATENATE(B45,C45),Qui!$D$301:$F$356,3,)),0) -> 0 | O45: 41 | R45: 0 | S45: =IFERROR((VLOOKUP(CONCATENATE(P45,Q45),Qui!$D$301:$F$356,3,0)),0) -> 0
A46: 42 | D46: 0 | E46: 0 | F46: 0 | G46: 0 | H46: 0 | I46: 0 | J46: 0 | K46: 0 | L46: 0 | M46: =SUM(D46:L46*(D46:L46>=LARGE(D46:L46,Qui!$A$402))) -> 0 | N46: =IFERROR((VLOOKUP(CONCATENATE(B46,C46),Qui!$D$301:$F$356,3,)),0) -> 0 | O46: 42 | R46: 0 | S46: =IFERROR((VLOOKUP(CONCATENATE(P46,Q46),Qui!$D$301:$F$356,3,0)),0) -> 0
A47: 43 | D47: 0 | E47: 0 | F47: 0 | G47: 0 | H47: 0 | I47: 0 | J47: 0 | K47: 0 | L47: 0 | M47: =SUM(D47:L47*(D47:L47>=LARGE(D47:L47,Qui!$A$402))) -> 0 | N47: =IFERROR((VLOOKUP(CONCATENATE(B47,C47),Qui!$D$301:$F$356,3,)),0) -> 0 | O47: 43 | R47: 0 | S47: =IFERROR((VLOOKUP(CONCATENATE(P47,Q47),Qui!$D$301:$F$356,3,0)),0) -> 0
A48: 44 | D48: 0 | E48: 0 | F48: 0 | G48: 0 | H48: 0 | I48: 0 | J48: 0 | K48: 0 | L48: 0 | M48: =SUM(D48:L48*(D48:L48>=LARGE(D48:L48,Qui!$A$402))) -> 0 | N48: =IFERROR((VLOOKUP(CONCATENATE(B48,C48),Qui!$D$301:$F$356,3,)),0) -> 0 | O48: 44 | R48: 0 | S48: =IFERROR((VLOOKUP(CONCATENATE(P48,Q48),Qui!$D$301:$F$356,3,0)),0) -> 0
A49: 45 | D49: 0 | E49: 0 | F49: 0 | G49: 0 | H49: 0 | I49: 0 | J49: 0 | K49: 0 | L49: 0 | M49: =SUM(D49:L49*(D49:L49>=LARGE(D49:L49,Qui!$A$402))) -> 0 | N49: =IFERROR((VLOOKUP(CONCATENATE(B49,C49),Qui!$D$301:$F$356,3,)),0) -> 0 | O49: 45 | R49: 0 | S49: =IFERROR((VLOOKUP(CONCATENATE(P49,Q49),Qui!$D$301:$F$356,3,0)),0) -> 0
A50: 46 | D50: 0 | E50: 0 | F50: 0 | G50: 0 | H50: 0 | I50: 0 | J50: 0 | K50: 0 | L50: 0 | M50: =SUM(D50:L50*(D50:L50>=LARGE(D50:L50,Qui!$A$402))) -> 0 | N50: =IFERROR((VLOOKUP(CONCATENATE(B50,C50),Qui!$D$301:$F$356,3,)),0) -> 0 | O50: 46 | R50: 0 | S50: =IFERROR((VLOOKUP(CONCATENATE(P50,Q50),Qui!$D$301:$F$356,3,0)),0) -> 0
A51: 47 | D51: 0 | E51: 0 | F51: 0 | G51: 0 | H51: 0 | I51: 0 | J51: 0 | K51: 0 | L51: 0 | M51: =SUM(D51:L51*(D51:L51>=LARGE(D51:L51,Qui!$A$402))) -> 0 | N51: =IFERROR((VLOOKUP(CONCATENATE(B51,C51),Qui!$D$301:$F$356,3,)),0) -> 0 | O51: 47 | R51: 0 | S51: =IFERROR((VLOOKUP(CONCATENATE(P51,Q51),Qui!$D$301:$F$356,3,0)),0) -> 0
A52: 48 | D52: 0 | E52: 0 | F52: 0 | G52: 0 | H52: 0 | I52: 0 | J52: 0 | K52: 0 | L52: 0 | M52: =SUM(D52:L52*(D52:L52>=LARGE(D52:L52,Qui!$A$402))) -> 0 | N52: =IFERROR((VLOOKUP(CONCATENATE(B52,C52),Qui!$D$301:$F$356,3,)),0) -> 0 | O52: 48 | R52: 0 | S52: =IFERROR((VLOOKUP(CONCATENATE(P52,Q52),Qui!$D$301:$F$356,3,0)),0) -> 0
A53: 49 | D53: 0 | E53: 0 | F53: 0 | G53: 0 | H53: 0 | I53: 0 | J53: 0 | K53: 0 | L53: 0 | M53: =SUM(D53:L53*(D53:L53>=LARGE(D53:L53,Qui!$A$402))) -> 0 | N53: =IFERROR((VLOOKUP(CONCATENATE(B53,C53),Qui!$D$301:$F$356,3,)),0) -> 0 | O53: 49 | R53: 0 | S53: =IFERROR((VLOOKUP(CONCATENATE(P53,Q53),Qui!$D$301:$F$356,3,0)),0) -> 0
A54: 50 | D54: 0 | E54: 0 | F54: 0 | G54: 0 | H54: 0 | I54: 0 | J54: 0 | K54: 0 | L54: 0 | M54: =SUM(D54:L54*(D54:L54>=LARGE(D54:L54,Qui!$A$402))) -> 0 | N54: =IFERROR((VLOOKUP(CONCATENATE(B54,C54),Qui!$D$301:$F$356,3,)),0) -> 0 | O54: 50 | R54: 0 | S54: =IFERROR((VLOOKUP(CONCATENATE(P54,Q54),Qui!$D$301:$F$356,3,0)),0) -> 0
A55: 51 | D55: 0 | E55: 0 | F55: 0 | G55: 0 | H55: 0 | I55: 0 | J55: 0 | K55: 0 | L55: 0 | M55: =SUM(D55:L55*(D55:L55>=LARGE(D55:L55,Qui!$A$402))) -> 0 | N55: =IFERROR((VLOOKUP(CONCATENATE(B55,C55),Qui!$D$301:$F$356,3,)),0) -> 0 | O55: 51 | R55: 0 | S55: =IFERROR((VLOOKUP(CONCATENATE(P55,Q55),Qui!$D$301:$F$356,3,0)),0) -> 0
A56: 52 | D56: 0 | E56: 0 | F56: 0 | G56: 0 | H56: 0 | I56: 0 | J56: 0 | K56: 0 | L56: 0 | M56: =SUM(D56:L56*(D56:L56>=LARGE(D56:L56,Qui!$A$402))) -> 0 | N56: =IFERROR((VLOOKUP(CONCATENATE(B56,C56),Qui!$D$301:$F$356,3,)),0) -> 0 | O56: 52 | R56: 0 | S56: =IFERROR((VLOOKUP(CONCATENATE(P56,Q56),Qui!$D$301:$F$356,3,0)),0) -> 0
A57: 53 | E57: 0 | F57: 0 | G57: 0 | H57: 0 | I57: 0 | J57: 0 | K57: 0 | L57: 0 | M57: =SUM(D57:L57*(D57:L57>=LARGE(D57:L57,Qui!$A$402))) -> 0 | N57: =IFERROR((VLOOKUP(CONCATENATE(B57,C57),Qui!$D$301:$F$356,3,)),0) -> 0 | O57: 53 | R57: 0 | S57: =IFERROR((VLOOKUP(CONCATENATE(P57,Q57),Qui!$D$301:$F$356,3,0)),0) -> 0
A58: 54 | E58: 0 | F58: 0 | G58: 0 | H58: 0 | I58: 0 | J58: 0 | K58: 0 | L58: 0 | M58: =SUM(D58:L58*(D58:L58>=LARGE(D58:L58,Qui!$A$402))) -> 0 | N58: =IFERROR((VLOOKUP(CONCATENATE(B58,C58),Qui!$D$301:$F$356,3,)),0) -> 0 | O58: 54 | R58: 0 | S58: =IFERROR((VLOOKUP(CONCATENATE(P58,Q58),Qui!$D$301:$F$356,3,0)),0) -> 0
D59: =MAX(D5:D58) -> 0 | F59: =MAX(F5:F58) -> 0 | G59: =MAX(G5:G58) -> 0 | I59: =MAX(I5:I58) -> 0 | J59: =MAX(J5:J58) -> 0 | K59: =MAX(K5:K58) -> 0 | L59: =MAX(L5:L58) -> 0
A60: Classement général par équipe | O60: Classement par équipe
A62: 1 | M62: =SUM(D62:L62) -> 0 | N62: =VLOOKUP(B62,Qui!$A$201:$D$204,4) ->  | O62: 1 | R62: 0 | S62: =VLOOKUP(P62,Qui!$A$201:$D$204,4) -> 
A63: 2 | M63: 0 | N63: =VLOOKUP(B63,Qui!$A$201:$D$204,4) ->  | O63: 2 | R63: 0 | S63: =VLOOKUP(P63,Qui!$A$201:$D$204,4) -> 
A64: 3 | M64: 0 | N64: =VLOOKUP(B64,Qui!$A$201:$D$204,4) ->  | O64: 3 | R64: 0 | S64: =VLOOKUP(P64,Qui!$A$201:$D$204,4) -> 
A65: 4 | M65: 0 | N65: =VLOOKUP(B65,Qui!$A$201:$D$204,4) ->  | O65: 4 | R65: 0 | S65: =VLOOKUP(P65,Qui!$A$201:$D$204,4) -> 
A66: 5 | E66: 435 | N66: =VLOOKUP(B66,Qui!$A$201:$D$204,4) ->  | O66: 5 | R66: =SUMPRODUCT(((($S$5:$S$58=S66)*$R$5:$R$58*1))*((($S$5:$S$58=S66)*$R$5:$R$58*1)>=LARGE((($S$5:$S$58=S66)*$R$5:$R$58*1),Qui!$B$402))) ->  | S66: =VLOOKUP(P66,Qui!$A$201:$D$204,4) -> 
A67: 6 | E67: 435 | N67: =VLOOKUP(B67,Qui!$A$201:$D$204,4) ->  | O67: 6 | R67: =SUMPRODUCT(((($S$5:$S$58=S67)*$R$5:$R$58*1))*((($S$5:$S$58=S67)*$R$5:$R$58*1)>=LARGE((($S$5:$S$58=S67)*$R$5:$R$58*1),Qui!$B$402))) ->  | S67: =VLOOKUP(P67,Qui!$A$201:$D$204,4) -> 
D68: =MAX(D62:D67) -> 0 | F68: =MAX(F62:F67) ->  | G68: =MAX(G62:G67) ->  | I68: =MAX(I62:I67) -> 0 | J68: =MAX(J62:J67) -> 0 | K68: =MAX(K62:K67) -> 0 | L68: =MAX(L62:L67) -> 0 | R68: 0
M69: La Chaux-de-Fonds, le 17 novembre 2019, CM / DP
B71: =CONCATENATE("Rappels :") -> Rappels :
B73: =CONCATENATE("a) le classement général par équipe est fait sur le cumul des ",Qui!$B$402," meilleurs résultats individuels de chaque manche") -> a) le classement général par équipe est fait sur le cumul des 5 meilleurs résultats individuels de chaque manche
B74: =CONCATENATE("b) le classement général individuel est fait sur le cumul des ",Qui!$A$402," meilleurs résultats individuels") -> b) le classement général individuel est fait sur le cumul des 5 meilleurs résultats individuels
F199: Duplicata Colonne A technique

Sheet Manche_6 (hidden)
A1: Association intercantonale des joueurs de boules Grand Jeu Neuchâtelois
A2: =CONCATENATE("Championnat grand jeu neuchâtelois ",YEAR(Calendrier!B6)) -> Championnat grand jeu neuchâtelois 2020
A3: Classement général individuel | C3: Manches | D3: =Calendrier!F40 -> Le Locle | E3: =Calendrier!F47 -> Grand-Sommartel | F3: =Calendrier!F54 -> L'Epi | G3: =Calendrier!F61 -> La Chaux-de-Fonds | H3: =Calendrier!F68 -> Evologia | I3: =Calendrier!F75 -> La Vue-des-Alpes | J3: =Calendrier!F82 -> 00:00:00 | M3: =CONCATENATE("Général",CHAR(10),"les ",Qui!$A$402," meilleurs") -> Général les 5 meilleurs | P3: =CONCATENATE("Classement de la manche",CHAR(10),Calendrier!F75,CHAR(10),"du",TEXT(Calendrier!F77," jj.mm")," au",TEXT(Calendrier!F80," jj.mm.aaaa")) -> Classement de la manche La Vue-des-Alpes du 09.11 au 12.11.2020 | U3: =CONCATENATE(TEXT(Calendrier!F77," jj.mm")," au",TEXT(Calendrier!F80," jj.mm.aaaa")) -> 09.11 au 12.11.2020
D4: 1 | E4: 2 | F4: 3 | G4: 4 | H4: 5 | I4: 6 | J4: 7 | K4: 8 | L4: 9 | P4: =CONCATENATE("Champion de jeu : ",CHAR(10),P5," ",Q5) -> Champion de jeu :
A5: 1 | M5: =SUM(D5:L5*(D5:L5>=LARGE(D5:L5,Qui!$A$402))) ->  | N5: =IFERROR((VLOOKUP(CONCATENATE(B5,C5),Qui!$D$301:$F$356,3,)),0) -> 0 | O5: 1 | R5: 0 | S5: =IFERROR((VLOOKUP(CONCATENATE(P5,Q5),Qui!$D$301:$F$356,3,0)),0) -> 0
A6: 2 | M6: =SUM(D6:L6*(D6:L6>=LARGE(D6:L6,Qui!$A$402))) ->  | N6: =IFERROR((VLOOKUP(CONCATENATE(B6,C6),Qui!$D$301:$F$356,3,)),0) -> 0 | O6: 2 | R6: 0 | S6: =IFERROR((VLOOKUP(CONCATENATE(P6,Q6),Qui!$D$301:$F$356,3,0)),0) -> 0
A7: 3 | M7: =SUM(D7:L7*(D7:L7>=LARGE(D7:L7,Qui!$A$402))) ->  | N7: =IFERROR((VLOOKUP(CONCATENATE(B7,C7),Qui!$D$301:$F$356,3,)),0) -> 0 | O7: 3 | R7: 0 | S7: =IFERROR((VLOOKUP(CONCATENATE(P7,Q7),Qui!$D$301:$F$356,3,0)),0) -> 0
A8: 4 | M8: =SUM(D8:L8*(D8:L8>=LARGE(D8:L8,Qui!$A$402))) ->  | N8: =IFERROR((VLOOKUP(CONCATENATE(B8,C8),Qui!$D$301:$F$356,3,)),0) -> 0 | O8: 4 | R8: 0 | S8: =IFERROR((VLOOKUP(CONCATENATE(P8,Q8),Qui!$D$301:$F$356,3,0)),0) -> 0
A9: 5 | M9: =SUM(D9:L9*(D9:L9>=LARGE(D9:L9,Qui!$A$402))) ->  | N9: =IFERROR((VLOOKUP(CONCATENATE(B9,C9),Qui!$D$301:$F$356,3,)),0) -> 0 | O9: 5 | R9: 0 | S9: =IFERROR((VLOOKUP(CONCATENATE(P9,Q9),Qui!$D$301:$F$356,3,0)),0) -> 0
A10: 6 | M10: =SUM(D10:L10*(D10:L10>=LARGE(D10:L10,Qui!$A$402))) ->  | N10: =IFERROR((VLOOKUP(CONCATENATE(B10,C10),Qui!$D$301:$F$356,3,)),0) -> 0 | O10: 6 | R10: 0 | S10: =IFERROR((VLOOKUP(CONCATENATE(P10,Q10),Qui!$D$301:$F$356,3,0)),0) -> 0
A11: 7 | M11: =SUM(D11:L11*(D11:L11>=LARGE(D11:L11,Qui!$A$402))) ->  | N11: =IFERROR((VLOOKUP(CONCATENATE(B11,C11),Qui!$D$301:$F$356,3,)),0) -> 0 | O11: 7 | R11: 0 | S11: =IFERROR((VLOOKUP(CONCATENATE(P11,Q11),Qui!$D$301:$F$356,3,0)),0) -> 0
A12: 8 | M12: =SUM(D12:L12*(D12:L12>=LARGE(D12:L12,Qui!$A$402))) ->  | N12: =IFERROR((VLOOKUP(CONCATENATE(B12,C12),Qui!$D$301:$F$356,3,)),0) -> 0 | O12: 8 | R12: 0 | S12: =IFERROR((VLOOKUP(CONCATENATE(P12,Q12),Qui!$D$301:$F$356,3,0)),0) -> 0
A13: 9 | M13: =SUM(D13:L13*(D13:L13>=LARGE(D13:L13,Qui!$A$402))) ->  | N13: =IFERROR((VLOOKUP(CONCATENATE(B13,C13),Qui!$D$301:$F$356,3,)),0) -> 0 | O13: 9 | R13: 0 | S13: =IFERROR((VLOOKUP(CONCATENATE(P13,Q13),Qui!$D$301:$F$356,3,0)),0) -> 0
A14: 10 | M14: =SUM(D14:L14*(D14:L14>=LARGE(D14:L14,Qui!$A$402))) ->  | N14: =IFERROR((VLOOKUP(CONCATENATE(B14,C14),Qui!$D$301:$F$356,3,)),0) -> 0 | O14: 10 | R14: 0 | S14: =IFERROR((VLOOKUP(CONCATENATE(P14,Q14),Qui!$D$301:$F$356,3,0)),0) -> 0
A15: 11 | M15: =SUM(D15:L15*(D15:L15>=LARGE(D15:L15,Qui!$A$402))) ->  | N15: =IFERROR((VLOOKUP(CONCATENATE(B15,C15),Qui!$D$301:$F$356,3,)),0) -> 0 | O15: 11 | R15: 0 | S15: =IFERROR((VLOOKUP(CONCATENATE(P15,Q15),Qui!$D$301:$F$356,3,0)),0) -> 0
A16: 12 | M16: =SUM(D16:L16*(D16:L16>=LARGE(D16:L16,Qui!$A$402))) ->  | N16: =IFERROR((VLOOKUP(CONCATENATE(B16,C16),Qui!$D$301:$F$356,3,)),0) -> 0 | O16: 12 | R16: 0 | S16: =IFERROR((VLOOKUP(CONCATENATE(P16,Q16),Qui!$D$301:$F$356,3,0)),0) -> 0
A17: 13 | M17: =SUM(D17:L17*(D17:L17>=LARGE(D17:L17,Qui!$A$402))) ->  | N17: =IFERROR((VLOOKUP(CONCATENATE(B17,C17),Qui!$D$301:$F$356,3,)),0) -> 0 | O17: 13 | R17: 0 | S17: =IFERROR((VLOOKUP(CONCATENATE(P17,Q17),Qui!$D$301:$F$356,3,0)),0) -> 0
A18: 14 | M18: =SUM(D18:L18*(D18:L18>=LARGE(D18:L18,Qui!$A$402))) ->  | N18: =IFERROR((VLOOKUP(CONCATENATE(B18,C18),Qui!$D$301:$F$356,3,)),0) -> 0 | O18: 14 | R18: 0 | S18: =IFERROR((VLOOKUP(CONCATENATE(P18,Q18),Qui!$D$301:$F$356,3,0)),0) -> 0
A19: 15 | M19: =SUM(D19:L19*(D19:L19>=LARGE(D19:L19,Qui!$A$402))) ->  | N19: =IFERROR((VLOOKUP(CONCATENATE(B19,C19),Qui!$D$301:$F$356,3,)),0) -> 0 | O19: 15 | R19: 0 | S19: =IFERROR((VLOOKUP(CONCATENATE(P19,Q19),Qui!$D$301:$F$356,3,0)),0) -> 0
A20: 16 | M20: =SUM(D20:L20*(D20:L20>=LARGE(D20:L20,Qui!$A$402))) ->  | N20: =IFERROR((VLOOKUP(CONCATENATE(B20,C20),Qui!$D$301:$F$356,3,)),0) -> 0 | O20: 16 | R20: 0 | S20: =IFERROR((VLOOKUP(CONCATENATE(P20,Q20),Qui!$D$301:$F$356,3,0)),0) -> 0
A21: 17 | M21: =SUM(D21:L21*(D21:L21>=LARGE(D21:L21,Qui!$A$402))) ->  | N21: =IFERROR((VLOOKUP(CONCATENATE(B21,C21),Qui!$D$301:$F$356,3,)),0) -> 0 | O21: 17 | R21: 0 | S21: =IFERROR((VLOOKUP(CONCATENATE(P21,Q21),Qui!$D$301:$F$356,3,0)),0) -> 0
A22: 18 | M22: =SUM(D22:L22*(D22:L22>=LARGE(D22:L22,Qui!$A$402))) ->  | N22: =IFERROR((VLOOKUP(CONCATENATE(B22,C22),Qui!$D$301:$F$356,3,)),0) -> 0 | O22: 18 | R22: 0 | S22: =IFERROR((VLOOKUP(CONCATENATE(P22,Q22),Qui!$D$301:$F$356,3,0)),0) -> 0
A23: 19 | M23: =SUM(D23:L23*(D23:L23>=LARGE(D23:L23,Qui!$A$402))) ->  | N23: =IFERROR((VLOOKUP(CONCATENATE(B23,C23),Qui!$D$301:$F$356,3,)),0) -> 0 | O23: 19 | R23: 0 | S23: =IFERROR((VLOOKUP(CONCATENATE(P23,Q23),Qui!$D$301:$F$356,3,0)),0) -> 0
A24: 20 | M24: =SUM(D24:L24*(D24:L24>=LARGE(D24:L24,Qui!$A$402))) ->  | N24: =IFERROR((VLOOKUP(CONCATENATE(B24,C24),Qui!$D$301:$F$356,3,)),0) -> 0 | O24: 20 | R24: 0 | S24: =IFERROR((VLOOKUP(CONCATENATE(P24,Q24),Qui!$D$301:$F$356,3,0)),0) -> 0
A25: 21 | M25: =SUM(D25:L25*(D25:L25>=LARGE(D25:L25,Qui!$A$402))) ->  | N25: =IFERROR((VLOOKUP(CONCATENATE(B25,C25),Qui!$D$301:$F$356,3,)),0) -> 0 | O25: 21 | R25: 0 | S25: =IFERROR((VLOOKUP(CONCATENATE(P25,Q25),Qui!$D$301:$F$356,3,0)),0) -> 0
A26: 22 | M26: =SUM(D26:L26*(D26:L26>=LARGE(D26:L26,Qui!$A$402))) ->  | N26: =IFERROR((VLOOKUP(CONCATENATE(B26,C26),Qui!$D$301:$F$356,3,)),0) -> 0 | O26: 22 | R26: 0 | S26: =IFERROR((VLOOKUP(CONCATENATE(P26,Q26),Qui!$D$301:$F$356,3,0)),0) -> 0
A27: 23 | M27: =SUM(D27:L27*(D27:L27>=LARGE(D27:L27,Qui!$A$402))) ->  | N27: =IFERROR((VLOOKUP(CONCATENATE(B27,C27),Qui!$D$301:$F$356,3,)),0) -> 0 | O27: 23 | R27: 0 | S27: =IFERROR((VLOOKUP(CONCATENATE(P27,Q27),Qui!$D$301:$F$356,3,0)),0) -> 0
A28: 24 | M28: =SUM(D28:L28*(D28:L28>=LARGE(D28:L28,Qui!$A$402))) ->  | N28: =IFERROR((VLOOKUP(CONCATENATE(B28,C28),Qui!$D$301:$F$356,3,)),0) -> 0 | O28: 24 | R28: 0 | S28: =IFERROR((VLOOKUP(CONCATENATE(P28,Q28),Qui!$D$301:$F$356,3,0)),0) -> 0
A29: 25 | M29: =SUM(D29:L29*(D29:L29>=LARGE(D29:L29,Qui!$A$402))) ->  | N29: =IFERROR((VLOOKUP(CONCATENATE(B29,C29),Qui!$D$301:$F$356,3,)),0) -> 0 | O29: 25 | R29: 0 | S29: =IFERROR((VLOOKUP(CONCATENATE(P29,Q29),Qui!$D$301:$F$356,3,0)),0) -> 0
A30: 26 | M30: =SUM(D30:L30*(D30:L30>=LARGE(D30:L30,Qui!$A$402))) ->  | N30: =IFERROR((VLOOKUP(CONCATENATE(B30,C30),Qui!$D$301:$F$356,3,)),0) -> 0 | O30: 26 | R30: 0 | S30: =IFERROR((VLOOKUP(CONCATENATE(P30,Q30),Qui!$D$301:$F$356,3,0)),0) -> 0
A31: 27 | M31: =SUM(D31:L31*(D31:L31>=LARGE(D31:L31,Qui!$A$402))) ->  | N31: =IFERROR((VLOOKUP(CONCATENATE(B31,C31),Qui!$D$301:$F$356,3,)),0) -> 0 | O31: 27 | R31: 0 | S31: =IFERROR((VLOOKUP(CONCATENATE(P31,Q31),Qui!$D$301:$F$356,3,0)),0) -> 0
A32: 28 | M32: =SUM(D32:L32*(D32:L32>=LARGE(D32:L32,Qui!$A$402))) ->  | N32: =IFERROR((VLOOKUP(CONCATENATE(B32,C32),Qui!$D$301:$F$356,3,)),0) -> 0 | O32: 28 | R32: 0 | S32: =IFERROR((VLOOKUP(CONCATENATE(P32,Q32),Qui!$D$301:$F$356,3,0)),0) -> 0
A33: 29 | M33: =SUM(D33:L33*(D33:L33>=LARGE(D33:L33,Qui!$A$402))) ->  | N33: =IFERROR((VLOOKUP(CONCATENATE(B33,C33),Qui!$D$301:$F$356,3,)),0) -> 0 | O33: 29 | R33: 0 | S33: =IFERROR((VLOOKUP(CONCATENATE(P33,Q33),Qui!$D$301:$F$356,3,0)),0) -> 0
A34: 30 | M34: =SUM(D34:L34*(D34:L34>=LARGE(D34:L34,Qui!$A$402))) ->  | N34: =IFERROR((VLOOKUP(CONCATENATE(B34,C34),Qui!$D$301:$F$356,3,)),0) -> 0 | O34: 30 | R34: 0 | S34: =IFERROR((VLOOKUP(CONCATENATE(P34,Q34),Qui!$D$301:$F$356,3,0)),0) -> 0
A35: 31 | M35: =SUM(D35:L35*(D35:L35>=LARGE(D35:L35,Qui!$A$402))) ->  | N35: =IFERROR((VLOOKUP(CONCATENATE(B35,C35),Qui!$D$301:$F$356,3,)),0) -> 0 | O35: 31 | R35: 0 | S35: =IFERROR((VLOOKUP(CONCATENATE(P35,Q35),Qui!$D$301:$F$356,3,0)),0) -> 0
A36: 32 | M36: =SUM(D36:L36*(D36:L36>=LARGE(D36:L36,Qui!$A$402))) ->  | N36: =IFERROR((VLOOKUP(CONCATENATE(B36,C36),Qui!$D$301:$F$356,3,)),0) -> 0 | O36: 32 | R36: 0 | S36: =IFERROR((VLOOKUP(CONCATENATE(P36,Q36),Qui!$D$301:$F$356,3,0)),0) -> 0
A37: 33 | M37: =SUM(D37:L37*(D37:L37>=LARGE(D37:L37,Qui!$A$402))) ->  | N37: =IFERROR((VLOOKUP(CONCATENATE(B37,C37),Qui!$D$301:$F$356,3,)),0) -> 0 | O37: 33 | R37: 0 | S37: =IFERROR((VLOOKUP(CONCATENATE(P37,Q37),Qui!$D$301:$F$356,3,0)),0) -> 0
A38: 34 | M38: =SUM(D38:L38*(D38:L38>=LARGE(D38:L38,Qui!$A$402))) ->  | N38: =IFERROR((VLOOKUP(CONCATENATE(B38,C38),Qui!$D$301:$F$356,3,)),0) -> 0 | O38: 34 | R38: 0 | S38: =IFERROR((VLOOKUP(CONCATENATE(P38,Q38),Qui!$D$301:$F$356,3,0)),0) -> 0
A39: 35 | M39: =SUM(D39:L39*(D39:L39>=LARGE(D39:L39,Qui!$A$402))) ->  | N39: =IFERROR((VLOOKUP(CONCATENATE(B39,C39),Qui!$D$301:$F$356,3,)),0) -> 0 | O39: 35 | R39: 0 | S39: =IFERROR((VLOOKUP(CONCATENATE(P39,Q39),Qui!$D$301:$F$356,3,0)),0) -> 0
A40: 36 | D40: 0 | E40: 0 | F40: 0 | G40: 0 | H40: 0 | I40: 0 | J40: 0 | K40: 0 | L40: 0 | M40: =SUM(D40:L40*(D40:L40>=LARGE(D40:L40,Qui!$A$402))) -> 0 | N40: =IFERROR((VLOOKUP(CONCATENATE(B40,C40),Qui!$D$301:$F$356,3,)),0) -> 0 | O40: 36 | R40: 0 | S40: =IFERROR((VLOOKUP(CONCATENATE(P40,Q40),Qui!$D$301:$F$356,3,0)),0) -> 0
A41: 37 | D41: 0 | E41: 0 | F41: 0 | G41: 0 | H41: 0 | I41: 0 | J41: 0 | K41: 0 | L41: 0 | M41: =SUM(D41:L41*(D41:L41>=LARGE(D41:L41,Qui!$A$402))) -> 0 | N41: =IFERROR((VLOOKUP(CONCATENATE(B41,C41),Qui!$D$301:$F$356,3,)),0) -> 0 | O41: 37 | R41: 0 | S41: =IFERROR((VLOOKUP(CONCATENATE(P41,Q41),Qui!$D$301:$F$356,3,0)),0) -> 0
A42: 38 | D42: 0 | E42: 0 | F42: 0 | G42: 0 | H42: 0 | I42: 0 | J42: 0 | K42: 0 | L42: 0 | M42: =SUM(D42:L42*(D42:L42>=LARGE(D42:L42,Qui!$A$402))) -> 0 | N42: =IFERROR((VLOOKUP(CONCATENATE(B42,C42),Qui!$D$301:$F$356,3,)),0) -> 0 | O42: 38 | R42: 0 | S42: =IFERROR((VLOOKUP(CONCATENATE(P42,Q42),Qui!$D$301:$F$356,3,0)),0) -> 0
A43: 39 | D43: 0 | E43: 0 | F43: 0 | G43: 0 | H43: 0 | I43: 0 | J43: 0 | K43: 0 | L43: 0 | M43: =SUM(D43:L43*(D43:L43>=LARGE(D43:L43,Qui!$A$402))) -> 0 | N43: =IFERROR((VLOOKUP(CONCATENATE(B43,C43),Qui!$D$301:$F$356,3,)),0) -> 0 | O43: 39 | R43: 0 | S43: =IFERROR((VLOOKUP(CONCATENATE(P43,Q43),Qui!$D$301:$F$356,3,0)),0) -> 0
A44: 40 | D44: 0 | E44: 0 | F44: 0 | G44: 0 | H44: 0 | I44: 0 | J44: 0 | K44: 0 | L44: 0 | M44: =SUM(D44:L44*(D44:L44>=LARGE(D44:L44,Qui!$A$402))) -> 0 | N44: =IFERROR((VLOOKUP(CONCATENATE(B44,C44),Qui!$D$301:$F$356,3,)),0) -> 0 | O44: 40 | R44: 0 | S44: =IFERROR((VLOOKUP(CONCATENATE(P44,Q44),Qui!$D$301:$F$356,3,0)),0) -> 0
A45: 41 | D45: 0 | E45: 0 | F45: 0 | G45: 0 | H45: 0 | I45: 0 | J45: 0 | K45: 0 | L45: 0 | M45: =SUM(D45:L45*(D45:L45>=LARGE(D45:L45,Qui!$A$402))) -> 0 | N45: =IFERROR((VLOOKUP(CONCATENATE(B45,C45),Qui!$D$301:$F$356,3,)),0) -> 0 | O45: 41 | R45: 0 | S45: =IFERROR((VLOOKUP(CONCATENATE(P45,Q45),Qui!$D$301:$F$356,3,0)),0) -> 0
A46: 42 | D46: 0 | E46: 0 | F46: 0 | G46: 0 | H46: 0 | I46: 0 | J46: 0 | K46: 0 | L46: 0 | M46: =SUM(D46:L46*(D46:L46>=LARGE(D46:L46,Qui!$A$402))) -> 0 | N46: =IFERROR((VLOOKUP(CONCATENATE(B46,C46),Qui!$D$301:$F$356,3,)),0) -> 0 | O46: 42 | R46: 0 | S46: =IFERROR((VLOOKUP(CONCATENATE(P46,Q46),Qui!$D$301:$F$356,3,0)),0) -> 0
A47: 43 | D47: 0 | E47: 0 | F47: 0 | G47: 0 | H47: 0 | I47: 0 | J47: 0 | K47: 0 | L47: 0 | M47: =SUM(D47:L47*(D47:L47>=LARGE(D47:L47,Qui!$A$402))) -> 0 | N47: =IFERROR((VLOOKUP(CONCATENATE(B47,C47),Qui!$D$301:$F$356,3,)),0) -> 0 | O47: 43 | R47: 0 | S47: =IFERROR((VLOOKUP(CONCATENATE(P47,Q47),Qui!$D$301:$F$356,3,0)),0) -> 0
A48: 44 | D48: 0 | E48: 0 | F48: 0 | G48: 0 | H48: 0 | I48: 0 | J48: 0 | K48: 0 | L48: 0 | M48: =SUM(D48:L48*(D48:L48>=LARGE(D48:L48,Qui!$A$402))) -> 0 | N48: =IFERROR((VLOOKUP(CONCATENATE(B48,C48),Qui!$D$301:$F$356,3,)),0) -> 0 | O48: 44 | R48: 0 | S48: =IFERROR((VLOOKUP(CONCATENATE(P48,Q48),Qui!$D$301:$F$356,3,0)),0) -> 0
A49: 45 | D49: 0 | E49: 0 | F49: 0 | G49: 0 | H49: 0 | I49: 0 | J49: 0 | K49: 0 | L49: 0 | M49: =SUM(D49:L49*(D49:L49>=LARGE(D49:L49,Qui!$A$402))) -> 0 | N49: =IFERROR((VLOOKUP(CONCATENATE(B49,C49),Qui!$D$301:$F$356,3,)),0) -> 0 | O49: 45 | R49: 0 | S49: =IFERROR((VLOOKUP(CONCATENATE(P49,Q49),Qui!$D$301:$F$356,3,0)),0) -> 0
A50: 46 | D50: 0 | E50: 0 | F50: 0 | G50: 0 | H50: 0 | I50: 0 | J50: 0 | K50: 0 | L50: 0 | M50: =SUM(D50:L50*(D50:L50>=LARGE(D50:L50,Qui!$A$402))) -> 0 | N50: =IFERROR((VLOOKUP(CONCATENATE(B50,C50),Qui!$D$301:$F$356,3,)),0) -> 0 | O50: 46 | R50: 0 | S50: =IFERROR((VLOOKUP(CONCATENATE(P50,Q50),Qui!$D$301:$F$356,3,0)),0) -> 0
A51: 47 | D51: 0 | E51: 0 | F51: 0 | G51: 0 | H51: 0 | I51: 0 | J51: 0 | K51: 0 | L51: 0 | M51: =SUM(D51:L51*(D51:L51>=LARGE(D51:L51,Qui!$A$402))) -> 0 | N51: =IFERROR((VLOOKUP(CONCATENATE(B51,C51),Qui!$D$301:$F$356,3,)),0) -> 0 | O51: 47 | R51: 0 | S51: =IFERROR((VLOOKUP(CONCATENATE(P51,Q51),Qui!$D$301:$F$356,3,0)),0) -> 0
A52: 48 | D52: 0 | E52: 0 | F52: 0 | G52: 0 | H52: 0 | I52: 0 | J52: 0 | K52: 0 | L52: 0 | M52: =SUM(D52:L52*(D52:L52>=LARGE(D52:L52,Qui!$A$402))) -> 0 | N52: =IFERROR((VLOOKUP(CONCATENATE(B52,C52),Qui!$D$301:$F$356,3,)),0) -> 0 | O52: 48 | R52: 0 | S52: =IFERROR((VLOOKUP(CONCATENATE(P52,Q52),Qui!$D$301:$F$356,3,0)),0) -> 0
A53: 49 | D53: 0 | E53: 0 | F53: 0 | G53: 0 | H53: 0 | I53: 0 | J53: 0 | K53: 0 | L53: 0 | M53: =SUM(D53:L53*(D53:L53>=LARGE(D53:L53,Qui!$A$402))) -> 0 | N53: =IFERROR((VLOOKUP(CONCATENATE(B53,C53),Qui!$D$301:$F$356,3,)),0) -> 0 | O53: 49 | R53: 0 | S53: =IFERROR((VLOOKUP(CONCATENATE(P53,Q53),Qui!$D$301:$F$356,3,0)),0) -> 0
A54: 50 | D54: 0 | E54: 0 | F54: 0 | G54: 0 | H54: 0 | I54: 0 | J54: 0 | K54: 0 | L54: 0 | M54: =SUM(D54:L54*(D54:L54>=LARGE(D54:L54,Qui!$A$402))) -> 0 | N54: =IFERROR((VLOOKUP(CONCATENATE(B54,C54),Qui!$D$301:$F$356,3,)),0) -> 0 | O54: 50 | R54: 0 | S54: =IFERROR((VLOOKUP(CONCATENATE(P54,Q54),Qui!$D$301:$F$356,3,0)),0) -> 0
A55: 51 | D55: 0 | E55: 0 | F55: 0 | G55: 0 | H55: 0 | I55: 0 | J55: 0 | K55: 0 | L55: 0 | M55: =SUM(D55:L55*(D55:L55>=LARGE(D55:L55,Qui!$A$402))) -> 0 | N55: =IFERROR((VLOOKUP(CONCATENATE(B55,C55),Qui!$D$301:$F$356,3,)),0) -> 0 | O55: 51 | R55: 0 | S55: =IFERROR((VLOOKUP(CONCATENATE(P55,Q55),Qui!$D$301:$F$356,3,0)),0) -> 0
A56: 52 | D56: 0 | E56: 0 | F56: 0 | G56: 0 | H56: 0 | I56: 0 | J56: 0 | K56: 0 | L56: 0 | M56: =SUM(D56:L56*(D56:L56>=LARGE(D56:L56,Qui!$A$402))) -> 0 | N56: =IFERROR((VLOOKUP(CONCATENATE(B56,C56),Qui!$D$301:$F$356,3,)),0) -> 0 | O56: 52 | R56: 0 | S56: =IFERROR((VLOOKUP(CONCATENATE(P56,Q56),Qui!$D$301:$F$356,3,0)),0) -> 0
A57: 53 | E57: 0 | F57: 0 | G57: 0 | H57: 0 | I57: 0 | J57: 0 | K57: 0 | L57: 0 | M57: =SUM(D57:L57*(D57:L57>=LARGE(D57:L57,Qui!$A$402))) -> 0 | N57: =IFERROR((VLOOKUP(CONCATENATE(B57,C57),Qui!$D$301:$F$356,3,)),0) -> 0 | O57: 53 | R57: 0 | S57: =IFERROR((VLOOKUP(CONCATENATE(P57,Q57),Qui!$D$301:$F$356,3,0)),0) -> 0
A58: 54 | E58: 0 | F58: 0 | G58: 0 | H58: 0 | I58: 0 | J58: 0 | K58: 0 | L58: 0 | M58: =SUM(D58:L58*(D58:L58>=LARGE(D58:L58,Qui!$A$402))) -> 0 | N58: =IFERROR((VLOOKUP(CONCATENATE(B58,C58),Qui!$D$301:$F$356,3,)),0) -> 0 | O58: 54 | R58: 0 | S58: =IFERROR((VLOOKUP(CONCATENATE(P58,Q58),Qui!$D$301:$F$356,3,0)),0) -> 0
D59: =MAX(D5:D58) -> 0 | F59: =MAX(F5:F58) -> 0 | G59: =MAX(G5:G58) -> 0 | I59: =MAX(I5:I58) -> 0 | J59: =MAX(J5:J58) -> 0 | K59: =MAX(K5:K58) -> 0 | L59: =MAX(L5:L58) -> 0
A60: Classement général par équipe | O60: Classement par équipe
A62: 1 | M62: =SUM(D62:L62*(D62:L62>=LARGE(D62:L62,Qui!$B$402))) ->  | N62: =VLOOKUP(B62,Qui!$A$201:$D$204,4) ->  | O62: 1 | R62: 0 | S62: =VLOOKUP(P62,Qui!$A$201:$D$204,4) -> 
A63: 2 | M63: =SUM(D63:L63*(D63:L63>=LARGE(D63:L63,Qui!$B$402))) ->  | N63: =VLOOKUP(B63,Qui!$A$201:$D$204,4) ->  | O63: 2 | R63: 0 | S63: =VLOOKUP(P63,Qui!$A$201:$D$204,4) -> 
A64: 3 | M64: =SUM(D64:L64*(D64:L64>=LARGE(D64:L64,Qui!$B$402))) ->  | N64: =VLOOKUP(B64,Qui!$A$201:$D$204,4) ->  | O64: 3 | R64: 0 | S64: =VLOOKUP(P64,Qui!$A$201:$D$204,4) -> 
A65: 4 | M65: =SUM(D65:L65*(D65:L65>=LARGE(D65:L65,Qui!$B$402))) ->  | N65: =VLOOKUP(B65,Qui!$A$201:$D$204,4) ->  | O65: 4 | R65: 0 | S65: =VLOOKUP(P65,Qui!$A$201:$D$204,4) -> 
A66: 5 | E66: 435 | M66: =SUM(D66:L66*(D66:L66>=LARGE(D66:L66,Qui!$B$402))) ->  | N66: =VLOOKUP(B66,Qui!$A$201:$D$204,4) ->  | O66: 5 | R66: =SUMPRODUCT(((($S$5:$S$58=S66)*$R$5:$R$58*1))*((($S$5:$S$58=S66)*$R$5:$R$58*1)>=LARGE((($S$5:$S$58=S66)*$R$5:$R$58*1),Qui!$B$402))) ->  | S66: =VLOOKUP(P66,Qui!$A$201:$D$204,4) -> 
A67: 6 | E67: 435 | M67: =SUM(D67:L67*(D67:L67>=LARGE(D67:L67,Qui!$B$402))) ->  | N67: =VLOOKUP(B67,Qui!$A$201:$D$204,4) ->  | O67: 6 | R67: =SUMPRODUCT(((($S$5:$S$58=S67)*$R$5:$R$58*1))*((($S$5:$S$58=S67)*$R$5:$R$58*1)>=LARGE((($S$5:$S$58=S67)*$R$5:$R$58*1),Qui!$B$402))) ->  | S67: =VLOOKUP(P67,Qui!$A$201:$D$204,4) -> 
D68: =MAX(D62:D67) -> 0 | F68: =MAX(F62:F67) ->  | G68: =MAX(G62:G67) ->  | I68: =MAX(I62:I67) -> 0 | J68: =MAX(J62:J67) -> 0 | K68: =MAX(K62:K67) -> 0 | L68: =MAX(L62:L67) -> 0 | R68: 0
M69: La Chaux-de-Fonds, le 4 décembre 2019, CM / DP
B71: =CONCATENATE("Rappels :") -> Rappels :
B73: =CONCATENATE("a) le classement général par équipe est fait sur le cumul des ",Qui!$B$402," meilleurs résultats individuels de chaque manche") -> a) le classement général par équipe est fait sur le cumul des 5 meilleurs résultats individuels de chaque manche
B74: =CONCATENATE("b) le classement général individuel est fait sur le cumul des ",Qui!$A$402," meilleurs résultats individuels") -> b) le classement général individuel est fait sur le cumul des 5 meilleurs résultats individuels

Sheet Manche_7 (hidden)
A1: Association intercantonale des joueurs de boules Grand Jeu Neuchâtelois
A2: =CONCATENATE("Championnat grand jeu neuchâtelois ",YEAR(Calendrier!B6)) -> Championnat grand jeu neuchâtelois 2020
A3: Classement général individuel | C3: Manches | D3: =Calendrier!F40 -> Le Locle | E3: =Calendrier!F47 -> Grand-Sommartel | F3: =Calendrier!F54 -> L'Epi | G3: =Calendrier!F61 -> La Chaux-de-Fonds | H3: =Calendrier!F68 -> Evologia | I3: =Calendrier!F75 -> La Vue-des-Alpes | J3: =Calendrier!F82 -> 00:00:00 | M3: =CONCATENATE("Général",CHAR(10),"les ",Qui!$A$402," meilleurs") -> Général les 5 meilleurs | P3: =CONCATENATE("Classement de la manche",CHAR(10),Calendrier!F82,CHAR(10),"du ",TEXT(Calendrier!F84," jj.mm")," au ",TEXT(Calendrier!F87," jj.mm.aaaa")) -> Classement de la manche du 07.01 au 10.01.1900
D4: 1 | E4: 2 | F4: 3 | G4: 4 | H4: 5 | I4: 6 | J4: 7 | K4: 8 | L4: 9 | P4: =CONCATENATE("Champion de jeu : ",CHAR(10),P5," ",Q5) -> Champion de jeu :
A5: 1 | M5: =SUM(D5:L5*(D5:L5>=LARGE(D5:L5,Qui!$A$402))) ->  | N5: =IFERROR((VLOOKUP(CONCATENATE(B5,C5),Qui!$D$301:$F$356,3,)),0) -> 0 | O5: 1 | R5: 0 | S5: =IFERROR((VLOOKUP(CONCATENATE(P5,Q5),Qui!$D$301:$F$356,3,0)),0) -> 0
A6: 2 | M6: =SUM(D6:L6*(D6:L6>=LARGE(D6:L6,Qui!$A$402))) ->  | N6: =IFERROR((VLOOKUP(CONCATENATE(B6,C6),Qui!$D$301:$F$356,3,)),0) -> 0 | O6: 2 | R6: 0 | S6: =IFERROR((VLOOKUP(CONCATENATE(P6,Q6),Qui!$D$301:$F$356,3,0)),0) -> 0
A7: 3 | M7: =SUM(D7:L7*(D7:L7>=LARGE(D7:L7,Qui!$A$402))) ->  | N7: =IFERROR((VLOOKUP(CONCATENATE(B7,C7),Qui!$D$301:$F$356,3,)),0) -> 0 | O7: 3 | R7: 0 | S7: =IFERROR((VLOOKUP(CONCATENATE(P7,Q7),Qui!$D$301:$F$356,3,0)),0) -> 0
A8: 4 | M8: =SUM(D8:L8*(D8:L8>=LARGE(D8:L8,Qui!$A$402))) ->  | N8: =IFERROR((VLOOKUP(CONCATENATE(B8,C8),Qui!$D$301:$F$356,3,)),0) -> 0 | O8: 4 | R8: 0 | S8: =IFERROR((VLOOKUP(CONCATENATE(P8,Q8),Qui!$D$301:$F$356,3,0)),0) -> 0
A9: 5 | M9: =SUM(D9:L9*(D9:L9>=LARGE(D9:L9,Qui!$A$402))) ->  | N9: =IFERROR((VLOOKUP(CONCATENATE(B9,C9),Qui!$D$301:$F$356,3,)),0) -> 0 | O9: 5 | R9: 0 | S9: =IFERROR((VLOOKUP(CONCATENATE(P9,Q9),Qui!$D$301:$F$356,3,0)),0) -> 0
A10: 6 | M10: =SUM(D10:L10*(D10:L10>=LARGE(D10:L10,Qui!$A$402))) ->  | N10: =IFERROR((VLOOKUP(CONCATENATE(B10,C10),Qui!$D$301:$F$356,3,)),0) -> 0 | O10: 6 | R10: 0 | S10: =IFERROR((VLOOKUP(CONCATENATE(P10,Q10),Qui!$D$301:$F$356,3,0)),0) -> 0
A11: 7 | M11: =SUM(D11:L11*(D11:L11>=LARGE(D11:L11,Qui!$A$402))) ->  | N11: =IFERROR((VLOOKUP(CONCATENATE(B11,C11),Qui!$D$301:$F$356,3,)),0) -> 0 | O11: 7 | R11: 0 | S11: =IFERROR((VLOOKUP(CONCATENATE(P11,Q11),Qui!$D$301:$F$356,3,0)),0) -> 0
A12: 8 | M12: =SUM(D12:L12*(D12:L12>=LARGE(D12:L12,Qui!$A$402))) ->  | N12: =IFERROR((VLOOKUP(CONCATENATE(B12,C12),Qui!$D$301:$F$356,3,)),0) -> 0 | O12: 8 | R12: 0 | S12: =IFERROR((VLOOKUP(CONCATENATE(P12,Q12),Qui!$D$301:$F$356,3,0)),0) -> 0
A13: 9 | M13: =SUM(D13:L13*(D13:L13>=LARGE(D13:L13,Qui!$A$402))) ->  | N13: =IFERROR((VLOOKUP(CONCATENATE(B13,C13),Qui!$D$301:$F$356,3,)),0) -> 0 | O13: 9 | R13: 0 | S13: =IFERROR((VLOOKUP(CONCATENATE(P13,Q13),Qui!$D$301:$F$356,3,0)),0) -> 0
A14: 10 | M14: =SUM(D14:L14*(D14:L14>=LARGE(D14:L14,Qui!$A$402))) ->  | N14: =IFERROR((VLOOKUP(CONCATENATE(B14,C14),Qui!$D$301:$F$356,3,)),0) -> 0 | O14: 10 | R14: 0 | S14: =IFERROR((VLOOKUP(CONCATENATE(P14,Q14),Qui!$D$301:$F$356,3,0)),0) -> 0
A15: 11 | M15: =SUM(D15:L15*(D15:L15>=LARGE(D15:L15,Qui!$A$402))) ->  | N15: =IFERROR((VLOOKUP(CONCATENATE(B15,C15),Qui!$D$301:$F$356,3,)),0) -> 0 | O15: 11 | R15: 0 | S15: =IFERROR((VLOOKUP(CONCATENATE(P15,Q15),Qui!$D$301:$F$356,3,0)),0) -> 0
A16: 12 | M16: =SUM(D16:L16*(D16:L16>=LARGE(D16:L16,Qui!$A$402))) ->  | N16: =IFERROR((VLOOKUP(CONCATENATE(B16,C16),Qui!$D$301:$F$356,3,)),0) -> 0 | O16: 12 | R16: 0 | S16: =IFERROR((VLOOKUP(CONCATENATE(P16,Q16),Qui!$D$301:$F$356,3,0)),0) -> 0
A17: 13 | M17: =SUM(D17:L17*(D17:L17>=LARGE(D17:L17,Qui!$A$402))) ->  | N17: =IFERROR((VLOOKUP(CONCATENATE(B17,C17),Qui!$D$301:$F$356,3,)),0) -> 0 | O17: 13 | R17: 0 | S17: =IFERROR((VLOOKUP(CONCATENATE(P17,Q17),Qui!$D$301:$F$356,3,0)),0) -> 0
A18: 14 | M18: =SUM(D18:L18*(D18:L18>=LARGE(D18:L18,Qui!$A$402))) ->  | N18: =IFERROR((VLOOKUP(CONCATENATE(B18,C18),Qui!$D$301:$F$356,3,)),0) -> 0 | O18: 14 | R18: 0 | S18: =IFERROR((VLOOKUP(CONCATENATE(P18,Q18),Qui!$D$301:$F$356,3,0)),0) -> 0
A19: 15 | M19: =SUM(D19:L19*(D19:L19>=LARGE(D19:L19,Qui!$A$402))) ->  | N19: =IFERROR((VLOOKUP(CONCATENATE(B19,C19),Qui!$D$301:$F$356,3,)),0) -> 0 | O19: 15 | R19: 0 | S19: =IFERROR((VLOOKUP(CONCATENATE(P19,Q19),Qui!$D$301:$F$356,3,0)),0) -> 0
A20: 16 | M20: =SUM(D20:L20*(D20:L20>=LARGE(D20:L20,Qui!$A$402))) ->  | N20: =IFERROR((VLOOKUP(CONCATENATE(B20,C20),Qui!$D$301:$F$356,3,)),0) -> 0 | O20: 16 | R20: 0 | S20: =IFERROR((VLOOKUP(CONCATENATE(P20,Q20),Qui!$D$301:$F$356,3,0)),0) -> 0
A21: 17 | M21: =SUM(D21:L21*(D21:L21>=LARGE(D21:L21,Qui!$A$402))) ->  | N21: =IFERROR((VLOOKUP(CONCATENATE(B21,C21),Qui!$D$301:$F$356,3,)),0) -> 0 | O21: 17 | R21: 0 | S21: =IFERROR((VLOOKUP(CONCATENATE(P21,Q21),Qui!$D$301:$F$356,3,0)),0) -> 0
A22: 18 | M22: =SUM(D22:L22*(D22:L22>=LARGE(D22:L22,Qui!$A$402))) ->  | N22: =IFERROR((VLOOKUP(CONCATENATE(B22,C22),Qui!$D$301:$F$356,3,)),0) -> 0 | O22: 18 | R22: 0 | S22: =IFERROR((VLOOKUP(CONCATENATE(P22,Q22),Qui!$D$301:$F$356,3,0)),0) -> 0
A23: 19 | M23: =SUM(D23:L23*(D23:L23>=LARGE(D23:L23,Qui!$A$402))) ->  | N23: =IFERROR((VLOOKUP(CONCATENATE(B23,C23),Qui!$D$301:$F$356,3,)),0) -> 0 | O23: 19 | R23: 0 | S23: =IFERROR((VLOOKUP(CONCATENATE(P23,Q23),Qui!$D$301:$F$356,3,0)),0) -> 0
A24: 20 | M24: =SUM(D24:L24*(D24:L24>=LARGE(D24:L24,Qui!$A$402))) ->  | N24: =IFERROR((VLOOKUP(CONCATENATE(B24,C24),Qui!$D$301:$F$356,3,)),0) -> 0 | O24: 20 | R24: 0 | S24: =IFERROR((VLOOKUP(CONCATENATE(P24,Q24),Qui!$D$301:$F$356,3,0)),0) -> 0
A25: 21 | M25: =SUM(D25:L25*(D25:L25>=LARGE(D25:L25,Qui!$A$402))) ->  | N25: =IFERROR((VLOOKUP(CONCATENATE(B25,C25),Qui!$D$301:$F$356,3,)),0) -> 0 | O25: 21 | R25: 0 | S25: =IFERROR((VLOOKUP(CONCATENATE(P25,Q25),Qui!$D$301:$F$356,3,0)),0) -> 0
A26: 22 | M26: =SUM(D26:L26*(D26:L26>=LARGE(D26:L26,Qui!$A$402))) ->  | N26: =IFERROR((VLOOKUP(CONCATENATE(B26,C26),Qui!$D$301:$F$356,3,)),0) -> 0 | O26: 22 | R26: 0 | S26: =IFERROR((VLOOKUP(CONCATENATE(P26,Q26),Qui!$D$301:$F$356,3,0)),0) -> 0
A27: 23 | M27: =SUM(D27:L27*(D27:L27>=LARGE(D27:L27,Qui!$A$402))) ->  | N27: =IFERROR((VLOOKUP(CONCATENATE(B27,C27),Qui!$D$301:$F$356,3,)),0) -> 0 | O27: 23 | R27: 0 | S27: =IFERROR((VLOOKUP(CONCATENATE(P27,Q27),Qui!$D$301:$F$356,3,0)),0) -> 0
A28: 24 | M28: =SUM(D28:L28*(D28:L28>=LARGE(D28:L28,Qui!$A$402))) ->  | N28: =IFERROR((VLOOKUP(CONCATENATE(B28,C28),Qui!$D$301:$F$356,3,)),0) -> 0 | O28: 24 | R28: 0 | S28: =IFERROR((VLOOKUP(CONCATENATE(P28,Q28),Qui!$D$301:$F$356,3,0)),0) -> 0
A29: 25 | M29: =SUM(D29:L29*(D29:L29>=LARGE(D29:L29,Qui!$A$402))) ->  | N29: =IFERROR((VLOOKUP(CONCATENATE(B29,C29),Qui!$D$301:$F$356,3,)),0) -> 0 | O29: 25 | R29: 0 | S29: =IFERROR((VLOOKUP(CONCATENATE(P29,Q29),Qui!$D$301:$F$356,3,0)),0) -> 0
A30: 26 | M30: =SUM(D30:L30*(D30:L30>=LARGE(D30:L30,Qui!$A$402))) ->  | N30: =IFERROR((VLOOKUP(CONCATENATE(B30,C30),Qui!$D$301:$F$356,3,)),0) -> 0 | O30: 26 | R30: 0 | S30: =IFERROR((VLOOKUP(CONCATENATE(P30,Q30),Qui!$D$301:$F$356,3,0)),0) -> 0
A31: 27 | M31: =SUM(D31:L31*(D31:L31>=LARGE(D31:L31,Qui!$A$402))) ->  | N31: =IFERROR((VLOOKUP(CONCATENATE(B31,C31),Qui!$D$301:$F$356,3,)),0) -> 0 | O31: 27 | R31: 0 | S31: =IFERROR((VLOOKUP(CONCATENATE(P31,Q31),Qui!$D$301:$F$356,3,0)),0) -> 0
A32: 28 | M32: =SUM(D32:L32*(D32:L32>=LARGE(D32:L32,Qui!$A$402))) ->  | N32: =IFERROR((VLOOKUP(CONCATENATE(B32,C32),Qui!$D$301:$F$356,3,)),0) -> 0 | O32: 28 | R32: 0 | S32: =IFERROR((VLOOKUP(CONCATENATE(P32,Q32),Qui!$D$301:$F$356,3,0)),0) -> 0
A33: 29 | M33: =SUM(D33:L33*(D33:L33>=LARGE(D33:L33,Qui!$A$402))) ->  | N33: =IFERROR((VLOOKUP(CONCATENATE(B33,C33),Qui!$D$301:$F$356,3,)),0) -> 0 | O33: 29 | R33: 0 | S33: =IFERROR((VLOOKUP(CONCATENATE(P33,Q33),Qui!$D$301:$F$356,3,0)),0) -> 0
A34: 30 | M34: =SUM(D34:L34*(D34:L34>=LARGE(D34:L34,Qui!$A$402))) ->  | N34: =IFERROR((VLOOKUP(CONCATENATE(B34,C34),Qui!$D$301:$F$356,3,)),0) -> 0 | O34: 30 | R34: 0 | S34: =IFERROR((VLOOKUP(CONCATENATE(P34,Q34),Qui!$D$301:$F$356,3,0)),0) -> 0
A35: 31 | M35: =SUM(D35:L35*(D35:L35>=LARGE(D35:L35,Qui!$A$402))) ->  | N35: =IFERROR((VLOOKUP(CONCATENATE(B35,C35),Qui!$D$301:$F$356,3,)),0) -> 0 | O35: 31 | R35: 0 | S35: =IFERROR((VLOOKUP(CONCATENATE(P35,Q35),Qui!$D$301:$F$356,3,0)),0) -> 0
A36: 32 | M36: =SUM(D36:L36*(D36:L36>=LARGE(D36:L36,Qui!$A$402))) ->  | N36: =IFERROR((VLOOKUP(CONCATENATE(B36,C36),Qui!$D$301:$F$356,3,)),0) -> 0 | O36: 32 | R36: 0 | S36: =IFERROR((VLOOKUP(CONCATENATE(P36,Q36),Qui!$D$301:$F$356,3,0)),0) -> 0
A37: 33 | M37: =SUM(D37:L37*(D37:L37>=LARGE(D37:L37,Qui!$A$402))) ->  | N37: =IFERROR((VLOOKUP(CONCATENATE(B37,C37),Qui!$D$301:$F$356,3,)),0) -> 0 | O37: 33 | R37: 0 | S37: =IFERROR((VLOOKUP(CONCATENATE(P37,Q37),Qui!$D$301:$F$356,3,0)),0) -> 0
A38: 34 | M38: =SUM(D38:L38*(D38:L38>=LARGE(D38:L38,Qui!$A$402))) ->  | N38: =IFERROR((VLOOKUP(CONCATENATE(B38,C38),Qui!$D$301:$F$356,3,)),0) -> 0 | O38: 34 | R38: 0 | S38: =IFERROR((VLOOKUP(CONCATENATE(P38,Q38),Qui!$D$301:$F$356,3,0)),0) -> 0
A39: 35 | M39: =SUM(D39:L39*(D39:L39>=LARGE(D39:L39,Qui!$A$402))) ->  | N39: =IFERROR((VLOOKUP(CONCATENATE(B39,C39),Qui!$D$301:$F$356,3,)),0) -> 0 | O39: 35 | R39: 0 | S39: =IFERROR((VLOOKUP(CONCATENATE(P39,Q39),Qui!$D$301:$F$356,3,0)),0) -> 0
A40: 36 | D40: 0 | E40: 0 | F40: 0 | G40: 0 | H40: 0 | I40: 0 | J40: 0 | K40: 0 | L40: 0 | M40: =SUM(D40:L40*(D40:L40>=LARGE(D40:L40,Qui!$A$402))) -> 0 | N40: =IFERROR((VLOOKUP(CONCATENATE(B40,C40),Qui!$D$301:$F$356,3,)),0) -> 0 | O40: 36 | R40: 0 | S40: =IFERROR((VLOOKUP(CONCATENATE(P40,Q40),Qui!$D$301:$F$356,3,0)),0) -> 0
A41: 37 | D41: 0 | E41: 0 | F41: 0 | G41: 0 | H41: 0 | I41: 0 | J41: 0 | K41: 0 | L41: 0 | M41: =SUM(D41:L41*(D41:L41>=LARGE(D41:L41,Qui!$A$402))) -> 0 | N41: =IFERROR((VLOOKUP(CONCATENATE(B41,C41),Qui!$D$301:$F$356,3,)),0) -> 0 | O41: 37 | R41: 0 | S41: =IFERROR((VLOOKUP(CONCATENATE(P41,Q41),Qui!$D$301:$F$356,3,0)),0) -> 0
A42: 38 | D42: 0 | E42: 0 | F42: 0 | G42: 0 | H42: 0 | I42: 0 | J42: 0 | K42: 0 | L42: 0 | M42: =SUM(D42:L42*(D42:L42>=LARGE(D42:L42,Qui!$A$402))) -> 0 | N42: =IFERROR((VLOOKUP(CONCATENATE(B42,C42),Qui!$D$301:$F$356,3,)),0) -> 0 | O42: 38 | R42: 0 | S42: =IFERROR((VLOOKUP(CONCATENATE(P42,Q42),Qui!$D$301:$F$356,3,0)),0) -> 0
A43: 39 | D43: 0 | E43: 0 | F43: 0 | G43: 0 | H43: 0 | I43: 0 | J43: 0 | K43: 0 | L43: 0 | M43: =SUM(D43:L43*(D43:L43>=LARGE(D43:L43,Qui!$A$402))) -> 0 | N43: =IFERROR((VLOOKUP(CONCATENATE(B43,C43),Qui!$D$301:$F$356,3,)),0) -> 0 | O43: 39 | R43: 0 | S43: =IFERROR((VLOOKUP(CONCATENATE(P43,Q43),Qui!$D$301:$F$356,3,0)),0) -> 0
A44: 40 | D44: 0 | E44: 0 | F44: 0 | G44: 0 | H44: 0 | I44: 0 | J44: 0 | K44: 0 | L44: 0 | M44: =SUM(D44:L44*(D44:L44>=LARGE(D44:L44,Qui!$A$402))) -> 0 | N44: =IFERROR((VLOOKUP(CONCATENATE(B44,C44),Qui!$D$301:$F$356,3,)),0) -> 0 | O44: 40 | R44: 0 | S44: =IFERROR((VLOOKUP(CONCATENATE(P44,Q44),Qui!$D$301:$F$356,3,0)),0) -> 0
A45: 41 | D45: 0 | E45: 0 | F45: 0 | G45: 0 | H45: 0 | I45: 0 | J45: 0 | K45: 0 | L45: 0 | M45: =SUM(D45:L45*(D45:L45>=LARGE(D45:L45,Qui!$A$402))) -> 0 | N45: =IFERROR((VLOOKUP(CONCATENATE(B45,C45),Qui!$D$301:$F$356,3,)),0) -> 0 | O45: 41 | R45: 0 | S45: =IFERROR((VLOOKUP(CONCATENATE(P45,Q45),Qui!$D$301:$F$356,3,0)),0) -> 0
A46: 42 | D46: 0 | E46: 0 | F46: 0 | G46: 0 | H46: 0 | I46: 0 | J46: 0 | K46: 0 | L46: 0 | M46: =SUM(D46:L46*(D46:L46>=LARGE(D46:L46,Qui!$A$402))) -> 0 | N46: =IFERROR((VLOOKUP(CONCATENATE(B46,C46),Qui!$D$301:$F$356,3,)),0) -> 0 | O46: 42 | R46: 0 | S46: =IFERROR((VLOOKUP(CONCATENATE(P46,Q46),Qui!$D$301:$F$356,3,0)),0) -> 0
A47: 43 | D47: 0 | E47: 0 | F47: 0 | G47: 0 | H47: 0 | I47: 0 | J47: 0 | K47: 0 | L47: 0 | M47: =SUM(D47:L47*(D47:L47>=LARGE(D47:L47,Qui!$A$402))) -> 0 | N47: =IFERROR((VLOOKUP(CONCATENATE(B47,C47),Qui!$D$301:$F$356,3,)),0) -> 0 | O47: 43 | R47: 0 | S47: =IFERROR((VLOOKUP(CONCATENATE(P47,Q47),Qui!$D$301:$F$356,3,0)),0) -> 0
A48: 44 | D48: 0 | E48: 0 | F48: 0 | G48: 0 | H48: 0 | I48: 0 | J48: 0 | K48: 0 | L48: 0 | M48: =SUM(D48:L48*(D48:L48>=LARGE(D48:L48,Qui!$A$402))) -> 0 | N48: =IFERROR((VLOOKUP(CONCATENATE(B48,C48),Qui!$D$301:$F$356,3,)),0) -> 0 | O48: 44 | R48: 0 | S48: =IFERROR((VLOOKUP(CONCATENATE(P48,Q48),Qui!$D$301:$F$356,3,0)),0) -> 0
A49: 45 | D49: 0 | E49: 0 | F49: 0 | G49: 0 | H49: 0 | I49: 0 | J49: 0 | K49: 0 | L49: 0 | M49: =SUM(D49:L49*(D49:L49>=LARGE(D49:L49,Qui!$A$402))) -> 0 | N49: =IFERROR((VLOOKUP(CONCATENATE(B49,C49),Qui!$D$301:$F$356,3,)),0) -> 0 | O49: 45 | R49: 0 | S49: =IFERROR((VLOOKUP(CONCATENATE(P49,Q49),Qui!$D$301:$F$356,3,0)),0) -> 0
A50: 46 | D50: 0 | E50: 0 | F50: 0 | G50: 0 | H50: 0 | I50: 0 | J50: 0 | K50: 0 | L50: 0 | M50: =SUM(D50:L50*(D50:L50>=LARGE(D50:L50,Qui!$A$402))) -> 0 | N50: =IFERROR((VLOOKUP(CONCATENATE(B50,C50),Qui!$D$301:$F$356,3,)),0) -> 0 | O50: 46 | R50: 0 | S50: =IFERROR((VLOOKUP(CONCATENATE(P50,Q50),Qui!$D$301:$F$356,3,0)),0) -> 0
A51: 47 | D51: 0 | E51: 0 | F51: 0 | G51: 0 | H51: 0 | I51: 0 | J51: 0 | K51: 0 | L51: 0 | M51: =SUM(D51:L51*(D51:L51>=LARGE(D51:L51,Qui!$A$402))) -> 0 | N51: =IFERROR((VLOOKUP(CONCATENATE(B51,C51),Qui!$D$301:$F$356,3,)),0) -> 0 | O51: 47 | R51: 0 | S51: =IFERROR((VLOOKUP(CONCATENATE(P51,Q51),Qui!$D$301:$F$356,3,0)),0) -> 0
A52: 48 | D52: 0 | E52: 0 | F52: 0 | G52: 0 | H52: 0 | I52: 0 | J52: 0 | K52: 0 | L52: 0 | M52: =SUM(D52:L52*(D52:L52>=LARGE(D52:L52,Qui!$A$402))) -> 0 | N52: =IFERROR((VLOOKUP(CONCATENATE(B52,C52),Qui!$D$301:$F$356,3,)),0) -> 0 | O52: 48 | R52: 0 | S52: =IFERROR((VLOOKUP(CONCATENATE(P52,Q52),Qui!$D$301:$F$356,3,0)),0) -> 0
A53: 49 | D53: 0 | E53: 0 | F53: 0 | G53: 0 | H53: 0 | I53: 0 | J53: 0 | K53: 0 | L53: 0 | M53: =SUM(D53:L53*(D53:L53>=LARGE(D53:L53,Qui!$A$402))) -> 0 | N53: =IFERROR((VLOOKUP(CONCATENATE(B53,C53),Qui!$D$301:$F$356,3,)),0) -> 0 | O53: 49 | R53: 0 | S53: =IFERROR((VLOOKUP(CONCATENATE(P53,Q53),Qui!$D$301:$F$356,3,0)),0) -> 0
A54: 50 | D54: 0 | E54: 0 | F54: 0 | G54: 0 | H54: 0 | I54: 0 | J54: 0 | K54: 0 | L54: 0 | M54: =SUM(D54:L54*(D54:L54>=LARGE(D54:L54,Qui!$A$402))) -> 0 | N54: =IFERROR((VLOOKUP(CONCATENATE(B54,C54),Qui!$D$301:$F$356,3,)),0) -> 0 | O54: 50 | R54: 0 | S54: =IFERROR((VLOOKUP(CONCATENATE(P54,Q54),Qui!$D$301:$F$356,3,0)),0) -> 0
A55: 51 | D55: 0 | E55: 0 | F55: 0 | G55: 0 | H55: 0 | I55: 0 | J55: 0 | K55: 0 | L55: 0 | M55: =SUM(D55:L55*(D55:L55>=LARGE(D55:L55,Qui!$A$402))) -> 0 | N55: =IFERROR((VLOOKUP(CONCATENATE(B55,C55),Qui!$D$301:$F$356,3,)),0) -> 0 | O55: 51 | R55: 0 | S55: =IFERROR((VLOOKUP(CONCATENATE(P55,Q55),Qui!$D$301:$F$356,3,0)),0) -> 0
A56: 52 | D56: 0 | E56: 0 | F56: 0 | G56: 0 | H56: 0 | I56: 0 | J56: 0 | K56: 0 | L56: 0 | M56: =SUM(D56:L56*(D56:L56>=LARGE(D56:L56,Qui!$A$402))) -> 0 | N56: =IFERROR((VLOOKUP(CONCATENATE(B56,C56),Qui!$D$301:$F$356,3,)),0) -> 0 | O56: 52 | R56: 0 | S56: =IFERROR((VLOOKUP(CONCATENATE(P56,Q56),Qui!$D$301:$F$356,3,0)),0) -> 0
A57: 53 | E57: 0 | F57: 0 | G57: 0 | H57: 0 | I57: 0 | J57: 0 | K57: 0 | L57: 0 | M57: =SUM(D57:L57*(D57:L57>=LARGE(D57:L57,Qui!$A$402))) -> 0 | N57: =IFERROR((VLOOKUP(CONCATENATE(B57,C57),Qui!$D$301:$F$356,3,)),0) -> 0 | O57: 53 | R57: 0 | S57: =IFERROR((VLOOKUP(CONCATENATE(P57,Q57),Qui!$D$301:$F$356,3,0)),0) -> 0
A58: 54 | E58: 0 | F58: 0 | G58: 0 | H58: 0 | I58: 0 | J58: 0 | K58: 0 | L58: 0 | M58: =SUM(D58:L58*(D58:L58>=LARGE(D58:L58,Qui!$A$402))) -> 0 | N58: =IFERROR((VLOOKUP(CONCATENATE(B58,C58),Qui!$D$301:$F$356,3,)),0) -> 0 | O58: 54 | R58: 0 | S58: =IFERROR((VLOOKUP(CONCATENATE(P58,Q58),Qui!$D$301:$F$356,3,0)),0) -> 0
D59: =MAX(D5:D58) -> 0 | F59: =MAX(F5:F58) -> 0 | G59: =MAX(G5:G58) -> 0 | I59: =MAX(I5:I58) -> 0 | J59: =MAX(J5:J58) -> 0 | K59: =MAX(K5:K58) -> 0 | L59: =MAX(L5:L58) -> 0
A60: Classement général par équipe | O60: Classement par équipe
A62: 1 | J62: 418.04 | M62: =SUM(D62:L62*(D62:L62>=LARGE(D62:L62,Qui!$B$402))) ->  | N62: =VLOOKUP(B62,Qui!$A$201:$D$204,4) ->  | O62: 1 | R62: 0 | S62: =VLOOKUP(P62,Qui!$A$201:$D$204,4) -> 
A63: 2 | J63: 444.03 | M63: =SUM(D63:L63*(D63:L63>=LARGE(D63:L63,Qui!$B$402))) ->  | N63: =VLOOKUP(B63,Qui!$A$201:$D$204,4) ->  | O63: 2 | R63: 0 | S63: =VLOOKUP(P63,Qui!$A$201:$D$204,4) -> 
A64: 3 | J64: 412 | M64: =SUM(D64:L64*(D64:L64>=LARGE(D64:L64,Qui!$B$402))) ->  | N64: =VLOOKUP(B64,Qui!$A$201:$D$204,4) ->  | O64: 3 | R64: 0 | S64: =VLOOKUP(P64,Qui!$A$201:$D$204,4) -> 
A65: 4 | J65: 426.11 | M65: =SUM(D65:L65*(D65:L65>=LARGE(D65:L65,Qui!$B$402))) ->  | N65: =VLOOKUP(B65,Qui!$A$201:$D$204,4) ->  | O65: 4 | R65: 0 | S65: =VLOOKUP(P65,Qui!$A$201:$D$204,4) -> 
A66: 5 | E66: 435 | M66: =SUM(D66:L66*(D66:L66>=LARGE(D66:L66,Qui!$B$402))) ->  | N66: =VLOOKUP(B66,Qui!$A$201:$D$204,4) ->  | O66: 5 | R66: =SUMPRODUCT(((($S$5:$S$58=S66)*$R$5:$R$58*1))*((($S$5:$S$58=S66)*$R$5:$R$58*1)>=LARGE((($S$5:$S$58=S66)*$R$5:$R$58*1),Qui!$B$402))) ->  | S66: =VLOOKUP(P66,Qui!$A$201:$D$204,4) -> 
A67: 6 | E67: 435 | M67: =SUM(D67:L67*(D67:L67>=LARGE(D67:L67,Qui!$B$402))) ->  | N67: =VLOOKUP(B67,Qui!$A$201:$D$204,4) ->  | O67: 6 | R67: =SUMPRODUCT(((($S$5:$S$58=S67)*$R$5:$R$58*1))*((($S$5:$S$58=S67)*$R$5:$R$58*1)>=LARGE((($S$5:$S$58=S67)*$R$5:$R$58*1),Qui!$B$402))) ->  | S67: =VLOOKUP(P67,Qui!$A$201:$D$204,4) -> 
D68: =MAX(D62:D67) -> 0 | F68: =MAX(F62:F67) ->  | G68: =MAX(G62:G67) ->  | I68: =MAX(I62:I67) -> 0 | J68: =MAX(J62:J67) ->  | K68: =MAX(K62:K67) -> 0 | L68: =MAX(L62:L67) -> 0 | R68: 0
M69: La Chaux-de-Fonds, le 4 décembre 2019, CM / DP
B71: =CONCATENATE("Rappels :") -> Rappels :
B73: =CONCATENATE("a) le classement général par équipe est fait sur le cumul des ",Qui!$B$402," meilleurs résultats individuels de chaque manche") -> a) le classement général par équipe est fait sur le cumul des 5 meilleurs résultats individuels de chaque manche
B74: =CONCATENATE("b) le classement général individuel est fait sur le cumul des ",Qui!$A$402," meilleurs résultats individuels") -> b) le classement général individuel est fait sur le cumul des 5 meilleurs résultats individuels

Sheet Challenge_1 (hidden)
A1: Association intercantonale des joueurs de boules, Grand Jeu Neuchâtelois
A2: =CONCATENATE(Calendrier!A4," Jeu : ",(Calendrier!F4)) -> Challenge HIVER Jeu : Evologia
J3: =CONCATENATE("du ",TEXT(Calendrier!F6," jj.mm")," au ",TEXT(Calendrier!F9," jj.mm.aaaa")) -> du 09.03 au 12.03.2020
A4: Classement par équipes | H4: Classement individuel | M4: Equipe | Q4: Equipes possibles | V4: Equipes triées
Q5: N° | R5: Nom | S5: Total équipe | V5: Rang | W5: Nom | X5: Prénom | Y5: Résultat | Z5: TotEquipe | AA5: Equipe
A6: 1er | B6: =IF($D11,(INDEX($Q$6:$S$20,MATCH($AA6,$Q$6:$Q$20,0),2)),0) -> Le Locle I | E6: =VLOOKUP(B6,Qui!$A$201:$D$204,4) -> 3 | F6: 1 | H6: Gerber | I6: Michel | J6: 111 | K6: =IFERROR((VLOOKUP(CONCATENATE(H6,I6),Qui!$D$301:$F$356,3,0)),0) -> 3 | M6: L1 | Q6: C1 | R6: La Chaux-de-Fonds I | S6: =SUMIF($M$6:$M$40,"="&$Q6,$J$6:$J$40) -> 300 | V6: 1 | W6: Gerber | X6: Michel | Y6: 111 | Z6: =IF($AA6<>"",(IF($Y6,(INDEX($Q$6:$S$20,MATCH($AA6,$Q$6:$Q$20,0),3)),0)),0) -> 400 | AA6: L1
B7: =W6 -> Gerber | C7: =X6 -> Michel | D7: 111 | F7: 2 | H7: Tynowski | I7: Lucien | J7: 103 | K7: =IFERROR((VLOOKUP(CONCATENATE(H7,I7),Qui!$D$301:$F$356,3,0)),0) -> 3 | M7: L1 | Q7: C2 | R7: La Chaux-de-Fonds II | S7: 134 | V7: 2 | W7: Tynowski | X7: Lucien | Y7: 103 | Z7: 400 | AA7: L1
B8: =W7 -> Tynowski | C8: =X7 -> Lucien | D8: =Y7 -> 103 | F8: 3 | H8: Bühler | I8: Raymond | J8: 98 | K8: =IFERROR((VLOOKUP(CONCATENATE(H8,I8),Qui!$D$301:$F$356,3,0)),0) -> 4 | M8: E1 | Q8: E1 | R8: L'Epi I | S8: 361 | V8: 3 | W8: Cassi | X8: Alain | Y8: 96 | Z8: 400 | AA8: L1
B9: =W8 -> Cassi | C9: =X8 -> Alain | D9: =Y8 -> 96 | F9: 4 | H9: Cassi | I9: Alain | J9: 96 | K9: =IFERROR((VLOOKUP(CONCATENATE(H9,I9),Qui!$D$301:$F$356,3,0)),0) -> 3 | M9: L1 | Q9: E2 | R9: L'Epi II | S9: 192 | V9: 4 | W9: Bart | X9: Fabien | Y9: 90 | Z9: 400 | AA9: L1
B10: Bart | C10: Fabien | D10: 90 | F10: 5 | H10: Dick | I10: Pierre-Alain | J10: 95 | K10: =IFERROR((VLOOKUP(CONCATENATE(H10,I10),Qui!$D$301:$F$356,3,0)),0) -> 2 | M10: V1 | Q10: L1 | R10: Le Locle I | S10: 400 | V10: 5 | W10: Bühler | X10: Raymond | Y10: 98 | Z10: 361 | AA10: E1
C11: Total | D11: =SUM(D7:D10) -> 400 | F11: 6 | H11: Mores | I11: Blaise | J11: 94 | K11: =IFERROR((VLOOKUP(CONCATENATE(H11,I11),Qui!$D$301:$F$356,3,0)),0) -> 4 | M11: E1 | Q11: L2 | R11: Le Locle II | S11: 0 | V11: 6 | W11: Mores | X11: Blaise | Y11: 94 | Z11: 361 | AA11: E1
F12: 7 | H12: Wäfler | I12: Jean-Louis | J12: 92 | K12: =IFERROR((VLOOKUP(CONCATENATE(H12,I12),Qui!$D$301:$F$356,3,0)),0) -> 4 | M12: E1 | Q12: V1 | R12: La Vue-des-Alpes I | S12: 286.1 | V12: 7 | W12: Wäfler | X12: Jean-Louis | Y12: 92 | Z12: 361 | AA12: E1
A13: 2ème | B13: =IF($D18,(INDEX($Q$6:$S$20,MATCH($AA10,$Q$6:$Q$20,0),2)),0) -> L'Epi I | E13: =VLOOKUP(B13,Qui!$A$201:$D$204,4) -> 4 | F13: 8 | H13: Bart | I13: Fabien | J13: 90 | K13: =IFERROR((VLOOKUP(CONCATENATE(H13,I13),Qui!$D$301:$F$356,3,0)),0) -> 3 | M13: L1 | Q13: V2 | R13: La Vue-des-Alpes II | S13: 0 | V13: 8 | W13: Reichen | X13: Sylvain | Y13: 77 | Z13: 361 | AA13: E1
B14: =W10 -> Bühler | C14: =X10 -> Raymond | D14: 98 | F14: 9 | H14: Jeanneret | I14: Louis | J14: 82 | K14: =IFERROR((VLOOKUP(CONCATENATE(H14,I14),Qui!$D$301:$F$356,3,0)),0) -> 2 | M14: V1 | S14: 201 | V14: 9 | W14: Billod-Morel | X14: Gérald | Y14: 82 | Z14: 300 | AA14: C1
B15: =W11 -> Mores | C15: =X11 -> Blaise | D15: =Y11 -> 94 | F15: 10 | H15: Billod-Morel | I15: Gérald | J15: 82 | K15: =IFERROR((VLOOKUP(CONCATENATE(H15,I15),Qui!$D$301:$F$356,3,0)),0) -> 1 | M15: C1 | S15: 201 | V15: 10 | W15: Voirol | X15: Pierre | Y15: 81 | Z15: 300 | AA15: C1
B16: Wäfler | C16: Jean-Louis | D16: 92 | F16: 11 | H16: Voirol | I16: Pierre | J16: 81 | K16: =IFERROR((VLOOKUP(CONCATENATE(H16,I16),Qui!$D$301:$F$356,3,0)),0) -> 1 | M16: C1 | S16: 201 | V16: 11 | W16: Rollat | X16: Christian | Y16: 76 | Z16: 300 | AA16: C1
B17: Reichen | C17: Sylvain | D17: 77 | F17: 12 | H17: Pellaton | I17: Daniel | J17: 80 | K17: =IFERROR((VLOOKUP(CONCATENATE(H17,I17),Qui!$D$301:$F$356,3,0)),0) -> 4 | M17: E2 | S17: 201 | V17: 12 | W17: Monnier | X17: Christian | Y17: 61 | Z17: 300 | AA17: C1
C18: Total | D18: =SUM(D14:D17) -> 361 | F18: 13 | H18: Reichen | I18: Sylvain | J18: 77 | K18: =IFERROR((VLOOKUP(CONCATENATE(H18,I18),Qui!$D$301:$F$356,3,0)),0) -> 4 | M18: E1 | S18: 201 | V18: 13 | W18: Dick | X18: Pierre-Alain | Y18: 95 | Z18: 286.1 | AA18: V1
F19: 14 | H19: Rollat | I19: Christian | J19: 76 | K19: =IFERROR((VLOOKUP(CONCATENATE(H19,I19),Qui!$D$301:$F$356,3,0)),0) -> 1 | M19: C1 | S19: 201 | V19: 14 | W19: Jeanneret | X19: Louis | Y19: 82 | Z19: 286.1 | AA19: V1
A20: 3ème | B20: =IF($D25,(INDEX($Q$6:$S$20,MATCH($AA14,$Q$6:$Q$20,0),2)),0) -> La Chaux-de-Fonds I | E20: =VLOOKUP(B20,Qui!$A$201:$D$204,4) -> 1 | F20: 15 | H20: Chassot | I20: Yves | J20: 76 | K20: =IFERROR((VLOOKUP(CONCATENATE(H20,I20),Qui!$D$301:$F$356,3,0)),0) -> 2 | M20: V1 | S20: 201 | V20: 15 | W20: Chassot | X20: Yves | Y20: 76 | Z20: 286.1 | AA20: V1
B21: =W14 -> Billod-Morel | C21: =X14 -> Gérald | D21: 82 | F21: 16 | H21: Rossier | I21: Yves-Alain | J21: 69 | K21: =IFERROR((VLOOKUP(CONCATENATE(H21,I21),Qui!$D$301:$F$356,3,0)),0) -> 4 | M21: E2 | V21: 16 | W21: Vuillème | X21: Claude-Alain | Y21: 33.1 | Z21: 286.1 | AA21: V1
B22: =W15 -> Voirol | C22: =X15 -> Pierre | D22: =Y15 -> 81 | F22: 17 | H22: Monnier | I22: Christian | J22: 61 | K22: =IFERROR((VLOOKUP(CONCATENATE(H22,I22),Qui!$D$301:$F$356,3,0)),0) -> 1 | M22: C1 | V22: 17 | W22: Pellaton | X22: Daniel | Y22: 80 | Z22: 192 | AA22: E2
B23: Rollat | C23: Christian | D23: 76 | F23: 18 | H23: Dubois | I23: Eric | J23: 59 | K23: =IFERROR((VLOOKUP(CONCATENATE(H23,I23),Qui!$D$301:$F$356,3,0)),0) -> 1 | M23: C2 | V23: 18 | W23: Rossier | X23: Yves-Alain | Y23: 69 | Z23: 192 | AA23: E2
B24: Monnier | C24: Christian | D24: 61 | F24: 19 | H24: Tinguely | I24: Didier | J24: 58 | K24: =IFERROR((VLOOKUP(CONCATENATE(H24,I24),Qui!$D$301:$F$356,3,0)),0) -> 1 | V24: 19 | W24: Frutiger | X24: Bertrand | Y24: 33 | Z24: 192 | AA24: E2
D25: =SUM(D21:D24) -> 300 | F25: 20 | H25: Oppliger | I25: Hervé | J25: 55 | K25: =IFERROR((VLOOKUP(CONCATENATE(H25,I25),Qui!$D$301:$F$356,3,0)),0) -> 2 | V25: 20 | W25: Rindlisbacher | X25: Heinz | Y25: 10 | Z25: 192 | AA25: E2
F26: 21 | H26: Dubois | I26: Marcel | J26: 46 | K26: =IFERROR((VLOOKUP(CONCATENATE(H26,I26),Qui!$D$301:$F$356,3,0)),0) -> 1 | V26: 21 | W26: Dubois | X26: Eric | Y26: 59 | Z26: 134 | AA26: C2
A27: 4ème | B27: =IF($D32,(INDEX($Q$6:$S$20,MATCH($AA18,$Q$6:$Q$20,0),2)),0) -> La Vue-des-Alpes I | E27: =VLOOKUP(B27,Qui!$A$201:$D$204,4) -> 2 | F27: 22 | H27: Haussener | I27: Philippe | J27: 42 | K27: =IFERROR((VLOOKUP(CONCATENATE(H27,I27),Qui!$D$301:$F$356,3,0)),0) -> 2 | V27: 22 | W27: Dubois | X27: Emmanuel | Y27: 38 | Z27: 134 | AA27: C2
B28: =W18 -> Dick | C28: =X18 -> Pierre-Alain | D28: 95 | F28: 23 | H28: Dubois | I28: Emmanuel | J28: 38 | K28: =IFERROR((VLOOKUP(CONCATENATE(H28,I28),Qui!$D$301:$F$356,3,0)),0) -> 1 | M28: C2 | V28: 23 | W28: Matthey | X28: Pierre | Y28: 24 | Z28: 134 | AA28: C2
B29: =W19 -> Jeanneret | C29: =X19 -> Louis | D29: =Y19 -> 82 | F29: 24 | H29: Vuillème | I29: Claude-Alain | J29: 33.1 | K29: =IFERROR((VLOOKUP(CONCATENATE(H29,I29),Qui!$D$301:$F$356,3,0)),0) -> 2 | M29: V1 | V29: 24 | W29: Jean-Mairet | X29: Jean-Claude | Y29: 13 | Z29: 134 | AA29: C2
B30: Chassot | C30: Yves | D30: 76 | F30: 25 | H30: Frutiger | I30: Bertrand | J30: 33 | K30: =IFERROR((VLOOKUP(CONCATENATE(H30,I30),Qui!$D$301:$F$356,3,0)),0) -> 4 | M30: E2 | V30: 25 | W30: Tinguely | X30: Didier | Y30: 58 | Z30: 0
B31: Vuillème | C31: Claude-Alain | D31: 33.1 | F31: 26 | H31: Matthey | I31: Pierre | J31: 24 | K31: =IFERROR((VLOOKUP(CONCATENATE(H31,I31),Qui!$D$301:$F$356,3,0)),0) -> 1 | M31: C2 | V31: 26 | W31: Oppliger | X31: Hervé | Y31: 55 | Z31: 0
C32: Total | D32: =SUM(D28:D31) -> 286.1 | F32: 27 | H32: Jean-Mairet | I32: Jean-Claude | J32: 13 | K32: =IFERROR((VLOOKUP(CONCATENATE(H32,I32),Qui!$D$301:$F$356,3,0)),0) -> 1 | M32: C2 | V32: 27 | W32: Dubois | X32: Marcel | Y32: 46 | Z32: 0
F33: 28 | H33: Rindlisbacher | I33: Heinz | J33: 10 | K33: =IFERROR((VLOOKUP(CONCATENATE(H33,I33),Qui!$D$301:$F$356,3,0)),0) -> 4 | M33: E2 | V33: 28 | W33: Haussener | X33: Philippe | Y33: 42 | Z33: 0
A34: 5ème | B34: =IF($D39,(INDEX($Q$6:$S$20,MATCH($AA22,$Q$6:$Q$20,0),2)),0) -> L'Epi II | E34: =VLOOKUP(B34,Qui!$A$201:$D$204,4) -> 4 | F34: 29 | H34: Favre | I34: Daniel | J34: 0 | K34: =IFERROR((VLOOKUP(CONCATENATE(H34,I34),Qui!$D$301:$F$356,3,0)),0) -> 3 | V34: 29 | W34: Favre | X34: Daniel | Y34: 0 | Z34: 0
B35: =W22 -> Pellaton | C35: =X22 -> Daniel | D35: 80 | F35: 30 | H35: Bourquin | I35: Willy | J35: 0 | K35: =IFERROR((VLOOKUP(CONCATENATE(H35,I35),Qui!$D$301:$F$356,3,0)),0) -> 4 | V35: 30 | W35: Bourquin | X35: Willy | Y35: 0 | Z35: 0
B36: =W23 -> Rossier | C36: =X23 -> Yves-Alain | D36: =Y23 -> 69 | F36: 31 | H36: Charlet | I36: Léon | J36: 0 | K36: =IFERROR((VLOOKUP(CONCATENATE(H36,I36),Qui!$D$301:$F$356,3,0)),0) -> 2 | V36: 31 | W36: Charlet | X36: Léon | Y36: 0 | Z36: 0
B37: Frutiger | C37: Bertrand | D37: 33 | F37: 32 | H37: Kemajl | I37: Fetahi | J37: 0 | K37: =IFERROR((VLOOKUP(CONCATENATE(H37,I37),Qui!$D$301:$F$356,3,0)),0) -> 3 | V37: 32 | W37: Kemajl | X37: Fetahi | Y37: 0 | Z37: 0
B38: Rindlisbacher | C38: Heinz | D38: 10 | F38: 33 | H38: Geiser | I38: Willy | J38: 0 | K38: =IFERROR((VLOOKUP(CONCATENATE(H38,I38),Qui!$D$301:$F$356,3,0)),0) -> 1 | V38: 33 | W38: Geiser | X38: Willy | Y38: 0 | Z38: =IF($AA38<>"",(IF($Y38,(INDEX($Q$6:$S$20,MATCH($AA38,$Q$6:$Q$20,0),3)),0)),0) -> 0
C39: Total | D39: =SUM(D35:D38) -> 192 | F39: 34 | K39: =IFERROR((VLOOKUP(CONCATENATE(H39,I39),Qui!$D$301:$F$356,3,0)),0) -> 0 | V39: 34 | Z39: 0
F40: 35 | K40: =IFERROR((VLOOKUP(CONCATENATE(H40,I40),Qui!$D$301:$F$356,3,0)),0) -> 0 | V40: 35 | Z40: 0
A41: 6ème | B41: =IF($D46,(INDEX($Q$6:$S$20,MATCH($AA26,$Q$6:$Q$20,0),2)),0) -> La Chaux-de-Fonds II | E41: =VLOOKUP(B41,Qui!$A$201:$D$204,4) -> 1 | F41: 36 | V41: 36 | Z41: 0
B42: =W26 -> Dubois | C42: =X26 -> Eric | D42: 59 | F42: 37 | V42: 37 | Z42: 0
B43: =W27 -> Dubois | C43: =X27 -> Emmanuel | D43: =Y27 -> 38 | F43: 38 | V43: 38 | Z43: 0
B44: Matthey | C44: Pierre | D44: 24 | F44: 39 | V44: 39 | Z44: 0
B45: Jean-Mairet | C45: Jean-Claude | D45: 13 | F45: 40 | V45: 40 | Z45: 0
D46: =SUM(D42:D45) -> 134 | F46: 41 | V46: 41 | Z46: 0
F47: 42 | V47: 42 | Z47: 0
A48: 7ème | B48: =IF($D53,(INDEX($Q$6:$S$20,MATCH($AA30,$Q$6:$Q$20,0),2)),0) ->  | E48: =VLOOKUP(B48,Qui!$A$201:$D$204,4) ->  | F48: 43 | V48: 43 | Z48: 0
B49: =W30 -> Tinguely | C49: =X30 -> Didier | D49: 58 | E49: =Z33 -> 0 | F49: 44 | V49: 44 | Z49: 0
B50: =W31 -> Oppliger | C50: =X31 -> Hervé | D50: =Y31 -> 55 | F50: 45 | V50: 45 | Z50: 0
B51: Dubois | C51: Marcel | D51: 46 | F51: 46 | V51: 46 | Z51: 0
B52: Haussener | C52: Philippe | D52: 42 | F52: 47 | V52: 47 | Z52: 0
D53: =SUM(D49:D52) -> 201 | F53: 48 | V53: 48 | Z53: 0
A54: 8ème | B54: =IF($D59,(INDEX($Q$6:$S$20,MATCH($AA34,$Q$6:$Q$20,0),2)),0) -> 0 | E54: =VLOOKUP(B54,Qui!$A$201:$D$204,4) ->  | F54: 49 | V54: 49 | Z54: 0
B55: =W34 -> Favre | C55: =X34 -> Daniel | D55: 0
B56: =W35 -> Bourquin | C56: =X35 -> Willy | D56: =Y35 -> 0
B57: Charlet | C57: Léon | D57: 0 | H57: =CONCATENATE("Champion de jeu : ",H6," ",I6) -> Champion de jeu : Gerber Michel | J57: =J6 -> 111
B58: Kemajl | C58: Fetahi | D58: 0
D59: =SUM(D55:D58) -> 0 | J59: La Chaux-de-Fonds, le 4 avril 2020, cm

Sheet Challenge_2 (hidden)
A1: Association intercantonale des joueurs de boules, Grand Jeu Neuchâtelois
A2: =CONCATENATE(Calendrier!A25," Jeu : ",(Calendrier!F25)) -> Challenge ÉTÉ Jeu : Le Locle
J3: =CONCATENATE("du ",TEXT(Calendrier!F27," jj.mm")," au ",TEXT(Calendrier!F30," jj.mm.aaaa")) -> du 15.06 au 18.06.2020
A4: Classement par équipes | H4: Classement individuel | M4: Equipe | Q4: Equipes possibles | V4: Equipes triées
Q5: N° | R5: Nom | S5: Total équipe | V5: Rang | W5: Nom | X5: Prénom | Y5: Résultat | Z5: TotEquipe | AA5: Equipe
A6: 1er | B6: =IF($D11,(INDEX($Q$6:$S$20,MATCH($AA6,$Q$6:$Q$20,0),2)),0) -> 0 | E6: =VLOOKUP(B6,Qui!$A$201:$D$204,4) ->  | F6: 1 | H6: Bart | I6: Fabien | J6: 0 | K6: =IFERROR((VLOOKUP(CONCATENATE(H6,I6),Qui!$D$301:$F$356,3,0)),0) -> 3 | Q6: C1 | R6: La Chaux-de-Fonds I | S6: =SUMIF($M$6:$M$40,"="&$Q6,$J$6:$J$40) -> 0 | V6: 1 | W6: Bart | X6: Fabien | Y6: 0 | Z6: =IF($AA6<>"",(IF($Y6,(INDEX($Q$6:$S$20,MATCH($AA6,$Q$6:$Q$20,0),3)),0)),0) -> 0
B7: =W6 -> Bart | C7: =X6 -> Fabien | D7: 0 | F7: 2 | H7: Billod-Morel | I7: Gérald | J7: 0 | K7: =IFERROR((VLOOKUP(CONCATENATE(H7,I7),Qui!$D$301:$F$356,3,0)),0) -> 1 | Q7: C2 | R7: La Chaux-de-Fonds II | S7: 0 | V7: 2 | W7: Billod-Morel | X7: Gérald | Y7: 0 | Z7: 0
B8: =W7 -> Billod-Morel | C8: Gérald | D8: 0 | F8: 3 | H8: Bourquin | I8: Willy | J8: 0 | K8: =IFERROR((VLOOKUP(CONCATENATE(H8,I8),Qui!$D$301:$F$356,3,0)),0) -> 4 | Q8: E1 | R8: L'Epi I | S8: 0 | V8: 3 | W8: Bourquin | X8: Willy | Y8: 0 | Z8: 0
B9: =W8 -> Bourquin | C9: Willy | D9: 0 | F9: 4 | H9: Bühler | I9: Raymond | J9: 0 | K9: =IFERROR((VLOOKUP(CONCATENATE(H9,I9),Qui!$D$301:$F$356,3,0)),0) -> 4 | Q9: E2 | R9: L'Epi II | S9: 0 | V9: 4 | W9: Bühler | X9: Raymond | Y9: 0 | Z9: 0
B10: Bühler | C10: Raymond | D10: 0 | F10: 5 | H10: Cassi | I10: Alain | J10: 0 | K10: =IFERROR((VLOOKUP(CONCATENATE(H10,I10),Qui!$D$301:$F$356,3,0)),0) -> 3 | Q10: L1 | R10: Le Locle I | S10: 0 | V10: 5 | W10: Cassi | X10: Alain | Y10: 0 | Z10: 0
C11: Total | D11: =SUM(D7:D10) -> 0 | F11: 6 | H11: Charlet | I11: Léon | J11: 0 | K11: =IFERROR((VLOOKUP(CONCATENATE(H11,I11),Qui!$D$301:$F$356,3,0)),0) -> 2 | Q11: L2 | R11: Le Locle II | S11: 0 | V11: 6 | W11: Charlet | X11: Léon | Y11: 0 | Z11: 0
F12: 7 | H12: Chassot | I12: Yves | J12: 0 | K12: =IFERROR((VLOOKUP(CONCATENATE(H12,I12),Qui!$D$301:$F$356,3,0)),0) -> 2 | Q12: V1 | R12: La Vue-des-Alpes I | S12: 0 | V12: 7 | W12: Chassot | X12: Yves | Y12: 0 | Z12: 0
A13: 2ème | B13: =IF($D18,(INDEX($Q$6:$S$20,MATCH($AA10,$Q$6:$Q$20,0),2)),0) -> 0 | E13: =VLOOKUP(B13,Qui!$A$201:$D$204,4) ->  | F13: 8 | H13: Dick | I13: Pierre-Alain | J13: 0 | K13: =IFERROR((VLOOKUP(CONCATENATE(H13,I13),Qui!$D$301:$F$356,3,0)),0) -> 2 | Q13: V2 | R13: La Vue-des-Alpes II | S13: 0 | V13: 8 | W13: Dick | X13: Pierre-Alain | Y13: 0 | Z13: 0
B14: =W10 -> Cassi | C14: =X10 -> Alain | D14: 0 | F14: 9 | H14: Dubois | I14: Emmanuel | J14: 0 | K14: =IFERROR((VLOOKUP(CONCATENATE(H14,I14),Qui!$D$301:$F$356,3,0)),0) -> 1 | S14: 0 | V14: 9 | W14: Dubois | X14: Emmanuel | Y14: 0 | Z14: 0
B15: =W11 -> Charlet | C15: Léon | D15: 0 | F15: 10 | H15: Dubois | I15: Eric | J15: 0 | K15: =IFERROR((VLOOKUP(CONCATENATE(H15,I15),Qui!$D$301:$F$356,3,0)),0) -> 1 | S15: 0 | V15: 10 | W15: Dubois | X15: Eric | Y15: 0 | Z15: 0
B16: Chassot | C16: Yves | D16: 0 | F16: 11 | H16: Dubois | I16: Marcel | J16: 0 | K16: =IFERROR((VLOOKUP(CONCATENATE(H16,I16),Qui!$D$301:$F$356,3,0)),0) -> 1 | S16: 0 | V16: 11 | W16: Dubois | X16: Marcel | Y16: 0 | Z16: 0
B17: Dick | C17: Pierre-Alain | D17: 0 | F17: 12 | H17: Favre | I17: Daniel | J17: 0 | K17: =IFERROR((VLOOKUP(CONCATENATE(H17,I17),Qui!$D$301:$F$356,3,0)),0) -> 3 | S17: 0 | V17: 12 | W17: Favre | X17: Daniel | Y17: 0 | Z17: 0
C18: Total | D18: =SUM(D14:D17) -> 0 | F18: 13 | H18: Frutiger | I18: Bertrand | J18: 0 | K18: =IFERROR((VLOOKUP(CONCATENATE(H18,I18),Qui!$D$301:$F$356,3,0)),0) -> 4 | S18: 0 | V18: 13 | W18: Frutiger | X18: Bertrand | Y18: 0 | Z18: 0
F19: 14 | H19: Geiser | I19: Willy | J19: 0 | K19: =IFERROR((VLOOKUP(CONCATENATE(H19,I19),Qui!$D$301:$F$356,3,0)),0) -> 1 | S19: 0 | V19: 14 | W19: Geiser | X19: Willy | Y19: 0 | Z19: 0
A20: 3ème | B20: =IF($D25,(INDEX($Q$6:$S$20,MATCH($AA14,$Q$6:$Q$20,0),2)),0) -> 0 | E20: =VLOOKUP(B20,Qui!$A$201:$D$204,4) ->  | F20: 15 | H20: Gerber | I20: Michel | J20: 0 | K20: =IFERROR((VLOOKUP(CONCATENATE(H20,I20),Qui!$D$301:$F$356,3,0)),0) -> 3 | S20: 0 | V20: 15 | W20: Gerber | X20: Michel | Y20: 0 | Z20: 0
B21: =W14 -> Dubois | C21: =X14 -> Emmanuel | D21: 0 | F21: 16 | H21: Haussener | I21: Philippe | J21: 0 | K21: =IFERROR((VLOOKUP(CONCATENATE(H21,I21),Qui!$D$301:$F$356,3,0)),0) -> 2 | V21: 16 | W21: Haussener | X21: Philippe | Y21: 0 | Z21: 0
B22: =W15 -> Dubois | C22: Eric | D22: 0 | F22: 17 | H22: Jean-Mairet | I22: Jean-Claude | J22: 0 | K22: =IFERROR((VLOOKUP(CONCATENATE(H22,I22),Qui!$D$301:$F$356,3,0)),0) -> 1 | V22: 17 | W22: Jean-Mairet | X22: Jean-Claude | Y22: 0 | Z22: 0
B23: Dubois | C23: Marcel | D23: 0 | F23: 18 | H23: Jeanneret | I23: Louis | J23: 0 | K23: =IFERROR((VLOOKUP(CONCATENATE(H23,I23),Qui!$D$301:$F$356,3,0)),0) -> 2 | V23: 18 | W23: Jeanneret | X23: Louis | Y23: 0 | Z23: 0
B24: Favre | C24: Daniel | D24: 0 | F24: 19 | H24: Kemajl | I24: Fetahi | J24: 0 | K24: =IFERROR((VLOOKUP(CONCATENATE(H24,I24),Qui!$D$301:$F$356,3,0)),0) -> 3 | V24: 19 | W24: Kemajl | X24: Fetahi | Y24: 0 | Z24: 0
D25: =SUM(D21:D24) -> 0 | F25: 20 | H25: Matthey | I25: Pierre | J25: 0 | K25: =IFERROR((VLOOKUP(CONCATENATE(H25,I25),Qui!$D$301:$F$356,3,0)),0) -> 1 | V25: 20 | W25: Matthey | X25: Pierre | Y25: 0 | Z25: 0
F26: 21 | H26: Monnier | I26: Christian | J26: 0 | K26: =IFERROR((VLOOKUP(CONCATENATE(H26,I26),Qui!$D$301:$F$356,3,0)),0) -> 1 | V26: 21 | W26: Monnier | X26: Christian | Y26: 0 | Z26: 0
A27: 4ème | B27: =IF($D32,(INDEX($Q$6:$S$20,MATCH($AA18,$Q$6:$Q$20,0),2)),0) -> 0 | E27: =VLOOKUP(B27,Qui!$A$201:$D$204,4) ->  | F27: 22 | H27: Mores | I27: Blaise | J27: 0 | K27: =IFERROR((VLOOKUP(CONCATENATE(H27,I27),Qui!$D$301:$F$356,3,0)),0) -> 4 | V27: 22 | W27: Mores | X27: Blaise | Y27: 0 | Z27: 0
B28: =W18 -> Frutiger | C28: =X18 -> Bertrand | D28: 0 | F28: 23 | H28: Oppliger | I28: Hervé | J28: 0 | K28: =IFERROR((VLOOKUP(CONCATENATE(H28,I28),Qui!$D$301:$F$356,3,0)),0) -> 2 | V28: 23 | W28: Oppliger | X28: Hervé | Y28: 0 | Z28: 0
B29: =W19 -> Geiser | C29: Willy | D29: 0 | F29: 24 | H29: Pellaton | I29: Daniel | J29: 0 | K29: =IFERROR((VLOOKUP(CONCATENATE(H29,I29),Qui!$D$301:$F$356,3,0)),0) -> 4 | V29: 24 | W29: Pellaton | X29: Daniel | Y29: 0 | Z29: 0
B30: Gerber | C30: Michel | D30: 0 | F30: 25 | H30: Reichen | I30: Sylvain | J30: 0 | K30: =IFERROR((VLOOKUP(CONCATENATE(H30,I30),Qui!$D$301:$F$356,3,0)),0) -> 4 | V30: 25 | W30: Reichen | X30: Sylvain | Y30: 0 | Z30: 0
B31: Haussener | C31: Philippe | D31: 0 | F31: 26 | H31: Rindlisbacher | I31: Heinz | J31: 0 | K31: =IFERROR((VLOOKUP(CONCATENATE(H31,I31),Qui!$D$301:$F$356,3,0)),0) -> 4 | V31: 26 | W31: Rindlisbacher | X31: Heinz | Y31: 0 | Z31: 0
C32: Total | D32: =SUM(D28:D31) -> 0 | F32: 27 | H32: Rollat | I32: Christian | J32: 0 | K32: =IFERROR((VLOOKUP(CONCATENATE(H32,I32),Qui!$D$301:$F$356,3,0)),0) -> 1 | V32: 27 | W32: Rollat | X32: Christian | Y32: 0 | Z32: 0
F33: 28 | H33: Rossier | I33: Yves-Alain | J33: 0 | K33: =IFERROR((VLOOKUP(CONCATENATE(H33,I33),Qui!$D$301:$F$356,3,0)),0) -> 4 | V33: 28 | W33: Rossier | X33: Yves-Alain | Y33: 0 | Z33: 0
A34: 5ème | B34: =IF($D39,(INDEX($Q$6:$S$20,MATCH($AA22,$Q$6:$Q$20,0),2)),0) -> 0 | E34: =VLOOKUP(B34,Qui!$A$201:$D$204,4) ->  | F34: 29 | H34: Tinguely | I34: Didier | J34: 0 | K34: =IFERROR((VLOOKUP(CONCATENATE(H34,I34),Qui!$D$301:$F$356,3,0)),0) -> 1 | V34: 29 | W34: Tinguely | X34: Didier | Y34: 0 | Z34: 0
B35: =W22 -> Jean-Mairet | C35: =X22 -> Jean-Claude | D35: 0 | F35: 30 | H35: Tynowski | I35: Lucien | J35: 0 | K35: =IFERROR((VLOOKUP(CONCATENATE(H35,I35),Qui!$D$301:$F$356,3,0)),0) -> 3 | V35: 30 | W35: Tynowski | X35: Lucien | Y35: 0 | Z35: 0
B36: =W23 -> Jeanneret | C36: Louis | D36: 0 | F36: 31 | H36: Voirol | I36: Pierre | J36: 0 | K36: =IFERROR((VLOOKUP(CONCATENATE(H36,I36),Qui!$D$301:$F$356,3,0)),0) -> 1 | V36: 31 | W36: Voirol | X36: Pierre | Y36: 0 | Z36: 0
B37: Kemajl | C37: Fetahi | D37: 0 | F37: 32 | H37: Vuillème | I37: Claude-Alain | J37: 0 | K37: =IFERROR((VLOOKUP(CONCATENATE(H37,I37),Qui!$D$301:$F$356,3,0)),0) -> 2 | V37: 32 | W37: Vuillème | X37: Claude-Alain | Y37: 0 | Z37: 0
B38: Matthey | C38: Pierre | D38: 0 | F38: 33 | H38: Wäfler | I38: Jean-Louis | J38: 0 | K38: =IFERROR((VLOOKUP(CONCATENATE(H38,I38),Qui!$D$301:$F$356,3,0)),0) -> 4 | V38: 33 | W38: Wäfler | X38: Jean-Louis | Y38: 0 | Z38: =IF($AA38<>"",(IF($Y38,(INDEX($Q$6:$S$20,MATCH($AA38,$Q$6:$Q$20,0),3)),0)),0) -> 0
C39: Total | D39: =SUM(D35:D38) -> 0 | F39: 34 | K39: =IFERROR((VLOOKUP(CONCATENATE(H39,I39),Qui!$D$301:$F$356,3,0)),0) -> 0 | V39: 34 | Z39: 0
F40: 35 | K40: =IFERROR((VLOOKUP(CONCATENATE(H40,I40),Qui!$D$301:$F$356,3,0)),0) -> 0 | V40: 35 | Z40: 0
A41: 6ème | B41: =IF($D46,(INDEX($Q$6:$S$20,MATCH($AA26,$Q$6:$Q$20,0),2)),0) -> 0 | E41: =VLOOKUP(B41,Qui!$A$201:$D$204,4) ->  | F41: 36 | V41: 36 | Z41: 0
B42: =W26 -> Monnier | C42: =X26 -> Christian | D42: 0 | F42: 37 | V42: 37 | Z42: 0
B43: =W27 -> Mores | C43: Blaise | D43: 0 | F43: 38 | V43: 38 | Z43: 0
B44: Oppliger | C44: Hervé | D44: 0 | F44: 39 | V44: 39 | Z44: 0
B45: Pellaton | C45: Daniel | D45: 0 | F45: 40 | V45: 40 | Z45: 0
D46: =SUM(D42:D45) -> 0 | F46: 41 | V46: 41 | Z46: 0
F47: 42 | V47: 42 | Z47: 0
A48: 7ème | B48: =IF($D53,(INDEX($Q$6:$S$20,MATCH($AA30,$Q$6:$Q$20,0),2)),0) -> 0 | E48: =VLOOKUP(B48,Qui!$A$201:$D$204,4) ->  | F48: 43 | V48: 43 | Z48: 0
B49: =W30 -> Reichen | C49: =X30 -> Sylvain | D49: 0 | E49: =Z33 -> 0 | F49: 44 | V49: 44 | Z49: 0
B50: =W31 -> Rindlisbacher | C50: Heinz | D50: 0 | F50: 45 | V50: 45 | Z50: 0
B51: Rollat | C51: Christian | D51: 0 | F51: 46 | V51: 46 | Z51: 0
B52: Rossier | C52: Yves-Alain | D52: 0 | F52: 47 | V52: 47 | Z52: 0
D53: =SUM(D49:D52) -> 0 | F53: 48 | V53: 48 | Z53: 0
A54: 8ème | B54: =IF($D59,(INDEX($Q$6:$S$20,MATCH($AA34,$Q$6:$Q$20,0),2)),0) -> 0 | E54: =VLOOKUP(B54,Qui!$A$201:$D$204,4) ->  | F54: 49 | V54: 49 | Z54: 0
B55: =W34 -> Tinguely | C55: =X34 -> Didier | D55: 0
B56: =W35 -> Tynowski | C56: Lucien | D56: 0
B57: Voirol | C57: Pierre | D57: 0 | H57: =CONCATENATE("Champion de jeu : ",H6," ",I6) -> Champion de jeu : Bart Fabien | J57: =J6 -> 0
B58: Vuillème | C58: Claude-Alain | D58: 0
D59: =SUM(D55:D58) -> 0 | J59: La Chaux-de-Fonds, le 4 avril 2020, cm

Sheet Challenge_GJ (hidden)
A1: Association intercantonale des joueurs de boules, Grand Jeu Neuchâtelois
A2: =CONCATENATE(Calendrier!A11," Jeu : ",(Calendrier!F11)) -> Challenge 70ème Jeu : L'Epi
J3: =CONCATENATE("du",TEXT(Calendrier!F13," jj.mm")," au",TEXT(Calendrier!F16," jj.mm.aaaa")) -> du 30.03 au 02.04.2020
A4: Classement par équipes | H4: Classement individuel | M4: Club | Q4: Clubs possibles | V4: Equipes triées (RE_xx) | AC4: Clubs tri
Q5: N° | R5: Nom | S5: Total club | V5: Rang | W5: Nom | X5: Prénom | Y5: Résultat | Z5: Total Club | AA5: Club | AC5: N° | AD5: Nom | AE5: Total club
A6: 1er | B6: =IF($D12,(INDEX($Q$6:$S$20,MATCH($AA6,$Q$6:$Q$20,0),2)),0) -> L'Epi | E6: =VLOOKUP(B6,Qui!$A$201:$D$204,4) -> 4 | F6: 1 | H6: Bourquin | I6: Willy | J6: 400 | K6: =IFERROR((VLOOKUP(CONCATENATE(H6,I6),Q_NP_ClNom_ClNo,3,0)),0) -> 4 | M6: =K6 -> 4 | Q6: =Qui!D201 -> 1 | R6: =Qui!F201 -> La Chaux-de-Fonds | S6: =SUMPRODUCT(LARGE((CI_NoClub=$Q6)*(CI_Resultat),{1;2;3;4;5})) -> 111 | V6: 1 | W6: Bourquin | X6: Willy | Y6: 400 | Z6: =IF($AA6<>"",(IF($Y6,(INDEX($Q$6:$S$20,MATCH($AA6,$Q$6:$Q$20,0),3)),0)),0) -> 444 | AA6: 4 | AC6: 4 | AD6: L'Epi | AE6: 444 | AF6: =LARGE(RE_TotClub,1) -> 444 | AG6: =LARGE(RE_TotClub,2) -> 444 | AH6: =LARGE(RE_TotClub,3) -> 444 | AI6: =LARGE(RE_TotClub,4) -> 444 | AK6: =INDEX(RE_TotClub,$AE$6,1) -> 
B7: =W6 -> Bourquin | C7: =X6 -> Willy | D7: 400 | F7: 2 | H7: Charlet | I7: Léon | J7: 200 | K7: 2 | M7: 2 | Q7: =Qui!D202 -> 2 | R7: =Qui!F202 -> La Vue-des-Alpes | S7: =SUMPRODUCT(LARGE((CI_NoClub=$Q7)*(CI_Resultat),{1;2;3;4;5})) -> 223 | V7: 2 | W7: Charlet | X7: Léon | Y7: 200 | Z7: 444 | AA7: 4 | AC7: 3 | AD7: Le Locle | AE7: 333 | AF7: =IF((LARGE(RE_TotClub,1)<AE$6),"qqq",(LARGE(RE_TotClub,1)<AE$6)) -> FALSE | AG7: =LARGE(RE_TotClub,2) -> 444 | AH7: =LARGE(RE_TotClub,3) -> 444 | AI7: =LARGE(RE_TotClub,4) -> 444
B8: =W7 -> Charlet | C8: Léon | D8: 200 | F8: 3 | H8: Bart | I8: Fabien | J8: 100 | K8: 3 | M8: 3 | Q8: =Qui!D203 -> 3 | R8: =Qui!F203 -> Le Locle | S8: =SUMPRODUCT(LARGE((CI_NoClub=$Q8)*(CI_Resultat),{1;2;3;4;5})) -> 333 | V8: 3 | W8: Bart | X8: Fabien | Y8: 100 | Z8: 444 | AA8: 4 | AC8: 2 | AD8: La Vue-des-Alpes | AE8: 223
B9: =W8 -> Bart | C9: Fabien | D9: 100 | F9: 4 | H9: Billod-Morel | I9: Gérald | J9: 100 | K9: 1 | M9: 1 | Q9: =Qui!D204 -> 4 | R9: =Qui!F204 -> L'Epi | S9: =SUMPRODUCT(LARGE((CI_NoClub=$Q9)*(CI_Resultat),{1;2;3;4;5})) -> 444 | V9: 4 | W9: Billod-Morel | X9: Gérald | Y9: 100 | Z9: 444 | AA9: 4 | AC9: 1 | AD9: La Chaux-de-Fonds | AE9: 111
B10: =W9 -> Billod-Morel | C10: =X9 -> Gérald | D10: =Y9 -> 100 | F10: 5 | H10: Cassi | I10: Alain | J10: 100 | K10: 3 | M10: 3 | Q10: =Qui!D205 -> 5 | R10: =Qui!F205 -> 0 | S10: =SUMPRODUCT(LARGE((CI_NoClub=$Q10)*(CI_Resultat),{1;2;3;4;5})) -> 0 | V10: 5 | W10: Cassi | X10: Alain | Y10: 100 | Z10: 444 | AA10: 4 | AC10: 5 | AD10: 0 | AE10: 0
B11: Cassi | C11: Alain | D11: 100 | F11: 6 | H11: Favre | I11: Daniel | J11: 100 | K11: 3 | M11: 3 | S11: =SUMIF($M$6:$M$40,"="&$Q11,$J$6:$J$40) -> 0 | V11: 6 | W11: Favre | X11: Daniel | Y11: 100 | Z11: 444 | AA11: 4 | AE11: 0
C12: Total | D12: =SUM(D7:D11) -> 900 | F12: 7 | H12: Gerber | I12: Michel | J12: 30 | K12: 3 | M12: 3 | S12: 0 | V12: 7 | W12: Gerber | X12: Michel | Y12: 30 | Z12: 444 | AA12: 4 | AE12: 0
F13: 8 | H13: Bühler | I13: Raymond | J13: 18 | K13: 4 | M13: 4 | V13: 8 | W13: Bühler | X13: Raymond | Y13: 18 | Z13: 444 | AA13: 4
A14: 2ème | B14: =IF($D20,(INDEX($Q$6:$S$20,MATCH($AA10,$Q$6:$Q$20,0),2)),0) -> L'Epi | E14: =VLOOKUP(B14,Qui!$A$201:$D$204,4) -> 4 | F14: 9 | H14: Frutiger | I14: Bertrand | J14: 12 | K14: 4 | M14: 4 | V14: 9 | W14: Frutiger | X14: Bertrand | Y14: 12 | Z14: 333 | AA14: 3
B15: =W10 -> Cassi | C15: Alain | D15: 100 | F15: 10 | H15: Chassot | I15: Yves | J15: 10 | K15: 2 | M15: 2 | V15: 10 | W15: Chassot | X15: Yves | Y15: 10 | Z15: 333 | AA15: 3
B16: Favre | C16: Daniel | D16: 100 | F16: 11 | H16: Dick | I16: Pierre-Alain | J16: 10 | K16: 2 | M16: 2 | V16: 11 | W16: Dick | X16: Pierre-Alain | Y16: 10 | Z16: 333 | AA16: 3
B17: Gerber | C17: Michel | D17: 30 | F17: 12 | H17: Mores | I17: Blaise | J17: 10 | K17: 4 | M17: 4 | V17: 12 | W17: Mores | X17: Blaise | Y17: 10 | Z17: 333 | AA17: 3
B18: Bühler | C18: Raymond | D18: 18 | F18: 13 | H18: Pellaton | I18: Daniel | J18: 4 | K18: 4 | M18: 4 | V18: 13 | W18: Pellaton | X18: Daniel | Y18: 4 | Z18: 333 | AA18: 3
B19: =W13 -> Bühler | C19: =X13 -> Raymond | D19: =Y13 -> 18 | F19: 14 | H19: Dubois | I19: Emmanuel | J19: 3 | K19: 1 | M19: 1 | V19: 14 | W19: Dubois | X19: Emmanuel | Y19: 3 | Z19: 333 | AA19: 3
C20: Total | D20: =SUM(D15:D19) -> 266 | F20: 15 | H20: Dubois | I20: Eric | J20: 3 | K20: 1 | M20: 1 | V20: 15 | W20: Dubois | X20: Eric | Y20: 3 | Z20: 223 | AA20: 2
F21: 16 | H21: Dubois | I21: Marcel | J21: 3 | K21: 1 | M21: 1 | V21: 16 | W21: Dubois | X21: Marcel | Y21: 3 | Z21: 223 | AA21: 2
A22: 3ème | B22: =IF($D28,(INDEX($Q$6:$S$20,MATCH($AA14,$Q$6:$Q$20,0),2)),0) -> Le Locle | E22: =VLOOKUP(B22,Qui!$A$201:$D$204,4) -> 3 | F22: 17 | H22: Kemajl | I22: Fetahi | J22: 3 | K22: 3 | M22: 3 | V22: 17 | W22: Kemajl | X22: Fetahi | Y22: 3 | Z22: 223 | AA22: 2
B23: =W14 -> Frutiger | C23: Bertrand | D23: 12 | F23: 18 | H23: Reichen | I23: Sylvain | J23: 3 | K23: 4 | M23: 4 | V23: 18 | W23: Reichen | X23: Sylvain | Y23: 3 | Z23: 223 | AA23: 2
B24: Chassot | C24: Yves | D24: 10 | F24: 19 | H24: Geiser | I24: Willy | J24: 2 | K24: 1 | M24: 1 | V24: 19 | W24: Geiser | X24: Willy | Y24: 2 | Z24: 223 | AA24: 2
B25: Dick | C25: Pierre-Alain | D25: 10 | F25: 20 | H25: Haussener | I25: Philippe | J25: 2 | K25: 2 | M25: 2 | V25: 20 | W25: Haussener | X25: Philippe | Y25: 2 | Z25: 223 | AA25: 2
B26: Mores | C26: Blaise | D26: 10 | F26: 21 | H26: Rindlisbacher | I26: Heinz | J26: 2 | K26: 4 | M26: 4 | V26: 21 | W26: Rindlisbacher | X26: Heinz | Y26: 2 | Z26: 111 | AA26: 1
B27: =W17 -> Mores | C27: =X17 -> Blaise | D27: =Y17 -> 10 | F27: 22 | H27: Jean-Mairet | I27: Jean-Claude | J27: 1 | K27: 1 | M27: 1 | V27: 22 | W27: Jean-Mairet | X27: Jean-Claude | Y27: 1 | Z27: 111 | AA27: 1 | AB27: 4
D28: =SUM(D23:D27) -> 52 | F28: 23 | H28: Jeanneret | I28: Louis | J28: 1 | K28: 2 | M28: 2 | V28: 23 | W28: Jeanneret | X28: Louis | Y28: 1 | Z28: 111 | AA28: 1
F29: 24 | H29: Matthey | I29: Pierre | J29: 1 | K29: 1 | M29: 1 | V29: 24 | W29: Matthey | X29: Pierre | Y29: 1 | Z29: 111 | AA29: 1
A30: 4ème | B30: =IF($D36,(INDEX($Q$6:$S$20,MATCH($AA18,$Q$6:$Q$20,0),2)),0) -> Le Locle | E30: =VLOOKUP(B30,Qui!$A$201:$D$204,4) -> 3 | F30: 25 | H30: Monnier | I30: Christian | J30: 1 | K30: 1 | M30: 1 | V30: 25 | W30: Monnier | X30: Christian | Y30: 1 | Z30: 111 | AA30: 1
B31: =W18 -> Pellaton | C31: Daniel | D31: 4 | F31: 26 | H31: Oppliger | I31: Hervé | J31: 1 | K31: 2 | M31: 2 | V31: 26 | W31: Oppliger | X31: Hervé | Y31: 1 | Z31: 111 | AA31: 1
B32: Dubois | C32: Emmanuel | D32: 3 | F32: 27 | H32: Rossier | I32: Yves-Alain | J32: 1 | K32: 4 | M32: 4 | V32: 27 | W32: Rossier | X32: Yves-Alain | Y32: 1 | Z32: 111 | AA32: 1
B33: Dubois | C33: Eric | D33: 3 | F33: 28 | H33: Tinguely | I33: Didier | J33: 1 | K33: 1 | M33: 1 | V33: 28 | W33: Tinguely | X33: Didier | Y33: 1 | Z33: 111 | AA33: 1
B34: Dubois | C34: Marcel | D34: 3 | F34: 29 | H34: Tynowski | I34: Lucien | J34: 1 | K34: 3 | M34: 3 | V34: 29 | W34: Tynowski | X34: Lucien | Y34: 1 | Z34: 111 | AA34: 1
B35: =W21 -> Dubois | C35: =X21 -> Marcel | D35: =Y21 -> 3 | F35: 30 | H35: Rollat | I35: Christian | J35: 0 | K35: 1 | M35: 1 | V35: 30 | W35: Rollat | X35: Christian | Y35: 0 | Z35: 0 | AA35: 1
C36: Total | D36: =SUM(D31:D35) -> 16 | F36: 31 | H36: Voirol | I36: Pierre | J36: 0 | K36: 1 | M36: 1 | V36: 31 | W36: Voirol | X36: Pierre | Y36: 0 | Z36: 0 | AA36: 1
F37: 32 | H37: Vuillème | I37: Claude-Alain | J37: 0 | K37: 2 | M37: 2 | V37: 32 | W37: Vuillème | X37: Claude-Alain | Y37: 0 | Z37: 0 | AA37: 2
A38: 5ème | B38: =IF($D43,(INDEX($Q$6:$S$20,MATCH($AA22,$Q$6:$Q$20,0),2)),0) -> La Vue-des-Alpes | E38: =VLOOKUP(B38,Qui!$A$201:$D$204,4) -> 2 | F38: 33 | H38: Wäfler | I38: Jean-Louis | J38: 0 | K38: =IFERROR((VLOOKUP(CONCATENATE(H38,I38),Q_NP_ClNom_ClNo,3,0)),0) -> 4 | M38: 4 | V38: 33 | W38: Wäfler | X38: Jean-Louis | Y38: 0 | Z38: =IF($AA38<>"",(IF($Y38,(INDEX($Q$6:$S$20,MATCH($AA38,$Q$6:$Q$20,0),3)),0)),0) -> 0 | AA38: 4
B39: =W22 -> Kemajl | C39: Fetahi | D39: 3 | F39: 34 | K39: 0 | V39: 34 | Z39: 0 | AA39: 0
B40: Reichen | C40: Sylvain | D40: 3 | F40: 35 | K40: 0 | V40: 35 | Z40: 0 | AA40: 0
B41: Geiser | C41: Willy | D41: 2 | F41: 36 | K41: 0 | V41: 36 | Z41: 0
B42: Haussener | C42: Philippe | D42: 2 | F42: 37 | K42: 0 | V42: 37 | Z42: 0
C43: Total | D43: =SUM(D39:D42) -> 10 | F43: 38 | K43: 0 | V43: 38 | Z43: 0
F44: 39 | K44: 0 | V44: 39 | Z44: 0
A45: 6ème | B45: =IF($D51,(INDEX($Q$6:$S$20,MATCH($AA26,$Q$6:$Q$20,0),2)),0) -> La Chaux-de-Fonds | E45: =VLOOKUP(B45,Qui!$A$201:$D$204,4) -> 1 | F45: 40 | K45: 0 | V45: 40 | Z45: 0
B46: =W26 -> Rindlisbacher | C46: Heinz | D46: 2 | F46: 41 | K46: 0 | V46: 41 | Z46: 0
B47: Jean-Mairet | C47: Jean-Claude | D47: 1 | F47: 42 | K47: 0 | V47: 42 | Z47: 0
B48: Jeanneret | C48: Louis | D48: 1 | F48: 43 | K48: 0 | V48: 43 | Z48: 0
B49: Matthey | C49: Pierre | D49: 1 | F49: 44 | K49: 0 | V49: 44 | Z49: 0
B50: =W29 -> Matthey | C50: =X29 -> Pierre | D50: =Y29 -> 1 | F50: 45 | K50: 0 | V50: 45 | Z50: 0
D51: =SUM(D46:D50) -> 6 | F51: 46 | K51: 0 | V51: 46 | Z51: 0
F52: 47 | K52: 0 | V52: 47 | Z52: 0
F53: 48 | K53: 0 | V53: 48 | Z53: 0
F54: 49 | K54: 0 | V54: 49 | Z54: 0
H57: =CONCATENATE("Champion de jeu : ",H6," ",I6) -> Champion de jeu : Bourquin Willy | J57: =J6 -> 400
J59: La Chaux-de-Fonds, le 4 avril 2020, cm
R62: Résultat club
R63: =LARGE($S$6:$S$12,1) -> 444
R64: =LARGE($S$6:$S$12,2) -> 333
R65: =LARGE($S$6:$S$12,3) -> 223
R66: =LARGE($S$6:$S$12,4) -> 111
R67: =LARGE($S$6:$S$12,5) -> 0
R72: =IF(ROW()=1,#REF!,INDEX($A$2:$A$100,(ROW()-2)*5+5)) -> 
R73: =INDEX(L63:P111,7,2) -> 0
R74: =IF(ROWS(#REF!)>$B$3,"",INDEX(#REF!,SMALL(IF((#REF!>=$B$1)*(#REF!<=$B$2),ROW(#REF!)-ROW(#REF!)+1),ROWS(#REF!)))) -> 
R75: =LARGE(O63:O111,3) ->  | S75: =VLOOKUP(#REF!,$Z$6:$Z$54,1,0) ->  | T75: =VLOOKUP(#REF!,$Z$6:$Z$54,1,0) -> 
R76: =INDEX(L63:N71, 3,2) -> 0 | S76: =VLOOKUP(#REF!,$Z$6:$Z$54,1,0) ->  | T76: =VLOOKUP(#REF!,$Z$6:$Z$54,1,0) -> 
S77: =VLOOKUP(#REF!,$Z$6:$Z$54,1,0) ->  | T77: =VLOOKUP(#REF!,$Z$6:$Z$54,1,0) -> 
S78: =VLOOKUP(#REF!,$Z$6:$Z$54,1,0) ->  | T78: =VLOOKUP(#REF!,$Z$6:$Z$54,1,0) -> 
S79: =VLOOKUP(#REF!,$Z$6:$Z$54,1,0) ->  | T79: =VLOOKUP(#REF!,$Z$6:$Z$54,1,0) -> 
S80: =VLOOKUP(#REF!,$Z$6:$Z$54,1,0) ->  | T80: =VLOOKUP(#REF!,$Z$6:$Z$54,1,0) -> 
S81: =VLOOKUP(#REF!,$Z$6:$Z$54,1,0) ->  | T81: =VLOOKUP(#REF!,$Z$6:$Z$54,1,0) -> 
R84: =INDEX($Z$6:$Z$54,MIN(IF(COUNTIF(#REF!,$Z$6:$Z$54),ROW(O$54)-ROW()+1,ROW($Z$6:$Z$54)-ROW()+1))) -> 

Sheet Champions_AN (hidden)
A1: Association intercantonale des joueurs de boules Grand Jeu Neuchâtelois
B2: =CONCATENATE("Récapitulatif pour l'année ",YEAR(Calendrier!B6)) -> Récapitulatif pour l'année 2020
B6: =Calendrier!A4 -> Challenge HIVER | C6: =Calendrier!F4 -> Evologia | D6: =Challenge_1!H57 -> Champion de jeu : Gerber Michel | E6: =Challenge_1!J57 -> 111
C7: =Challenge_1!J3 -> du 09.03 au 12.03.2020 | D7: =CONCATENATE("Par équipe : ",(Challenge_1!$B$6)) -> Par équipe : Le Locle I | E7: =Challenge_1!D11 -> 400
B9: =Calendrier!A25 -> Challenge ÉTÉ | C9: =Calendrier!F25 -> Le Locle | D9: =Challenge_2!H42 -> 0 | E9: =Challenge_2!J42 -> 0
C10: =Challenge_2!J3 -> du 15.06 au 18.06.2020 | D10: =CONCATENATE("Par équipe : ",(Challenge_2!$B$6)) -> Par équipe : 0 | E10: =Challenge_2!D11 -> 0
B12: =Calendrier!A11 -> Challenge 70ème | C12: =Calendrier!F11 -> L'Epi | E12: =Manche_1!$R$5 -> 0
B15: =Calendrier!A18 -> COUPE SUISSE | C15: =Calendrier!F18 -> La Vue-des-Alpes
C16: =Calendrier!F23 -> 2020-05-09
B19: =Calendrier!A40 -> Championnat 1ère manche | C19: =Calendrier!F40 -> Le Locle | D19: =Manche_1!$P$4 -> Champion de jeu : Bart Fabien | E19: =Manche_1!$R$5 -> 0
C20: =Manche_1!U3 -> 29.06 au 02.07.2020 | D20: =CONCATENATE("Par équipe : ",(Manche_1!$P$62)) -> Par équipe : La Chaux-de-Fonds | E20: =Manche_1!$R$62 -> 0
B22: =Calendrier!A47 -> Championnat 2ème manche | C22: =Calendrier!F47 -> Grand-Sommartel | D22: =Manche_2!$P$4 -> Champion de jeu : | E22: =Manche_2!$R$5 -> 0
C23: =Manche_2!U3 -> 24.08 au 27.08.2020 | D23: =CONCATENATE("Par équipe : ",(Manche_2!$P$62)) -> Par équipe : | E23: =Manche_2!$R$62 -> 0
B25: =Calendrier!A54 -> Championnat 3ème manche | C25: =Calendrier!F54 -> L'Epi | D25: =Manche_3!$P$4 -> Champion de jeu : | E25: =Manche_3!$R$5 -> 0
C26: =Manche_3!U3 -> 07.09 au 10.09.2020 | D26: =CONCATENATE("Par équipe : ",(Manche_3!$P$62)) -> Par équipe : | E26: =Manche_3!$R$62 -> 0
B28: =Calendrier!A61 -> Championnat 4ème manche | C28: =Calendrier!F61 -> La Chaux-de-Fonds | D28: =Manche_4!$P$4 -> Champion de jeu : | E28: =Manche_4!$R$5 -> 0
C29: =Manche_4!U3 -> 05.10 au 08.10.2020 | D29: =CONCATENATE("Par équipe : ",(Manche_4!$P$62)) -> Par équipe : | E29: =Manche_4!$R$62 -> 0
B31: =Calendrier!A68 -> Championnat 5ème manche | C31: =Calendrier!F68 -> Evologia | D31: =Manche_5!$P$4 -> Champion de jeu : | E31: =Manche_5!$R$5 -> 0
C32: =Manche_5!U3 -> 26.10 au 29.10.2020 | D32: =CONCATENATE("Par équipe : ",(Manche_5!$P$62)) -> Par équipe : | E32: =Manche_5!$R$62 -> 0
B34: =Calendrier!A75 -> Championnat 6ème manche | C34: =Calendrier!F75 -> La Vue-des-Alpes | D34: =Manche_6!$P$4 -> Champion de jeu : | E34: =Manche_6!$R$5 -> 0
C35: =Manche_6!U3 -> 09.11 au 12.11.2020 | D35: =CONCATENATE("Par équipe : ",(Manche_6!$P$62)) -> Par équipe : | E35: =Manche_6!$R$62 -> 0
B37: =Calendrier!A82 -> 0 | D37: =Manche_7!$P$4 -> Champion de jeu : | E37: =Manche_7!$R$5 -> 0
B38: =Calendrier!F82 -> 0 | D38: =CONCATENATE("Par équipe : ",(Manche_7!$P$62)) -> Par équipe : | E38: =Manche_7!$R$62 -> 0
B41: Classement général | D41: =CONCATENATE("Champion des jeux : ",Manche_7!$B$5," ",Manche_7!$C$5) -> Champion des jeux : | E41: =Manche_7!$M$5 -> 
D42: =CONCATENATE("Par équipe : ",Manche_7!$B$62) -> Par équipe : | E42: =Manche_7!$M$62 -> 

Sheet A Ameliorer (hidden)
A1: Date | B1: Qui | C1: Accepté | D1: Réalisé | E1: Quoi
A2: 2019-09-01 | B2: Daniel | D2: 2020-02-02 | E2: Mentionner la date d'arrivée dans l'Intercantonale pour chaque joueur ==> jubilaire
A3: 2019-09-01 | B3: Daniel | D3: 2020-02-02 | E3: Mentionner la date de naissance pour chaque joueur ==> sympa
A4: 2019-09-01 | B4: Daniel | C4: 2020-04-09 | E4: Intégrer toutes les compétitions
A5: 2019-10-31 | B5: Daniel | D5: 2019-12-31 | E5: Interdiction de relancer Tri si déjà fait
A6: 2019-09-17 | B6: Daniel | D6: 2019-09-17 | E6: Affichage des chiffres à virgule ==> suppression des décimales
A7: 2019-09-17 | B7: Daniel | D7: 2019-09-17 | E7: Addition totaux équipe manche 2
A8: 2019-10-09 | B8: Daniel | D8: 2019-10-09 | E8: Interdiction de relancer Préparationi déjà fait
C11: 2020-04-09 | E11: Intégrer coupe suisse
C12: 2020-04-10 | E12: Intégrer challenge 70ème
